Workbook

Sheet INGRESO DE DATOS
A11: Tarifas efectivas a partir del 1ro de enero de 2022 Para nuevos negocios emitidos a partir del 1 de enero de 2022
A13: 1. LLENE LA INFORMACIÓN DEL ASEGURADO PROPUESTO:
B15: Nombre del Asegurado Titular | D15: Nombre Completo
B17: Número de adultos en la póliza | D17: 2 | F17: Número de niños en la póliza | H17: 3
B19: Edad del Asegurado Titular | D19: 42 | F19: Edad del/la cónyuge | H19: 38
C21: Zona de cotización: | D21: Resto de Ecuador
A24: 2. SELECCIONE EL PRODUCTO PARA VER LA COTIZACIÓN CORRESPONDIENTE:
B29: 1 | D29: 2

Sheet Global Health Ultimate
A12: RESUMEN DE BENEFICIOS | D12: Nombre del Asegurado Titular | F12: =+'INGRESO DE DATOS'!$D$15 -> Nombre Completo
D14: Número de adultos en la póliza | F14: =+'INGRESO DE DATOS'!$D$17 -> 2 | H14: Edad del Asegurado Titular | I14: =+'INGRESO DE DATOS'!$D$19 -> 42
D16: Número de niños en la póliza | F16: =+'INGRESO DE DATOS'!$H$17 -> 3 | H16: Edad del/la conyuge | I16: =+'INGRESO DE DATOS'!$H$19 -> 38
D18: Número de niños menores de 16 años | F18: =+'INGRESO DE DATOS'!$B$29 -> 1 | H18: Fecha de la cotización : | I18: =NOW() -> 2022-08-25T10:38:56.600
H19: FALSE
E20: Zona de cotización: | F20: ='INGRESO DE DATOS'!D21 -> Resto de Ecuador
E22: Deducibles | G22: PLAN 1 | H22: PLAN 2
E23: En el país de residencia | G23: $0 | H23: 1000
E24: Fuera del país de residencia | G24: $0 | H24: 1000
E26: Tarifas Anuales
E27: Prima para Asegurado Titular | G27: =VLOOKUP($I$14,Tablas!$A$905:$G$971,3,TRUE)+75 -> 33792 | H27: =VLOOKUP($I$14,Tablas!$A$905:$G$971,4,TRUE)+75 -> 21828
E28: Prima para conyuge | G28: =IF($F$14=1,0,(VLOOKUP($I$16,Tablas!$A$905:$G$971,3,TRUE))) -> 30075 | H28: =IF($F$14=1,0,(VLOOKUP($I$16,Tablas!$A$905:$G$971,4,TRUE))) -> 19406
E29: Prima para hijo (s) | G29: =IF($F$14=1, (IF($F$16=0, 0, (IF($F$18>$F$16, (VLOOKUP($F$16,Tablas!$A$972:$G$974,3,TRUE)), (IF($F$16>4,(IF($F$18=0, (VLOOKUP(3,Tablas!$A$972:$G$974,3,TRUE)), (IF($F$18=1, (VLOOKUP(3,Tablas!$A$972:$G$974,3,TRUE)), (IF($F$18=2, (VLOOKUP(3,Tablas!$A$972:$G$974,3,TRUE)), (VLOOKUP(3,Tablas!$A$972:$G$974,3,TRUE)))))))), (IF($F$16=4,(IF(4-$F$18=0,(VLOOKUP(2,Tablas!$A$972:$G$974,3,TRUE)), (IF(4-$F$18=1,(VLOOKUP(2,Tablas!$A$972:$G$974,3,TRUE)), (IF(4-$F$18=2, (VLOOKUP(2,Tablas!$A$972:$G$974,3,TRUE)), (VLOOKUP(3,Tablas!$A$972:$G$974,3,TRUE)))))))), (IF($F$16=3,(IF(3-$F$18=0,(VLOOKUP(1,Tablas!$A$972:$G$974,3,TRUE)), (IF(3-$F$18=1,(VLOOKUP(1,Tablas!$A$972:$G$974,3,TRUE)), (IF(3-$F$18=2, (VLOOKUP(2,Tablas!$A$972:$G$974,3,TRUE)), (VLOOKUP(3,Tablas!$A$972:$G$974,3,TRUE)))))))), (IF($F$16=2,(IF(2-$F$18=0, 0, (IF(2-$F$18=1,(VLOOKUP(1,Tablas!$A$972:$G$974,3,TRUE)), (IF(2-$F$18=2, (VLOOKUP(2,Tablas!$A$972:$G$974,3,TRUE)), 0)))))), (IF($F$16=1,(IF(1-$F$18=0, 0, (IF(1-$F$18=1,(VLOOKUP(1,Tablas!$A$972:$G$974,3,TRUE)),0)))),0)))))))))))))), (IF($F$16=0, 0, (IF($F$18>$F$16, (VLOOKUP($F$16,Tablas!$A$972:$G$974,3,TRUE)), (IF($F$16=4,(IF(4-$F$18=0, 0, (IF(4-$F$18=1, (VLOOKUP(1,Tablas!$A$972:$G$974,3,TRUE)), (IF(4-$F$18=2, (VLOOKUP(2,Tablas!$A$972:$G$974,3,TRUE)), (IF(4-$F$18=3, (VLOOKUP(3,Tablas!$A$972:$G$974,3,TRUE)), (IF(4-$F$18=4, (VLOOKUP(3,Tablas!$A$972:$G$974,3,TRUE)), 0)))))))))), (IF($F$16=5,(IF(5-$F$18=0, (VLOOKUP(1,Tablas!$A$972:$G$974,3,TRUE)), (IF(5-$F$18=1, (VLOOKUP(1,Tablas!$A$972:$G$974,3,TRUE)), (IF(5-$F$18=2, (VLOOKUP(2,Tablas!$A$972:$G$974,3,TRUE)), (IF(5-$F$18=3, (VLOOKUP(3,Tablas!$A$972:$G$974,3,TRUE)), (IF(5-$F$18=4, (VLOOKUP(3,Tablas!$A$972:$G$974,3,TRUE)), (VLOOKUP(3,Tablas!$A$972:$G$974,3,TRUE)))))))))))), (IF($F$16=6,(IF(6-$F$18=0, (VLOOKUP(2,Tablas!$A$972:$G$974,3,TRUE)), (IF(6-$F$18=1, (VLOOKUP(2,Tablas!$A$972:$G$974,3,TRUE)), (IF(6-$F$18=2, (VLOOKUP(2,Tablas!$A$972:$G$974,3,TRUE)), (IF(6-$F$18=3, (VLOOKUP(3,Tablas!$A$972:$G$974,3,TRUE)), (IF(6-$F$18=4, (VLOOKUP(3,Tablas!$A$972:$G$974,3,TRUE)), (VLOOKUP(3,Tablas!$A$972:$G$974,3,TRUE)))))))))))), (IF($F$16>6,(IF(7-$F$18=0, (VLOOKUP(3,Tablas!$A$972:$G$974,3,TRUE)), (IF(7-$F$18=1, (VLOOKUP(3,Tablas!$A$972:$G$974,3,TRUE)), (IF(7-$F$18=2, (VLOOKUP(3,Tablas!$A$972:$G$974,3,TRUE)), (IF(7-$F$18=3, (VLOOKUP(3,Tablas!$A$972:$G$974,3,TRUE)), (IF(7-$F$18=4, (VLOOKUP(3,Tablas!$A$972:$G$974,3,TRUE)), (VLOOKUP(3,Tablas!$A$972:$G$974,3,TRUE)))))))))))), (IF($F$16=3,(IF(3-$F$18=0,0, (IF(3-$F$18=1,(VLOOKUP(1,Tablas!$A$972:$G$974,3,TRUE)), (IF(3-$F$18=2, (VLOOKUP(2,Tablas!$A$972:$G$974,3,TRUE)), (VLOOKUP(3,Tablas!$A$972:$G$974,3,TRUE)))))))), (IF($F$16=2,(IF(2-$F$18=0, 0, (IF(2-$F$18=1,(VLOOKUP(1,Tablas!$A$972:$G$974,3,TRUE)), (IF(2-$F$18=2, (VLOOKUP(2,Tablas!$A$972:$G$974,3,TRUE)), 0)))))), (IF($F$16=1,(IF(1-$F$18=0, 0, (IF(1-$F$18=1,(VLOOKUP(1,Tablas!$A$972:$G$974,3,TRUE)),0)))),0))))))))))))))))))) -> 16063 | H29: =IF($F$14=1, (IF($F$16=0, 0, (IF($F$18>$F$16, (VLOOKUP($F$16,Tablas!$A$972:$G$974,4,TRUE)), (IF($F$16>4,(IF($F$18=0, (VLOOKUP(3,Tablas!$A$972:$G$974,4,TRUE)), (IF($F$18=1, (VLOOKUP(3,Tablas!$A$972:$G$974,4,TRUE)), (IF($F$18=2, (VLOOKUP(3,Tablas!$A$972:$G$974,4,TRUE)), (VLOOKUP(3,Tablas!$A$972:$G$974,4,TRUE)))))))), (IF($F$16=4,(IF(4-$F$18=0,(VLOOKUP(2,Tablas!$A$972:$G$974,4,TRUE)), (IF(4-$F$18=1,(VLOOKUP(2,Tablas!$A$972:$G$974,4,TRUE)), (IF(4-$F$18=2, (VLOOKUP(2,Tablas!$A$972:$G$974,4,TRUE)), (VLOOKUP(3,Tablas!$A$972:$G$974,4,TRUE)))))))), (IF($F$16=3,(IF(3-$F$18=0,(VLOOKUP(1,Tablas!$A$972:$G$974,4,TRUE)), (IF(3-$F$18=1,(VLOOKUP(1,Tablas!$A$972:$G$974,4,TRUE)), (IF(3-$F$18=2, (VLOOKUP(2,Tablas!$A$972:$G$974,4,TRUE)), (VLOOKUP(3,Tablas!$A$972:$G$974,4,TRUE)))))))), (IF($F$16=2,(IF(2-$F$18=0, 0, (IF(2-$F$18=1,(VLOOKUP(1,Tablas!$A$972:$G$974,4,TRUE)), (IF(2-$F$18=2, (VLOOKUP(2,Tablas!$A$972:$G$974,4,TRUE)), 0)))))), (IF($F$16=1,(IF(1-$F$18=0, 0, (IF(1-$F$18=1,(VLOOKUP(1,Tablas!$A$972:$G$974,4,TRUE)),0)))),0)))))))))))))), (IF($F$16=0, 0, (IF($F$18>$F$16, (VLOOKUP($F$16,Tablas!$A$972:$G$974,4,TRUE)), (IF($F$16=4,(IF(4-$F$18=0, 0, (IF(4-$F$18=1, (VLOOKUP(1,Tablas!$A$972:$G$974,4,TRUE)), (IF(4-$F$18=2, (VLOOKUP(2,Tablas!$A$972:$G$974,4,TRUE)), (IF(4-$F$18=3, (VLOOKUP(3,Tablas!$A$972:$G$974,4,TRUE)), (IF(4-$F$18=4, (VLOOKUP(3,Tablas!$A$972:$G$974,4,TRUE)), 0)))))))))), (IF($F$16=5,(IF(5-$F$18=0, (VLOOKUP(1,Tablas!$A$972:$G$974,4,TRUE)), (IF(5-$F$18=1, (VLOOKUP(1,Tablas!$A$972:$G$974,4,TRUE)), (IF(5-$F$18=2, (VLOOKUP(2,Tablas!$A$972:$G$974,4,TRUE)), (IF(5-$F$18=3, (VLOOKUP(3,Tablas!$A$972:$G$974,4,TRUE)), (IF(5-$F$18=4, (VLOOKUP(3,Tablas!$A$972:$G$974,4,TRUE)), (VLOOKUP(3,Tablas!$A$972:$G$974,4,TRUE)))))))))))), (IF($F$16=6,(IF(6-$F$18=0, (VLOOKUP(2,Tablas!$A$972:$G$974,4,TRUE)), (IF(6-$F$18=1, (VLOOKUP(2,Tablas!$A$972:$G$974,4,TRUE)), (IF(6-$F$18=2, (VLOOKUP(2,Tablas!$A$972:$G$974,4,TRUE)), (IF(6-$F$18=3, (VLOOKUP(3,Tablas!$A$972:$G$974,4,TRUE)), (IF(6-$F$18=4, (VLOOKUP(3,Tablas!$A$972:$G$974,4,TRUE)), (VLOOKUP(3,Tablas!$A$972:$G$974,4,TRUE)))))))))))), (IF($F$16>6,(IF(7-$F$18=0, (VLOOKUP(3,Tablas!$A$972:$G$974,4,TRUE)), (IF(7-$F$18=1, (VLOOKUP(3,Tablas!$A$972:$G$974,4,TRUE)), (IF(7-$F$18=2, (VLOOKUP(3,Tablas!$A$972:$G$974,4,TRUE)), (IF(7-$F$18=3, (VLOOKUP(3,Tablas!$A$972:$G$974,4,TRUE)), (IF(7-$F$18=4, (VLOOKUP(3,Tablas!$A$972:$G$974,4,TRUE)), (VLOOKUP(3,Tablas!$A$972:$G$974,4,TRUE)))))))))))), (IF($F$16=3,(IF(3-$F$18=0,0, (IF(3-$F$18=1,(VLOOKUP(1,Tablas!$A$972:$G$974,4,TRUE)), (IF(3-$F$18=2, (VLOOKUP(2,Tablas!$A$972:$G$974,4,TRUE)), (VLOOKUP(3,Tablas!$A$972:$G$974,4,TRUE)))))))), (IF($F$16=2,(IF(2-$F$18=0, 0, (IF(2-$F$18=1,(VLOOKUP(1,Tablas!$A$972:$G$974,4,TRUE)), (IF(2-$F$18=2, (VLOOKUP(2,Tablas!$A$972:$G$974,4,TRUE)), 0)))))), (IF($F$16=1,(IF(1-$F$18=0, 0, (IF(1-$F$18=1,(VLOOKUP(1,Tablas!$A$972:$G$974,4,TRUE)),0)))),0))))))))))))))))))) -> 10362
E30: Total de Prima neta | G30: =SUM(G27:G29) -> 79930 | H30: =SUM(H27:H29) -> 51596
E31: Tarifa administrativa anual | G31: 0 | H31: 0
E32: Contribución 3.5% Superintendencia de Bancos Contribución 0.5% Seguro Social Campesino | G32: =(G30)*4% -> 3197.2 | H32: =(H30)*4% -> 2063.84
E33: TOTAL ANUAL | G33: =SUM(G30:G32) -> 83127.2 | H33: =SUM(H30:H32) -> 53659.84
E34: Ahorros en tarifas de prima para niños | G34: =IF($F$14=1,IF($F$16=0,0,IF($F$18=0,0,IF($F$18=1,(VLOOKUP(1,Tablas!$A$972:$G$974,3,TRUE)),(VLOOKUP(2,Tablas!$A$972:$G$974,3,TRUE))))), IF($F$16=0,0,IF($F$18=0,0,IF($F$18=1,(VLOOKUP(1,Tablas!$A$972:$G$974,3,TRUE)),IF($F$18=2,(VLOOKUP(2,Tablas!$A$972:$G$974,3,TRUE)), (VLOOKUP(3,Tablas!$A$972:$G$974,3,TRUE))))))) -> 9449 | H34: =IF($F$14=1,IF($F$16=0,0,IF($F$18=0,0,IF($F$18=1,(VLOOKUP(1,Tablas!$A$972:$G$974,4,TRUE)),(VLOOKUP(2,Tablas!$A$972:$G$974,4,TRUE))))), IF($F$16=0,0,IF($F$18=0,0,IF($F$18=1,(VLOOKUP(1,Tablas!$A$972:$G$974,4,TRUE)),IF($F$18=2,(VLOOKUP(2,Tablas!$A$972:$G$974,4,TRUE)), (VLOOKUP(3,Tablas!$A$972:$G$974,4,TRUE))))))) -> 6096
E36: Tarifas Semianuales
E37: Prima para Asegurado Titular | G37: =VLOOKUP($I$14,Tablas!$A$1428:$G$1494,3,TRUE)+75 -> 17945.01 | H37: =VLOOKUP($I$14,Tablas!$A$1428:$G$1494,4,TRUE)+75 -> 11604.09
E38: Prima para conyuge | G38: =IF($F$14=1,0,(VLOOKUP($I$16,Tablas!$A$1428:$G$1494,3,TRUE))) -> 15939.75 | H38: =IF($F$14=1,0,(VLOOKUP($I$16,Tablas!$A$1428:$G$1494,4,TRUE))) -> 10285.18
E39: Prima para hijo (s) | G39: =IF($F$14=1, (IF($F$16=0, 0, (IF($F$18>$F$16, (VLOOKUP($F$16,Tablas!$A$1495:$G$1497,3,TRUE)), (IF($F$16>4,(IF($F$18=0, (VLOOKUP(3,Tablas!$A$1495:$G$1497,3,TRUE)), (IF($F$18=1, (VLOOKUP(3,Tablas!$A$1495:$G$1497,3,TRUE)), (IF($F$18=2, (VLOOKUP(3,Tablas!$A$1495:$G$1497,3,TRUE)), (VLOOKUP(3,Tablas!$A$1495:$G$1497,3,TRUE)))))))), (IF($F$16=4,(IF(4-$F$18=0,(VLOOKUP(2,Tablas!$A$1495:$G$1497,3,TRUE)), (IF(4-$F$18=1,(VLOOKUP(2,Tablas!$A$1495:$G$1497,3,TRUE)), (IF(4-$F$18=2, (VLOOKUP(2,Tablas!$A$1495:$G$1497,3,TRUE)), (VLOOKUP(3,Tablas!$A$1495:$G$1497,3,TRUE)))))))), (IF($F$16=3,(IF(3-$F$18=0,(VLOOKUP(1,Tablas!$A$1495:$G$1497,3,TRUE)), (IF(3-$F$18=1,(VLOOKUP(1,Tablas!$A$1495:$G$1497,3,TRUE)), (IF(3-$F$18=2, (VLOOKUP(2,Tablas!$A$1495:$G$1497,3,TRUE)), (VLOOKUP(3,Tablas!$A$1495:$G$1497,3,TRUE)))))))), (IF($F$16=2,(IF(2-$F$18=0, 0, (IF(2-$F$18=1,(VLOOKUP(1,Tablas!$A$1495:$G$1497,3,TRUE)), (IF(2-$F$18=2, (VLOOKUP(2,Tablas!$A$1495:$G$1497,3,TRUE)), 0)))))), (IF($F$16=1,(IF(1-$F$18=0, 0, (IF(1-$F$18=1,(VLOOKUP(1,Tablas!$A$1495:$G$1497,3,TRUE)),0)))),0)))))))))))))), (IF($F$16=0, 0, (IF($F$18>$F$16, (VLOOKUP($F$16,Tablas!$A$1495:$G$1497,3,TRUE)), (IF($F$16=4,(IF(4-$F$18=0, 0, (IF(4-$F$18=1, (VLOOKUP(1,Tablas!$A$1495:$G$1497,3,TRUE)), (IF(4-$F$18=2, (VLOOKUP(2,Tablas!$A$1495:$G$1497,3,TRUE)), (IF(4-$F$18=3, (VLOOKUP(3,Tablas!$A$1495:$G$1497,3,TRUE)), (IF(4-$F$18=4, (VLOOKUP(3,Tablas!$A$1495:$G$1497,3,TRUE)), 0)))))))))), (IF($F$16=5,(IF(5-$F$18=0, (VLOOKUP(1,Tablas!$A$1495:$G$1497,3,TRUE)), (IF(5-$F$18=1, (VLOOKUP(1,Tablas!$A$1495:$G$1497,3,TRUE)), (IF(5-$F$18=2, (VLOOKUP(2,Tablas!$A$1495:$G$1497,3,TRUE)), (IF(5-$F$18=3, (VLOOKUP(3,Tablas!$A$1495:$G$1497,3,TRUE)), (IF(5-$F$18=4, (VLOOKUP(3,Tablas!$A$1495:$G$1497,3,TRUE)), (VLOOKUP(3,Tablas!$A$1495:$G$1497,3,TRUE)))))))))))), (IF($F$16=6,(IF(6-$F$18=0, (VLOOKUP(2,Tablas!$A$1495:$G$1497,3,TRUE)), (IF(6-$F$18=1, (VLOOKUP(2,Tablas!$A$1495:$G$1497,3,TRUE)), (IF(6-$F$18=2, (VLOOKUP(2,Tablas!$A$1495:$G$1497,3,TRUE)), (IF(6-$F$18=3, (VLOOKUP(3,Tablas!$A$1495:$G$1497,3,TRUE)), (IF(6-$F$18=4, (VLOOKUP(3,Tablas!$A$1495:$G$1497,3,TRUE)), (VLOOKUP(3,Tablas!$A$1495:$G$1497,3,TRUE)))))))))))), (IF($F$16>6,(IF(7-$F$18=0, (VLOOKUP(3,Tablas!$A$1495:$G$1497,3,TRUE)), (IF(7-$F$18=1, (VLOOKUP(3,Tablas!$A$1495:$G$1497,3,TRUE)), (IF(7-$F$18=2, (VLOOKUP(3,Tablas!$A$1495:$G$1497,3,TRUE)), (IF(7-$F$18=3, (VLOOKUP(3,Tablas!$A$1495:$G$1497,3,TRUE)), (IF(7-$F$18=4, (VLOOKUP(3,Tablas!$A$1495:$G$1497,3,TRUE)), (VLOOKUP(3,Tablas!$A$1495:$G$1497,3,TRUE)))))))))))), (IF($F$16=3,(IF(3-$F$18=0,0, (IF(3-$F$18=1,(VLOOKUP(1,Tablas!$A$1495:$G$1497,3,TRUE)), (IF(3-$F$18=2, (VLOOKUP(2,Tablas!$A$1495:$G$1497,3,TRUE)), (VLOOKUP(3,Tablas!$A$1495:$G$1497,3,TRUE)))))))), (IF($F$16=2,(IF(2-$F$18=0, 0, (IF(2-$F$18=1,(VLOOKUP(1,Tablas!$A$1495:$G$1497,3,TRUE)), (IF(2-$F$18=2, (VLOOKUP(2,Tablas!$A$1495:$G$1497,3,TRUE)), 0)))))), (IF($F$16=1,(IF(1-$F$18=0, 0, (IF(1-$F$18=1,(VLOOKUP(1,Tablas!$A$1495:$G$1497,3,TRUE)),0)))),0))))))))))))))))))) -> 8513.39 | H39: =IF($F$14=1, (IF($F$16=0, 0, (IF($F$18>$F$16, (VLOOKUP($F$16,Tablas!$A$1495:$G$1497,4,TRUE)), (IF($F$16>4,(IF($F$18=0, (VLOOKUP(3,Tablas!$A$1495:$G$1497,4,TRUE)), (IF($F$18=1, (VLOOKUP(3,Tablas!$A$1495:$G$1497,4,TRUE)), (IF($F$18=2, (VLOOKUP(3,Tablas!$A$1495:$G$1497,4,TRUE)), (VLOOKUP(3,Tablas!$A$1495:$G$1497,4,TRUE)))))))), (IF($F$16=4,(IF(4-$F$18=0,(VLOOKUP(2,Tablas!$A$1495:$G$1497,4,TRUE)), (IF(4-$F$18=1,(VLOOKUP(2,Tablas!$A$1495:$G$1497,4,TRUE)), (IF(4-$F$18=2, (VLOOKUP(2,Tablas!$A$1495:$G$1497,4,TRUE)), (VLOOKUP(3,Tablas!$A$1495:$G$1497,4,TRUE)))))))), (IF($F$16=3,(IF(3-$F$18=0,(VLOOKUP(1,Tablas!$A$1495:$G$1497,4,TRUE)), (IF(3-$F$18=1,(VLOOKUP(1,Tablas!$A$1495:$G$1497,4,TRUE)), (IF(3-$F$18=2, (VLOOKUP(2,Tablas!$A$1495:$G$1497,4,TRUE)), (VLOOKUP(3,Tablas!$A$1495:$G$1497,4,TRUE)))))))), (IF($F$16=2,(IF(2-$F$18=0, 0, (IF(2-$F$18=1,(VLOOKUP(1,Tablas!$A$1495:$G$1497,4,TRUE)), (IF(2-$F$18=2, (VLOOKUP(2,Tablas!$A$1495:$G$1497,4,TRUE)), 0)))))), (IF($F$16=1,(IF(1-$F$18=0, 0, (IF(1-$F$18=1,(VLOOKUP(1,Tablas!$A$1495:$G$1497,4,TRUE)),0)))),0)))))))))))))), (IF($F$16=0, 0, (IF($F$18>$F$16, (VLOOKUP($F$16,Tablas!$A$1495:$G$1497,4,TRUE)), (IF($F$16=4,(IF(4-$F$18=0, 0, (IF(4-$F$18=1, (VLOOKUP(1,Tablas!$A$1495:$G$1497,4,TRUE)), (IF(4-$F$18=2, (VLOOKUP(2,Tablas!$A$1495:$G$1497,4,TRUE)), (IF(4-$F$18=3, (VLOOKUP(3,Tablas!$A$1495:$G$1497,4,TRUE)), (IF(4-$F$18=4, (VLOOKUP(3,Tablas!$A$1495:$G$1497,4,TRUE)), 0)))))))))), (IF($F$16=5,(IF(5-$F$18=0, (VLOOKUP(1,Tablas!$A$1495:$G$1497,4,TRUE)), (IF(5-$F$18=1, (VLOOKUP(1,Tablas!$A$1495:$G$1497,4,TRUE)), (IF(5-$F$18=2, (VLOOKUP(2,Tablas!$A$1495:$G$1497,4,TRUE)), (IF(5-$F$18=3, (VLOOKUP(3,Tablas!$A$1495:$G$1497,4,TRUE)), (IF(5-$F$18=4, (VLOOKUP(3,Tablas!$A$1495:$G$1497,4,TRUE)), (VLOOKUP(3,Tablas!$A$1495:$G$1497,4,TRUE)))))))))))), (IF($F$16=6,(IF(6-$F$18=0, (VLOOKUP(2,Tablas!$A$1495:$G$1497,4,TRUE)), (IF(6-$F$18=1, (VLOOKUP(2,Tablas!$A$1495:$G$1497,4,TRUE)), (IF(6-$F$18=2, (VLOOKUP(2,Tablas!$A$1495:$G$1497,4,TRUE)), (IF(6-$F$18=3, (VLOOKUP(3,Tablas!$A$1495:$G$1497,4,TRUE)), (IF(6-$F$18=4, (VLOOKUP(3,Tablas!$A$1495:$G$1497,4,TRUE)), (VLOOKUP(3,Tablas!$A$1495:$G$1497,4,TRUE)))))))))))), (IF($F$16>6,(IF(7-$F$18=0, (VLOOKUP(3,Tablas!$A$1495:$G$1497,4,TRUE)), (IF(7-$F$18=1, (VLOOKUP(3,Tablas!$A$1495:$G$1497,4,TRUE)), (IF(7-$F$18=2, (VLOOKUP(3,Tablas!$A$1495:$G$1497,4,TRUE)), (IF(7-$F$18=3, (VLOOKUP(3,Tablas!$A$1495:$G$1497,4,TRUE)), (IF(7-$F$18=4, (VLOOKUP(3,Tablas!$A$1495:$G$1497,4,TRUE)), (VLOOKUP(3,Tablas!$A$1495:$G$1497,4,TRUE)))))))))))), (IF($F$16=3,(IF(3-$F$18=0,0, (IF(3-$F$18=1,(VLOOKUP(1,Tablas!$A$1495:$G$1497,4,TRUE)), (IF(3-$F$18=2, (VLOOKUP(2,Tablas!$A$1495:$G$1497,4,TRUE)), (VLOOKUP(3,Tablas!$A$1495:$G$1497,4,TRUE)))))))), (IF($F$16=2,(IF(2-$F$18=0, 0, (IF(2-$F$18=1,(VLOOKUP(1,Tablas!$A$1495:$G$1497,4,TRUE)), (IF(2-$F$18=2, (VLOOKUP(2,Tablas!$A$1495:$G$1497,4,TRUE)), 0)))))), (IF($F$16=1,(IF(1-$F$18=0, 0, (IF(1-$F$18=1,(VLOOKUP(1,Tablas!$A$1495:$G$1497,4,TRUE)),0)))),0))))))))))))))))))) -> 5491.86
E40: Total de Prima neta | G40: =SUM(G37:G39) -> 42398.15 | H40: =SUM(H37:H39) -> 27381.13
E41: Tarifa administrativa anual | G41: 0 | H41: 0
E42: Contribución 3.5% Superintendencia de Bancos Contribución 0.5% Seguro Social Campesino | G42: =(G40)*4% -> 1695.926 | H42: =(H40)*4% -> 1095.2452
E43: TOTAL de primera cuota | G43: =SUM(G40:G42) -> 44094.076 | H43: =SUM(H40:H42) -> 28476.3752
E44: Costo de segunda cuota | G44: =(G40+G42)-78 -> 44016.076 | H44: =H40+H42-78 -> 28398.3752
E45: TOTAL ANUAL | G45: =G43+G44 -> 88110.152 | H45: =H43+H44 -> 56874.7504
E46: Ahorros en tarifas de prima para niños | G46: =IF($F$14=1,IF($F$16=0,0,IF($F$18=0,0,IF($F$18=1,(VLOOKUP(1,Tablas!$A$1495:$G$1497,3,TRUE)),(VLOOKUP(2,Tablas!$A$1495:$G$1497,3,TRUE))))), IF($F$16=0,0,IF($F$18=0,0,IF($F$18=1,(VLOOKUP(1,Tablas!$A$1495:$G$1497,3,TRUE)),IF($F$18=2,(VLOOKUP(2,Tablas!$A$1495:$G$1497,3,TRUE)), (VLOOKUP(3,Tablas!$A$1495:$G$1497,3,TRUE))))))) -> 5007.97 | H46: =IF($F$14=1,IF($F$16=0,0,IF($F$18=0,0,IF($F$18=1,(VLOOKUP(1,Tablas!$A$1495:$G$1497,4,TRUE)),(VLOOKUP(2,Tablas!$A$1495:$G$1497,4,TRUE))))), IF($F$16=0,0,IF($F$18=0,0,IF($F$18=1,(VLOOKUP(1,Tablas!$A$1495:$G$1497,4,TRUE)),IF($F$18=2,(VLOOKUP(2,Tablas!$A$1495:$G$1497,4,TRUE)), (VLOOKUP(3,Tablas!$A$1495:$G$1497,4,TRUE))))))) -> 3230.88
E48: Tarifas Trimestrales
E49: Prima para Asegurado Titular | G49: =VLOOKUP($I$14,Tablas!$A$1054:$G$1120,3,TRUE)+75 -> 9347.175 | H49: =VLOOKUP($I$14,Tablas!$A$1054:$G$1120,4,TRUE)+75 -> 6057.075
E50: Prima para conyuge | G50: =IF($F$14=1,0,(VLOOKUP($I$16,Tablas!$A$1054:$G$1120,3,TRUE))) -> 8270.625 | H50: =IF($F$14=1,0,(VLOOKUP($I$16,Tablas!$A$1054:$G$1120,4,TRUE))) -> 5336.65
E51: Prima para hijo (s) | G51: =IF($F$14=1, (IF($F$16=0, 0, (IF($F$18>$F$16, (VLOOKUP($F$16,Tablas!$A$1121:$G$1123,3,TRUE)), (IF($F$16>4,(IF($F$18=0, (VLOOKUP(3,Tablas!$A$1121:$G$1123,3,TRUE)), (IF($F$18=1, (VLOOKUP(3,Tablas!$A$1121:$G$1123,3,TRUE)), (IF($F$18=2, (VLOOKUP(3,Tablas!$A$1121:$G$1123,3,TRUE)), (VLOOKUP(3,Tablas!$A$1121:$G$1123,3,TRUE)))))))), (IF($F$16=4,(IF(4-$F$18=0,(VLOOKUP(2,Tablas!$A$1121:$G$1123,3,TRUE)), (IF(4-$F$18=1,(VLOOKUP(2,Tablas!$A$1121:$G$1123,3,TRUE)), (IF(4-$F$18=2, (VLOOKUP(2,Tablas!$A$1121:$G$1123,3,TRUE)), (VLOOKUP(3,Tablas!$A$1121:$G$1123,3,TRUE)))))))), (IF($F$16=3,(IF(3-$F$18=0,(VLOOKUP(1,Tablas!$A$1121:$G$1123,3,TRUE)), (IF(3-$F$18=1,(VLOOKUP(1,Tablas!$A$1121:$G$1123,3,TRUE)), (IF(3-$F$18=2, (VLOOKUP(2,Tablas!$A$1121:$G$1123,3,TRUE)), (VLOOKUP(3,Tablas!$A$1121:$G$1123,3,TRUE)))))))), (IF($F$16=2,(IF(2-$F$18=0, 0, (IF(2-$F$18=1,(VLOOKUP(1,Tablas!$A$1121:$G$1123,3,TRUE)), (IF(2-$F$18=2, (VLOOKUP(2,Tablas!$A$1121:$G$1123,3,TRUE)), 0)))))), (IF($F$16=1,(IF(1-$F$18=0, 0, (IF(1-$F$18=1,(VLOOKUP(1,Tablas!$A$1121:$G$1123,3,TRUE)),0)))),0)))))))))))))), (IF($F$16=0, 0, (IF($F$18>$F$16, (VLOOKUP($F$16,Tablas!$A$1121:$G$1123,3,TRUE)), (IF($F$16=4,(IF(4-$F$18=0, 0, (IF(4-$F$18=1, (VLOOKUP(1,Tablas!$A$1121:$G$1123,3,TRUE)), (IF(4-$F$18=2, (VLOOKUP(2,Tablas!$A$1121:$G$1123,3,TRUE)), (IF(4-$F$18=3, (VLOOKUP(3,Tablas!$A$1121:$G$1123,3,TRUE)), (IF(4-$F$18=4, (VLOOKUP(3,Tablas!$A$1121:$G$1123,3,TRUE)), 0)))))))))), (IF($F$16=5,(IF(5-$F$18=0, (VLOOKUP(1,Tablas!$A$1121:$G$1123,3,TRUE)), (IF(5-$F$18=1, (VLOOKUP(1,Tablas!$A$1121:$G$1123,3,TRUE)), (IF(5-$F$18=2, (VLOOKUP(2,Tablas!$A$1121:$G$1123,3,TRUE)), (IF(5-$F$18=3, (VLOOKUP(3,Tablas!$A$1121:$G$1123,3,TRUE)), (IF(5-$F$18=4, (VLOOKUP(3,Tablas!$A$1121:$G$1123,3,TRUE)), (VLOOKUP(3,Tablas!$A$1121:$G$1123,3,TRUE)))))))))))), (IF($F$16=6,(IF(6-$F$18=0, (VLOOKUP(2,Tablas!$A$1121:$G$1123,3,TRUE)), (IF(6-$F$18=1, (VLOOKUP(2,Tablas!$A$1121:$G$1123,3,TRUE)), (IF(6-$F$18=2, (VLOOKUP(2,Tablas!$A$1121:$G$1123,3,TRUE)), (IF(6-$F$18=3, (VLOOKUP(3,Tablas!$A$1121:$G$1123,3,TRUE)), (IF(6-$F$18=4, (VLOOKUP(3,Tablas!$A$1121:$G$1123,3,TRUE)), (VLOOKUP(3,Tablas!$A$1121:$G$1123,3,TRUE)))))))))))), (IF($F$16>6,(IF(7-$F$18=0, (VLOOKUP(3,Tablas!$A$1121:$G$1123,3,TRUE)), (IF(7-$F$18=1, (VLOOKUP(3,Tablas!$A$1121:$G$1123,3,TRUE)), (IF(7-$F$18=2, (VLOOKUP(3,Tablas!$A$1121:$G$1123,3,TRUE)), (IF(7-$F$18=3, (VLOOKUP(3,Tablas!$A$1121:$G$1123,3,TRUE)), (IF(7-$F$18=4, (VLOOKUP(3,Tablas!$A$1121:$G$1123,3,TRUE)), (VLOOKUP(3,Tablas!$A$1121:$G$1123,3,TRUE)))))))))))), (IF($F$16=3,(IF(3-$F$18=0,0, (IF(3-$F$18=1,(VLOOKUP(1,Tablas!$A$1121:$G$1123,3,TRUE)), (IF(3-$F$18=2, (VLOOKUP(2,Tablas!$A$1121:$G$1123,3,TRUE)), (VLOOKUP(3,Tablas!$A$1121:$G$1123,3,TRUE)))))))), (IF($F$16=2,(IF(2-$F$18=0, 0, (IF(2-$F$18=1,(VLOOKUP(1,Tablas!$A$1121:$G$1123,3,TRUE)), (IF(2-$F$18=2, (VLOOKUP(2,Tablas!$A$1121:$G$1123,3,TRUE)), 0)))))), (IF($F$16=1,(IF(1-$F$18=0, 0, (IF(1-$F$18=1,(VLOOKUP(1,Tablas!$A$1121:$G$1123,3,TRUE)),0)))),0))))))))))))))))))) -> 4417.325 | H51: =IF($F$14=1, (IF($F$16=0, 0, (IF($F$18>$F$16, (VLOOKUP($F$16,Tablas!$A$1121:$G$1123,4,TRUE)), (IF($F$16>4,(IF($F$18=0, (VLOOKUP(3,Tablas!$A$1121:$G$1123,4,TRUE)), (IF($F$18=1, (VLOOKUP(3,Tablas!$A$1121:$G$1123,4,TRUE)), (IF($F$18=2, (VLOOKUP(3,Tablas!$A$1121:$G$1123,4,TRUE)), (VLOOKUP(3,Tablas!$A$1121:$G$1123,4,TRUE)))))))), (IF($F$16=4,(IF(4-$F$18=0,(VLOOKUP(2,Tablas!$A$1121:$G$1123,4,TRUE)), (IF(4-$F$18=1,(VLOOKUP(2,Tablas!$A$1121:$G$1123,4,TRUE)), (IF(4-$F$18=2, (VLOOKUP(2,Tablas!$A$1121:$G$1123,4,TRUE)), (VLOOKUP(3,Tablas!$A$1121:$G$1123,4,TRUE)))))))), (IF($F$16=3,(IF(3-$F$18=0,(VLOOKUP(1,Tablas!$A$1121:$G$1123,4,TRUE)), (IF(3-$F$18=1,(VLOOKUP(1,Tablas!$A$1121:$G$1123,4,TRUE)), (IF(3-$F$18=2, (VLOOKUP(2,Tablas!$A$1121:$G$1123,4,TRUE)), (VLOOKUP(3,Tablas!$A$1121:$G$1123,4,TRUE)))))))), (IF($F$16=2,(IF(2-$F$18=0, 0, (IF(2-$F$18=1,(VLOOKUP(1,Tablas!$A$1121:$G$1123,4,TRUE)), (IF(2-$F$18=2, (VLOOKUP(2,Tablas!$A$1121:$G$1123,4,TRUE)), 0)))))), (IF($F$16=1,(IF(1-$F$18=0, 0, (IF(1-$F$18=1,(VLOOKUP(1,Tablas!$A$1121:$G$1123,4,TRUE)),0)))),0)))))))))))))), (IF($F$16=0, 0, (IF($F$18>$F$16, (VLOOKUP($F$16,Tablas!$A$1121:$G$1123,4,TRUE)), (IF($F$16=4,(IF(4-$F$18=0, 0, (IF(4-$F$18=1, (VLOOKUP(1,Tablas!$A$1121:$G$1123,4,TRUE)), (IF(4-$F$18=2, (VLOOKUP(2,Tablas!$A$1121:$G$1123,4,TRUE)), (IF(4-$F$18=3, (VLOOKUP(3,Tablas!$A$1121:$G$1123,4,TRUE)), (IF(4-$F$18=4, (VLOOKUP(3,Tablas!$A$1121:$G$1123,4,TRUE)), 0)))))))))), (IF($F$16=5,(IF(5-$F$18=0, (VLOOKUP(1,Tablas!$A$1121:$G$1123,4,TRUE)), (IF(5-$F$18=1, (VLOOKUP(1,Tablas!$A$1121:$G$1123,4,TRUE)), (IF(5-$F$18=2, (VLOOKUP(2,Tablas!$A$1121:$G$1123,4,TRUE)), (IF(5-$F$18=3, (VLOOKUP(3,Tablas!$A$1121:$G$1123,4,TRUE)), (IF(5-$F$18=4, (VLOOKUP(3,Tablas!$A$1121:$G$1123,4,TRUE)), (VLOOKUP(3,Tablas!$A$1121:$G$1123,4,TRUE)))))))))))), (IF($F$16=6,(IF(6-$F$18=0, (VLOOKUP(2,Tablas!$A$1121:$G$1123,4,TRUE)), (IF(6-$F$18=1, (VLOOKUP(2,Tablas!$A$1121:$G$1123,4,TRUE)), (IF(6-$F$18=2, (VLOOKUP(2,Tablas!$A$1121:$G$1123,4,TRUE)), (IF(6-$F$18=3, (VLOOKUP(3,Tablas!$A$1121:$G$1123,4,TRUE)), (IF(6-$F$18=4, (VLOOKUP(3,Tablas!$A$1121:$G$1123,4,TRUE)), (VLOOKUP(3,Tablas!$A$1121:$G$1123,4,TRUE)))))))))))), (IF($F$16>6,(IF(7-$F$18=0, (VLOOKUP(3,Tablas!$A$1121:$G$1123,4,TRUE)), (IF(7-$F$18=1, (VLOOKUP(3,Tablas!$A$1121:$G$1123,4,TRUE)), (IF(7-$F$18=2, (VLOOKUP(3,Tablas!$A$1121:$G$1123,4,TRUE)), (IF(7-$F$18=3, (VLOOKUP(3,Tablas!$A$1121:$G$1123,4,TRUE)), (IF(7-$F$18=4, (VLOOKUP(3,Tablas!$A$1121:$G$1123,4,TRUE)), (VLOOKUP(3,Tablas!$A$1121:$G$1123,4,TRUE)))))))))))), (IF($F$16=3,(IF(3-$F$18=0,0, (IF(3-$F$18=1,(VLOOKUP(1,Tablas!$A$1121:$G$1123,4,TRUE)), (IF(3-$F$18=2, (VLOOKUP(2,Tablas!$A$1121:$G$1123,4,TRUE)), (VLOOKUP(3,Tablas!$A$1121:$G$1123,4,TRUE)))))))), (IF($F$16=2,(IF(2-$F$18=0, 0, (IF(2-$F$18=1,(VLOOKUP(1,Tablas!$A$1121:$G$1123,4,TRUE)), (IF(2-$F$18=2, (VLOOKUP(2,Tablas!$A$1121:$G$1123,4,TRUE)), 0)))))), (IF($F$16=1,(IF(1-$F$18=0, 0, (IF(1-$F$18=1,(VLOOKUP(1,Tablas!$A$1121:$G$1123,4,TRUE)),0)))),0))))))))))))))))))) -> 2849.55
E52: Total de Prima neta | G52: =SUM(G49:G51) -> 22035.125 | H52: =SUM(H49:H51) -> 14243.275
E53: Tarifa administrativa anual | G53: 0 | H53: 0
E54: Contribución 3.5% Superintendencia de Bancos Contribución 0.5% Seguro Social Campesino | G54: =(G52)*4% -> 881.405 | H54: =(H52)*4% -> 569.731
E55: TOTAL de primera cuota | G55: =SUM(G52:G54) -> 22916.53 | H55: =SUM(H52:H54) -> 14813.006
E56: Tres (3) cuotas adicionales, cada una de: | G56: =G52+G54-78 -> 22838.53 | H56: =H52+H54-78 -> 14735.006
E57: TOTAL ANUAL | G57: =G55+(G56*3) -> 91432.12 | H57: =H55+(H56*3) -> 59018.024
E58: Ahorros en tarifas de prima para niños | G58: =IF($F$14=1,IF($F$16=0,0,IF($F$18=0,0,IF($F$18=1,(VLOOKUP(1,Tablas!$A$1121:$G$1123,3,TRUE)),(VLOOKUP(2,Tablas!$A$1121:$G$1123,3,TRUE))))), IF($F$16=0,0,IF($F$18=0,0,IF($F$18=1,(VLOOKUP(1,Tablas!$A$1121:$G$1123,3,TRUE)),IF($F$18=2,(VLOOKUP(2,Tablas!$A$1121:$G$1123,3,TRUE)), (VLOOKUP(3,Tablas!$A$1121:$G$1123,3,TRUE))))))) -> 2598.475 | H58: =IF($F$14=1,IF($F$16=0,0,IF($F$18=0,0,IF($F$18=1,(VLOOKUP(1,Tablas!$A$1121:$G$1123,4,TRUE)),(VLOOKUP(2,Tablas!$A$1121:$G$1123,4,TRUE))))), IF($F$16=0,0,IF($F$18=0,0,IF($F$18=1,(VLOOKUP(1,Tablas!$A$1121:$G$1123,4,TRUE)),IF($F$18=2,(VLOOKUP(2,Tablas!$A$1121:$G$1123,4,TRUE)), (VLOOKUP(3,Tablas!$A$1121:$G$1123,4,TRUE))))))) -> 1676.4
E60: Tarifas en US$ - Efectivas a partir del 1ro. de enero de 2022
E61: Este presupuesto solamente tiene carácter informativo y en ningún momento expresa compromiso legal para suministrarle cobertura de seguro. La emisión de una póliza de seguro Bupa está sujeta a todas las evaluaciones de riesgo por parte de Bupa y a la recepción de todos los pagos de prima requeridos.

Sheet Global Health Elite
A12: RESUMEN DE BENEFICIOS | D12: Nombre del Asegurado Titular | F12: =+'INGRESO DE DATOS'!$D$15 -> Nombre Completo
D14: Número de adultos en la póliza | F14: =+'INGRESO DE DATOS'!$D$17 -> 2 | H14: Edad del Asegurado Titular | I14: =+'INGRESO DE DATOS'!$D$19 -> 42
D16: Número de niños en la póliza | F16: =+'INGRESO DE DATOS'!$H$17 -> 3 | H16: Edad del/la conyuge | I16: =+'INGRESO DE DATOS'!$H$19 -> 38
E18: Número de niños menores de 10 años | F18: =+'INGRESO DE DATOS'!$D$29 -> 2 | H18: Fecha de la cotización : | I18: =NOW() -> 2022-08-25T10:38:56.600
H19: FALSE
E20: Zona de cotización: | F20: ='INGRESO DE DATOS'!D21 -> Resto de Ecuador
E22: Deducibles | G22: PLAN 1 | H22: PLAN 2 | I22: PLAN 3 | J22: PLAN 4 | K22: PLAN 5
E23: En el país de residencia | G23: 250 | H23: 2000 | I23: 3500 | J23: 5000 | K23: 10000
E24: Fuera del país de residencia | G24: 5000 | H24: 2000 | I24: 3500 | J24: 5000 | K24: 10000
E26: Tarifas Anuales
E27: Prima para Asegurado Titular | G27: =VLOOKUP($I$14,Tablas!$A$6:$G$72,3,TRUE)+75 -> 12015.8 | H27: =VLOOKUP($I$14,Tablas!$A$6:$G$72,4,TRUE)+75 -> 10542.75 | I27: =VLOOKUP($I$14,Tablas!$A$6:$G$72,5,TRUE)+75 -> 8323.4 | J27: =VLOOKUP($I$14,Tablas!$A$6:$G$72,6,TRUE)+75 -> 7227.75 | K27: =VLOOKUP($I$14,Tablas!$A$6:$G$72,7,TRUE)+75 -> 5389.2
E28: Prima para conyuge | G28: =IF($F$14=1,0,(VLOOKUP($I$16,Tablas!$A$6:$G$72,3,TRUE))) -> 10661.55 | H28: =IF($F$14=1,0,(VLOOKUP($I$16,Tablas!$A$6:$G$72,4,TRUE))) -> 9343.2 | I28: =IF($F$14=1,0,(VLOOKUP($I$16,Tablas!$A$6:$G$72,5,TRUE))) -> 7395.85 | J28: =IF($F$14=1,0,(VLOOKUP($I$16,Tablas!$A$6:$G$72,6,TRUE))) -> 6413.25 | K28: =IF($F$14=1,0,(VLOOKUP($I$16,Tablas!$A$6:$G$72,7,TRUE))) -> 4766.8
E29: Prima para hijo (s) | G29: =IF($F$14=1, (IF($F$16=0, 0, (IF($F$18>$F$16, (VLOOKUP($F$16,Tablas!$A$73:$G$75,3,TRUE)), (IF($F$16>4,(IF($F$18=0, (VLOOKUP(3,Tablas!$A$73:$G$75,3,TRUE)), (IF($F$18=1, (VLOOKUP(3,Tablas!$A$73:$G$75,3,TRUE)), (IF($F$18=2, (VLOOKUP(3,Tablas!$A$73:$G$75,3,TRUE)), (VLOOKUP(3,Tablas!$A$73:$G$75,3,TRUE)))))))), (IF($F$16=4,(IF(4-$F$18=0,(VLOOKUP(2,Tablas!$A$73:$G$75,3,TRUE)), (IF(4-$F$18=1,(VLOOKUP(2,Tablas!$A$73:$G$75,3,TRUE)), (IF(4-$F$18=2, (VLOOKUP(2,Tablas!$A$73:$G$75,3,TRUE)), (VLOOKUP(3,Tablas!$A$73:$G$75,3,TRUE)))))))), (IF($F$16=3,(IF(3-$F$18=0,(VLOOKUP(1,Tablas!$A$73:$G$75,3,TRUE)), (IF(3-$F$18=1,(VLOOKUP(1,Tablas!$A$73:$G$75,3,TRUE)), (IF(3-$F$18=2, (VLOOKUP(2,Tablas!$A$73:$G$75,3,TRUE)), (VLOOKUP(3,Tablas!$A$73:$G$75,3,TRUE)))))))), (IF($F$16=2,(IF(2-$F$18=0, 0, (IF(2-$F$18=1,(VLOOKUP(1,Tablas!$A$73:$G$75,3,TRUE)), (IF(2-$F$18=2, (VLOOKUP(2,Tablas!$A$73:$G$75,3,TRUE)), 0)))))), (IF($F$16=1,(IF(1-$F$18=0, 0, (IF(1-$F$18=1,(VLOOKUP(1,Tablas!$A$73:$G$75,3,TRUE)),0)))),0)))))))))))))), (IF($F$16=0, 0, (IF($F$18>$F$16, (VLOOKUP($F$16,Tablas!$A$73:$G$75,3,TRUE)), (IF($F$16=4,(IF(4-$F$18=0, 0, (IF(4-$F$18=1, (VLOOKUP(1,Tablas!$A$73:$G$75,3,TRUE)), (IF(4-$F$18=2, (VLOOKUP(2,Tablas!$A$73:$G$75,3,TRUE)), (IF(4-$F$18=3, (VLOOKUP(3,Tablas!$A$73:$G$75,3,TRUE)), (IF(4-$F$18=4, (VLOOKUP(3,Tablas!$A$73:$G$75,3,TRUE)), 0)))))))))), (IF($F$16=5,(IF(5-$F$18=0, (VLOOKUP(1,Tablas!$A$73:$G$75,3,TRUE)), (IF(5-$F$18=1, (VLOOKUP(1,Tablas!$A$73:$G$75,3,TRUE)), (IF(5-$F$18=2, (VLOOKUP(2,Tablas!$A$73:$G$75,3,TRUE)), (IF(5-$F$18=3, (VLOOKUP(3,Tablas!$A$73:$G$75,3,TRUE)), (IF(5-$F$18=4, (VLOOKUP(3,Tablas!$A$73:$G$75,3,TRUE)), (VLOOKUP(3,Tablas!$A$73:$G$75,3,TRUE)))))))))))), (IF($F$16=6,(IF(6-$F$18=0, (VLOOKUP(2,Tablas!$A$73:$G$75,3,TRUE)), (IF(6-$F$18=1, (VLOOKUP(2,Tablas!$A$73:$G$75,3,TRUE)), (IF(6-$F$18=2, (VLOOKUP(2,Tablas!$A$73:$G$75,3,TRUE)), (IF(6-$F$18=3, (VLOOKUP(3,Tablas!$A$73:$G$75,3,TRUE)), (IF(6-$F$18=4, (VLOOKUP(3,Tablas!$A$73:$G$75,3,TRUE)), (VLOOKUP(3,Tablas!$A$73:$G$75,3,TRUE)))))))))))), (IF($F$16>6,(IF(7-$F$18=0, (VLOOKUP(3,Tablas!$A$73:$G$75,3,TRUE)), (IF(7-$F$18=1, (VLOOKUP(3,Tablas!$A$73:$G$75,3,TRUE)), (IF(7-$F$18=2, (VLOOKUP(3,Tablas!$A$73:$G$75,3,TRUE)), (IF(7-$F$18=3, (VLOOKUP(3,Tablas!$A$73:$G$75,3,TRUE)), (IF(7-$F$18=4, (VLOOKUP(3,Tablas!$A$73:$G$75,3,TRUE)), (VLOOKUP(3,Tablas!$A$73:$G$75,3,TRUE)))))))))))), (IF($F$16=3,(IF(3-$F$18=0,0, (IF(3-$F$18=1,(VLOOKUP(1,Tablas!$A$73:$G$75,3,TRUE)), (IF(3-$F$18=2, (VLOOKUP(2,Tablas!$A$73:$G$75,3,TRUE)), (VLOOKUP(3,Tablas!$A$73:$G$75,3,TRUE)))))))), (IF($F$16=2,(IF(2-$F$18=0, 0, (IF(2-$F$18=1,(VLOOKUP(1,Tablas!$A$73:$G$75,3,TRUE)), (IF(2-$F$18=2, (VLOOKUP(2,Tablas!$A$73:$G$75,3,TRUE)), 0)))))), (IF($F$16=1,(IF(1-$F$18=0, 0, (IF(1-$F$18=1,(VLOOKUP(1,Tablas!$A$73:$G$75,3,TRUE)),0)))),0))))))))))))))))))) -> 3394.05 | H29: =IF($F$14=1, (IF($F$16=0, 0, (IF($F$18>$F$16, (VLOOKUP($F$16,Tablas!$A$73:$G$75,4,TRUE)), (IF($F$16>4,(IF($F$18=0, (VLOOKUP(3,Tablas!$A$73:$G$75,4,TRUE)), (IF($F$18=1, (VLOOKUP(3,Tablas!$A$73:$G$75,4,TRUE)), (IF($F$18=2, (VLOOKUP(3,Tablas!$A$73:$G$75,4,TRUE)), (VLOOKUP(3,Tablas!$A$73:$G$75,4,TRUE)))))))), (IF($F$16=4,(IF(4-$F$18=0,(VLOOKUP(2,Tablas!$A$73:$G$75,4,TRUE)), (IF(4-$F$18=1,(VLOOKUP(2,Tablas!$A$73:$G$75,4,TRUE)), (IF(4-$F$18=2, (VLOOKUP(2,Tablas!$A$73:$G$75,4,TRUE)), (VLOOKUP(3,Tablas!$A$73:$G$75,4,TRUE)))))))), (IF($F$16=3,(IF(3-$F$18=0,(VLOOKUP(1,Tablas!$A$73:$G$75,4,TRUE)), (IF(3-$F$18=1,(VLOOKUP(1,Tablas!$A$73:$G$75,4,TRUE)), (IF(3-$F$18=2, (VLOOKUP(2,Tablas!$A$73:$G$75,4,TRUE)), (VLOOKUP(3,Tablas!$A$73:$G$75,4,TRUE)))))))), (IF($F$16=2,(IF(2-$F$18=0, 0, (IF(2-$F$18=1,(VLOOKUP(1,Tablas!$A$73:$G$75,4,TRUE)), (IF(2-$F$18=2, (VLOOKUP(2,Tablas!$A$73:$G$75,4,TRUE)), 0)))))), (IF($F$16=1,(IF(1-$F$18=0, 0, (IF(1-$F$18=1,(VLOOKUP(1,Tablas!$A$73:$G$75,4,TRUE)),0)))),0)))))))))))))), (IF($F$16=0, 0, (IF($F$18>$F$16, (VLOOKUP($F$16,Tablas!$A$73:$G$75,4,TRUE)), (IF($F$16=4,(IF(4-$F$18=0, 0, (IF(4-$F$18=1, (VLOOKUP(1,Tablas!$A$73:$G$75,4,TRUE)), (IF(4-$F$18=2, (VLOOKUP(2,Tablas!$A$73:$G$75,4,TRUE)), (IF(4-$F$18=3, (VLOOKUP(3,Tablas!$A$73:$G$75,4,TRUE)), (IF(4-$F$18=4, (VLOOKUP(3,Tablas!$A$73:$G$75,4,TRUE)), 0)))))))))), (IF($F$16=5,(IF(5-$F$18=0, (VLOOKUP(1,Tablas!$A$73:$G$75,4,TRUE)), (IF(5-$F$18=1, (VLOOKUP(1,Tablas!$A$73:$G$75,4,TRUE)), (IF(5-$F$18=2, (VLOOKUP(2,Tablas!$A$73:$G$75,4,TRUE)), (IF(5-$F$18=3, (VLOOKUP(3,Tablas!$A$73:$G$75,4,TRUE)), (IF(5-$F$18=4, (VLOOKUP(3,Tablas!$A$73:$G$75,4,TRUE)), (VLOOKUP(3,Tablas!$A$73:$G$75,4,TRUE)))))))))))), (IF($F$16=6,(IF(6-$F$18=0, (VLOOKUP(2,Tablas!$A$73:$G$75,4,TRUE)), (IF(6-$F$18=1, (VLOOKUP(2,Tablas!$A$73:$G$75,4,TRUE)), (IF(6-$F$18=2, (VLOOKUP(2,Tablas!$A$73:$G$75,4,TRUE)), (IF(6-$F$18=3, (VLOOKUP(3,Tablas!$A$73:$G$75,4,TRUE)), (IF(6-$F$18=4, (VLOOKUP(3,Tablas!$A$73:$G$75,4,TRUE)), (VLOOKUP(3,Tablas!$A$73:$G$75,4,TRUE)))))))))))), (IF($F$16>6,(IF(7-$F$18=0, (VLOOKUP(3,Tablas!$A$73:$G$75,4,TRUE)), (IF(7-$F$18=1, (VLOOKUP(3,Tablas!$A$73:$G$75,4,TRUE)), (IF(7-$F$18=2, (VLOOKUP(3,Tablas!$A$73:$G$75,4,TRUE)), (IF(7-$F$18=3, (VLOOKUP(3,Tablas!$A$73:$G$75,4,TRUE)), (IF(7-$F$18=4, (VLOOKUP(3,Tablas!$A$73:$G$75,4,TRUE)), (VLOOKUP(3,Tablas!$A$73:$G$75,4,TRUE)))))))))))), (IF($F$16=3,(IF(3-$F$18=0,0, (IF(3-$F$18=1,(VLOOKUP(1,Tablas!$A$73:$G$75,4,TRUE)), (IF(3-$F$18=2, (VLOOKUP(2,Tablas!$A$73:$G$75,4,TRUE)), (VLOOKUP(3,Tablas!$A$73:$G$75,4,TRUE)))))))), (IF($F$16=2,(IF(2-$F$18=0, 0, (IF(2-$F$18=1,(VLOOKUP(1,Tablas!$A$73:$G$75,4,TRUE)), (IF(2-$F$18=2, (VLOOKUP(2,Tablas!$A$73:$G$75,4,TRUE)), 0)))))), (IF($F$16=1,(IF(1-$F$18=0, 0, (IF(1-$F$18=1,(VLOOKUP(1,Tablas!$A$73:$G$75,4,TRUE)),0)))),0))))))))))))))))))) -> 2977.55 | I29: =IF($F$14=1, (IF($F$16=0, 0, (IF($F$18>$F$16, (VLOOKUP($F$16,Tablas!$A$73:$G$75,5,TRUE)), (IF($F$16>4,(IF($F$18=0, (VLOOKUP(3,Tablas!$A$73:$G$75,5,TRUE)), (IF($F$18=1, (VLOOKUP(3,Tablas!$A$73:$G$75,5,TRUE)), (IF($F$18=2, (VLOOKUP(3,Tablas!$A$73:$G$75,5,TRUE)), (VLOOKUP(3,Tablas!$A$73:$G$75,5,TRUE)))))))), (IF($F$16=4,(IF(4-$F$18=0,(VLOOKUP(2,Tablas!$A$73:$G$75,5,TRUE)), (IF(4-$F$18=1,(VLOOKUP(2,Tablas!$A$73:$G$75,5,TRUE)), (IF(4-$F$18=2, (VLOOKUP(2,Tablas!$A$73:$G$75,5,TRUE)), (VLOOKUP(3,Tablas!$A$73:$G$75,5,TRUE)))))))), (IF($F$16=3,(IF(3-$F$18=0,(VLOOKUP(1,Tablas!$A$73:$G$75,5,TRUE)), (IF(3-$F$18=1,(VLOOKUP(1,Tablas!$A$73:$G$75,5,TRUE)), (IF(3-$F$18=2, (VLOOKUP(2,Tablas!$A$73:$G$75,5,TRUE)), (VLOOKUP(3,Tablas!$A$73:$G$75,5,TRUE)))))))), (IF($F$16=2,(IF(2-$F$18=0, 0, (IF(2-$F$18=1,(VLOOKUP(1,Tablas!$A$73:$G$75,5,TRUE)), (IF(2-$F$18=2, (VLOOKUP(2,Tablas!$A$73:$G$75,5,TRUE)), 0)))))), (IF($F$16=1,(IF(1-$F$18=0, 0, (IF(1-$F$18=1,(VLOOKUP(1,Tablas!$A$73:$G$75,5,TRUE)),0)))),0)))))))))))))), (IF($F$16=0, 0, (IF($F$18>$F$16, (VLOOKUP($F$16,Tablas!$A$73:$G$75,5,TRUE)), (IF($F$16=4,(IF(4-$F$18=0, 0, (IF(4-$F$18=1, (VLOOKUP(1,Tablas!$A$73:$G$75,5,TRUE)), (IF(4-$F$18=2, (VLOOKUP(2,Tablas!$A$73:$G$75,5,TRUE)), (IF(4-$F$18=3, (VLOOKUP(3,Tablas!$A$73:$G$75,5,TRUE)), (IF(4-$F$18=4, (VLOOKUP(3,Tablas!$A$73:$G$75,5,TRUE)), 0)))))))))), (IF($F$16=5,(IF(5-$F$18=0, (VLOOKUP(1,Tablas!$A$73:$G$75,5,TRUE)), (IF(5-$F$18=1, (VLOOKUP(1,Tablas!$A$73:$G$75,5,TRUE)), (IF(5-$F$18=2, (VLOOKUP(2,Tablas!$A$73:$G$75,5,TRUE)), (IF(5-$F$18=3, (VLOOKUP(3,Tablas!$A$73:$G$75,5,TRUE)), (IF(5-$F$18=4, (VLOOKUP(3,Tablas!$A$73:$G$75,5,TRUE)), (VLOOKUP(3,Tablas!$A$73:$G$75,5,TRUE)))))))))))), (IF($F$16=6,(IF(6-$F$18=0, (VLOOKUP(2,Tablas!$A$73:$G$75,5,TRUE)), (IF(6-$F$18=1, (VLOOKUP(2,Tablas!$A$73:$G$75,5,TRUE)), (IF(6-$F$18=2, (VLOOKUP(2,Tablas!$A$73:$G$75,5,TRUE)), (IF(6-$F$18=3, (VLOOKUP(3,Tablas!$A$73:$G$75,5,TRUE)), (IF(6-$F$18=4, (VLOOKUP(3,Tablas!$A$73:$G$75,5,TRUE)), (VLOOKUP(3,Tablas!$A$73:$G$75,5,TRUE)))))))))))), (IF($F$16>6,(IF(7-$F$18=0, (VLOOKUP(3,Tablas!$A$73:$G$75,5,TRUE)), (IF(7-$F$18=1, (VLOOKUP(3,Tablas!$A$73:$G$75,5,TRUE)), (IF(7-$F$18=2, (VLOOKUP(3,Tablas!$A$73:$G$75,5,TRUE)), (IF(7-$F$18=3, (VLOOKUP(3,Tablas!$A$73:$G$75,5,TRUE)), (IF(7-$F$18=4, (VLOOKUP(3,Tablas!$A$73:$G$75,5,TRUE)), (VLOOKUP(3,Tablas!$A$73:$G$75,5,TRUE)))))))))))), (IF($F$16=3,(IF(3-$F$18=0,0, (IF(3-$F$18=1,(VLOOKUP(1,Tablas!$A$73:$G$75,5,TRUE)), (IF(3-$F$18=2, (VLOOKUP(2,Tablas!$A$73:$G$75,5,TRUE)), (VLOOKUP(3,Tablas!$A$73:$G$75,5,TRUE)))))))), (IF($F$16=2,(IF(2-$F$18=0, 0, (IF(2-$F$18=1,(VLOOKUP(1,Tablas!$A$73:$G$75,5,TRUE)), (IF(2-$F$18=2, (VLOOKUP(2,Tablas!$A$73:$G$75,5,TRUE)), 0)))))), (IF($F$16=1,(IF(1-$F$18=0, 0, (IF(1-$F$18=1,(VLOOKUP(1,Tablas!$A$73:$G$75,5,TRUE)),0)))),0))))))))))))))))))) -> 2419.95 | J29: =IF($F$14=1, (IF($F$16=0, 0, (IF($F$18>$F$16, (VLOOKUP($F$16,Tablas!$A$73:$G$75,6,TRUE)), (IF($F$16>4,(IF($F$18=0, (VLOOKUP(3,Tablas!$A$73:$G$75,6,TRUE)), (IF($F$18=1, (VLOOKUP(3,Tablas!$A$73:$G$75,6,TRUE)), (IF($F$18=2, (VLOOKUP(3,Tablas!$A$73:$G$75,6,TRUE)), (VLOOKUP(3,Tablas!$A$73:$G$75,6,TRUE)))))))), (IF($F$16=4,(IF(4-$F$18=0,(VLOOKUP(2,Tablas!$A$73:$G$75,6,TRUE)), (IF(4-$F$18=1,(VLOOKUP(2,Tablas!$A$73:$G$75,6,TRUE)), (IF(4-$F$18=2, (VLOOKUP(2,Tablas!$A$73:$G$75,6,TRUE)), (VLOOKUP(3,Tablas!$A$73:$G$75,6,TRUE)))))))), (IF($F$16=3,(IF(3-$F$18=0,(VLOOKUP(1,Tablas!$A$73:$G$75,6,TRUE)), (IF(3-$F$18=1,(VLOOKUP(1,Tablas!$A$73:$G$75,6,TRUE)), (IF(3-$F$18=2, (VLOOKUP(2,Tablas!$A$73:$G$75,6,TRUE)), (VLOOKUP(3,Tablas!$A$73:$G$75,6,TRUE)))))))), (IF($F$16=2,(IF(2-$F$18=0, 0, (IF(2-$F$18=1,(VLOOKUP(1,Tablas!$A$73:$G$75,6,TRUE)), (IF(2-$F$18=2, (VLOOKUP(2,Tablas!$A$73:$G$75,6,TRUE)), 0)))))), (IF($F$16=1,(IF(1-$F$18=0, 0, (IF(1-$F$18=1,(VLOOKUP(1,Tablas!$A$73:$G$75,6,TRUE)),0)))),0)))))))))))))), (IF($F$16=0, 0, (IF($F$18>$F$16, (VLOOKUP($F$16,Tablas!$A$73:$G$75,6,TRUE)), (IF($F$16=4,(IF(4-$F$18=0, 0, (IF(4-$F$18=1, (VLOOKUP(1,Tablas!$A$73:$G$75,6,TRUE)), (IF(4-$F$18=2, (VLOOKUP(2,Tablas!$A$73:$G$75,6,TRUE)), (IF(4-$F$18=3, (VLOOKUP(3,Tablas!$A$73:$G$75,6,TRUE)), (IF(4-$F$18=4, (VLOOKUP(3,Tablas!$A$73:$G$75,6,TRUE)), 0)))))))))), (IF($F$16=5,(IF(5-$F$18=0, (VLOOKUP(1,Tablas!$A$73:$G$75,6,TRUE)), (IF(5-$F$18=1, (VLOOKUP(1,Tablas!$A$73:$G$75,6,TRUE)), (IF(5-$F$18=2, (VLOOKUP(2,Tablas!$A$73:$G$75,6,TRUE)), (IF(5-$F$18=3, (VLOOKUP(3,Tablas!$A$73:$G$75,6,TRUE)), (IF(5-$F$18=4, (VLOOKUP(3,Tablas!$A$73:$G$75,6,TRUE)), (VLOOKUP(3,Tablas!$A$73:$G$75,6,TRUE)))))))))))), (IF($F$16=6,(IF(6-$F$18=0, (VLOOKUP(2,Tablas!$A$73:$G$75,6,TRUE)), (IF(6-$F$18=1, (VLOOKUP(2,Tablas!$A$73:$G$75,6,TRUE)), (IF(6-$F$18=2, (VLOOKUP(2,Tablas!$A$73:$G$75,6,TRUE)), (IF(6-$F$18=3, (VLOOKUP(3,Tablas!$A$73:$G$75,6,TRUE)), (IF(6-$F$18=4, (VLOOKUP(3,Tablas!$A$73:$G$75,6,TRUE)), (VLOOKUP(3,Tablas!$A$73:$G$75,6,TRUE)))))))))))), (IF($F$16>6,(IF(7-$F$18=0, (VLOOKUP(3,Tablas!$A$73:$G$75,6,TRUE)), (IF(7-$F$18=1, (VLOOKUP(3,Tablas!$A$73:$G$75,6,TRUE)), (IF(7-$F$18=2, (VLOOKUP(3,Tablas!$A$73:$G$75,6,TRUE)), (IF(7-$F$18=3, (VLOOKUP(3,Tablas!$A$73:$G$75,6,TRUE)), (IF(7-$F$18=4, (VLOOKUP(3,Tablas!$A$73:$G$75,6,TRUE)), (VLOOKUP(3,Tablas!$A$73:$G$75,6,TRUE)))))))))))), (IF($F$16=3,(IF(3-$F$18=0,0, (IF(3-$F$18=1,(VLOOKUP(1,Tablas!$A$73:$G$75,6,TRUE)), (IF(3-$F$18=2, (VLOOKUP(2,Tablas!$A$73:$G$75,6,TRUE)), (VLOOKUP(3,Tablas!$A$73:$G$75,6,TRUE)))))))), (IF($F$16=2,(IF(2-$F$18=0, 0, (IF(2-$F$18=1,(VLOOKUP(1,Tablas!$A$73:$G$75,6,TRUE)), (IF(2-$F$18=2, (VLOOKUP(2,Tablas!$A$73:$G$75,6,TRUE)), 0)))))), (IF($F$16=1,(IF(1-$F$18=0, 0, (IF(1-$F$18=1,(VLOOKUP(1,Tablas!$A$73:$G$75,6,TRUE)),0)))),0))))))))))))))))))) -> 2099.5 | K29: =IF($F$14=1, (IF($F$16=0, 0, (IF($F$18>$F$16, (VLOOKUP($F$16,Tablas!$A$73:$G$75,7,TRUE)), (IF($F$16>4,(IF($F$18=0, (VLOOKUP(3,Tablas!$A$73:$G$75,7,TRUE)), (IF($F$18=1, (VLOOKUP(3,Tablas!$A$73:$G$75,7,TRUE)), (IF($F$18=2, (VLOOKUP(3,Tablas!$A$73:$G$75,7,TRUE)), (VLOOKUP(3,Tablas!$A$73:$G$75,7,TRUE)))))))), (IF($F$16=4,(IF(4-$F$18=0,(VLOOKUP(2,Tablas!$A$73:$G$75,7,TRUE)), (IF(4-$F$18=1,(VLOOKUP(2,Tablas!$A$73:$G$75,7,TRUE)), (IF(4-$F$18=2, (VLOOKUP(2,Tablas!$A$73:$G$75,7,TRUE)), (VLOOKUP(3,Tablas!$A$73:$G$75,7,TRUE)))))))), (IF($F$16=3,(IF(3-$F$18=0,(VLOOKUP(1,Tablas!$A$73:$G$75,7,TRUE)), (IF(3-$F$18=1,(VLOOKUP(1,Tablas!$A$73:$G$75,7,TRUE)), (IF(3-$F$18=2, (VLOOKUP(2,Tablas!$A$73:$G$75,7,TRUE)), (VLOOKUP(3,Tablas!$A$73:$G$75,7,TRUE)))))))), (IF($F$16=2,(IF(2-$F$18=0, 0, (IF(2-$F$18=1,(VLOOKUP(1,Tablas!$A$73:$G$75,7,TRUE)), (IF(2-$F$18=2, (VLOOKUP(2,Tablas!$A$73:$G$75,7,TRUE)), 0)))))), (IF($F$16=1,(IF(1-$F$18=0, 0, (IF(1-$F$18=1,(VLOOKUP(1,Tablas!$A$73:$G$75,7,TRUE)),0)))),0)))))))))))))), (IF($F$16=0, 0, (IF($F$18>$F$16, (VLOOKUP($F$16,Tablas!$A$73:$G$75,7,TRUE)), (IF($F$16=4,(IF(4-$F$18=0, 0, (IF(4-$F$18=1, (VLOOKUP(1,Tablas!$A$73:$G$75,7,TRUE)), (IF(4-$F$18=2, (VLOOKUP(2,Tablas!$A$73:$G$75,7,TRUE)), (IF(4-$F$18=3, (VLOOKUP(3,Tablas!$A$73:$G$75,7,TRUE)), (IF(4-$F$18=4, (VLOOKUP(3,Tablas!$A$73:$G$75,7,TRUE)), 0)))))))))), (IF($F$16=5,(IF(5-$F$18=0, (VLOOKUP(1,Tablas!$A$73:$G$75,7,TRUE)), (IF(5-$F$18=1, (VLOOKUP(1,Tablas!$A$73:$G$75,7,TRUE)), (IF(5-$F$18=2, (VLOOKUP(2,Tablas!$A$73:$G$75,7,TRUE)), (IF(5-$F$18=3, (VLOOKUP(3,Tablas!$A$73:$G$75,7,TRUE)), (IF(5-$F$18=4, (VLOOKUP(3,Tablas!$A$73:$G$75,7,TRUE)), (VLOOKUP(3,Tablas!$A$73:$G$75,7,TRUE)))))))))))), (IF($F$16=6,(IF(6-$F$18=0, (VLOOKUP(2,Tablas!$A$73:$G$75,7,TRUE)), (IF(6-$F$18=1, (VLOOKUP(2,Tablas!$A$73:$G$75,7,TRUE)), (IF(6-$F$18=2, (VLOOKUP(2,Tablas!$A$73:$G$75,7,TRUE)), (IF(6-$F$18=3, (VLOOKUP(3,Tablas!$A$73:$G$75,7,TRUE)), (IF(6-$F$18=4, (VLOOKUP(3,Tablas!$A$73:$G$75,7,TRUE)), (VLOOKUP(3,Tablas!$A$73:$G$75,7,TRUE)))))))))))), (IF($F$16>6,(IF(7-$F$18=0, (VLOOKUP(3,Tablas!$A$73:$G$75,7,TRUE)), (IF(7-$F$18=1, (VLOOKUP(3,Tablas!$A$73:$G$75,7,TRUE)), (IF(7-$F$18=2, (VLOOKUP(3,Tablas!$A$73:$G$75,7,TRUE)), (IF(7-$F$18=3, (VLOOKUP(3,Tablas!$A$73:$G$75,7,TRUE)), (IF(7-$F$18=4, (VLOOKUP(3,Tablas!$A$73:$G$75,7,TRUE)), (VLOOKUP(3,Tablas!$A$73:$G$75,7,TRUE)))))))))))), (IF($F$16=3,(IF(3-$F$18=0,0, (IF(3-$F$18=1,(VLOOKUP(1,Tablas!$A$73:$G$75,7,TRUE)), (IF(3-$F$18=2, (VLOOKUP(2,Tablas!$A$73:$G$75,7,TRUE)), (VLOOKUP(3,Tablas!$A$73:$G$75,7,TRUE)))))))), (IF($F$16=2,(IF(2-$F$18=0, 0, (IF(2-$F$18=1,(VLOOKUP(1,Tablas!$A$73:$G$75,7,TRUE)), (IF(2-$F$18=2, (VLOOKUP(2,Tablas!$A$73:$G$75,7,TRUE)), 0)))))), (IF($F$16=1,(IF(1-$F$18=0, 0, (IF(1-$F$18=1,(VLOOKUP(1,Tablas!$A$73:$G$75,7,TRUE)),0)))),0))))))))))))))))))) -> 1560.6
E30: Total de Prima neta | G30: =SUM(G27:G29) -> 26071.4 | H30: =SUM(H27:H29) -> 22863.5 | I30: 18139.2 | J30: =SUM(J27:J29) -> 15740.5 | K30: 11716.6
E31: Tarifa administrativa anual | G31: 0 | H31: 0 | I31: 0 | J31: 0 | K31: 0
E32: Contribución 3.5% Superintendencia de Bancos Contribución 0.5% Seguro Social Campesino | G32: =(G30)*4% -> 1042.856 | H32: =(H30)*4% -> 914.54 | I32: =(I30)*4% -> 725.568 | J32: =(J30)*4% -> 629.62 | K32: =(K30)*4% -> 468.664
E33: TOTAL ANUAL | G33: =SUM(G30:G32) -> 27114.256 | H33: =SUM(H30:H32) -> 23778.04 | I33: =SUM(I30:I32) -> 18864.768 | J33: =SUM(J30:J32) -> 16370.12 | K33: =SUM(K30:K32) -> 12185.264
E34: Ahorros en tarifas de prima para niños | G34: =IF($F$14=1,IF($F$16=0,0,IF($F$18=0,0,IF($F$18=1,(VLOOKUP(1,Tablas!$A$73:$G$75,3,TRUE)),(VLOOKUP(2,Tablas!$A$73:$G$75,3,TRUE))))), IF($F$16=0,0,IF($F$18=0,0,IF($F$18=1,(VLOOKUP(1,Tablas!$A$73:$G$75,3,TRUE)),IF($F$18=2,(VLOOKUP(2,Tablas!$A$73:$G$75,3,TRUE)), (VLOOKUP(3,Tablas!$A$73:$G$75,3,TRUE))))))) -> 5772.35 | H34: =IF($F$14=1,IF($F$16=0,0,IF($F$18=0,0,IF($F$18=1,(VLOOKUP(1,Tablas!$A$73:$G$75,4,TRUE)),(VLOOKUP(2,Tablas!$A$73:$G$75,4,TRUE))))), IF($F$16=0,0,IF($F$18=0,0,IF($F$18=1,(VLOOKUP(1,Tablas!$A$73:$G$75,4,TRUE)),IF($F$18=2,(VLOOKUP(2,Tablas!$A$73:$G$75,4,TRUE)), (VLOOKUP(3,Tablas!$A$73:$G$75,4,TRUE))))))) -> 5059.2 | I34: =IF($F$14=1,IF($F$16=0,0,IF($F$18=0,0,IF($F$18=1,(VLOOKUP(1,Tablas!$A$73:$G$75,5,TRUE)),(VLOOKUP(2,Tablas!$A$73:$G$75,5,TRUE))))), IF($F$16=0,0,IF($F$18=0,0,IF($F$18=1,(VLOOKUP(1,Tablas!$A$73:$G$75,5,TRUE)),IF($F$18=2,(VLOOKUP(2,Tablas!$A$73:$G$75,5,TRUE)), (VLOOKUP(3,Tablas!$A$73:$G$75,5,TRUE))))))) -> 4109.75 | J34: =IF($F$14=1,IF($F$16=0,0,IF($F$18=0,0,IF($F$18=1,(VLOOKUP(1,Tablas!$A$73:$G$75,6,TRUE)),(VLOOKUP(2,Tablas!$A$73:$G$75,6,TRUE))))), IF($F$16=0,0,IF($F$18=0,0,IF($F$18=1,(VLOOKUP(1,Tablas!$A$73:$G$75,6,TRUE)),IF($F$18=2,(VLOOKUP(2,Tablas!$A$73:$G$75,6,TRUE)), (VLOOKUP(3,Tablas!$A$73:$G$75,6,TRUE))))))) -> 3564.9 | K34: =IF($F$14=1,IF($F$16=0,0,IF($F$18=0,0,IF($F$18=1,(VLOOKUP(1,Tablas!$A$73:$G$75,5,TRUE)),(VLOOKUP(2,Tablas!$A$73:$G$75,5,TRUE))))), IF($F$16=0,0,IF($F$18=0,0,IF($F$18=1,(VLOOKUP(1,Tablas!$A$73:$G$75,5,TRUE)),IF($F$18=2,(VLOOKUP(2,Tablas!$A$73:$G$75,5,TRUE)), (VLOOKUP(3,Tablas!$A$73:$G$75,5,TRUE))))))) -> 4109.75
E36: Tarifas Semianuales
E37: Prima para Asegurado Titular | G37: =VLOOKUP($I$14,Tablas!$A$455:$G$521,3,TRUE)+75 -> 6403.624 | H37: =VLOOKUP($I$14,Tablas!$A$455:$G$521,4,TRUE)+75 -> 5622.9075 | I37: =VLOOKUP($I$14,Tablas!$A$455:$G$521,5,TRUE)+75 -> 4446.652 | J37: =VLOOKUP($I$14,Tablas!$A$455:$G$521,6,TRUE)+75 -> 3865.9575 | K37: =VLOOKUP($I$14,Tablas!$A$455:$G$521,7,TRUE)+75 -> 2891.526
E38: Prima para conyuge | G38: =IF($F$14=1,0,(VLOOKUP($I$16,Tablas!$A$455:$G$521,3,TRUE))) -> 5650.6215 | H38: =IF($F$14=1,0,(VLOOKUP($I$16,Tablas!$A$455:$G$521,4,TRUE))) -> 4951.896 | I38: =IF($F$14=1,0,(VLOOKUP($I$16,Tablas!$A$455:$G$521,5,TRUE))) -> 3919.8005 | J38: =IF($F$14=1,0,(VLOOKUP($I$16,Tablas!$A$455:$G$521,6,TRUE))) -> 3399.0225 | K38: =IF($F$14=1,0,(VLOOKUP($I$16,Tablas!$A$455:$G$521,7,TRUE))) -> 2526.404
E39: Prima para hijo (s) | G39: =IF($F$14=1, (IF($F$16=0, 0, (IF($F$18>$F$16, (VLOOKUP($F$16,Tablas!$A$522:$G$524,3,TRUE)), (IF($F$16>4,(IF($F$18=0, (VLOOKUP(3,Tablas!$A$522:$G$524,3,TRUE)), (IF($F$18=1, (VLOOKUP(3,Tablas!$A$522:$G$524,3,TRUE)), (IF($F$18=2, (VLOOKUP(3,Tablas!$A$522:$G$524,3,TRUE)), (VLOOKUP(3,Tablas!$A$522:$G$524,3,TRUE)))))))), (IF($F$16=4,(IF(4-$F$18=0,(VLOOKUP(2,Tablas!$A$522:$G$524,3,TRUE)), (IF(4-$F$18=1,(VLOOKUP(2,Tablas!$A$522:$G$524,3,TRUE)), (IF(4-$F$18=2, (VLOOKUP(2,Tablas!$A$522:$G$524,3,TRUE)), (VLOOKUP(3,Tablas!$A$522:$G$524,3,TRUE)))))))), (IF($F$16=3,(IF(3-$F$18=0,(VLOOKUP(1,Tablas!$A$522:$G$524,3,TRUE)), (IF(3-$F$18=1,(VLOOKUP(1,Tablas!$A$522:$G$524,3,TRUE)), (IF(3-$F$18=2, (VLOOKUP(2,Tablas!$A$522:$G$524,3,TRUE)), (VLOOKUP(3,Tablas!$A$522:$G$524,3,TRUE)))))))), (IF($F$16=2,(IF(2-$F$18=0, 0, (IF(2-$F$18=1,(VLOOKUP(1,Tablas!$A$522:$G$524,3,TRUE)), (IF(2-$F$18=2, (VLOOKUP(2,Tablas!$A$522:$G$524,3,TRUE)), 0)))))), (IF($F$16=1,(IF(1-$F$18=0, 0, (IF(1-$F$18=1,(VLOOKUP(1,Tablas!$A$522:$G$524,3,TRUE)),0)))),0)))))))))))))), (IF($F$16=0, 0, (IF($F$18>$F$16, (VLOOKUP($F$16,Tablas!$A$522:$G$524,3,TRUE)), (IF($F$16=4,(IF(4-$F$18=0, 0, (IF(4-$F$18=1, (VLOOKUP(1,Tablas!$A$522:$G$524,3,TRUE)), (IF(4-$F$18=2, (VLOOKUP(2,Tablas!$A$522:$G$524,3,TRUE)), (IF(4-$F$18=3, (VLOOKUP(3,Tablas!$A$522:$G$524,3,TRUE)), (IF(4-$F$18=4, (VLOOKUP(3,Tablas!$A$522:$G$524,3,TRUE)), 0)))))))))), (IF($F$16=5,(IF(5-$F$18=0, (VLOOKUP(1,Tablas!$A$522:$G$524,3,TRUE)), (IF(5-$F$18=1, (VLOOKUP(1,Tablas!$A$522:$G$524,3,TRUE)), (IF(5-$F$18=2, (VLOOKUP(2,Tablas!$A$522:$G$524,3,TRUE)), (IF(5-$F$18=3, (VLOOKUP(3,Tablas!$A$522:$G$524,3,TRUE)), (IF(5-$F$18=4, (VLOOKUP(3,Tablas!$A$522:$G$524,3,TRUE)), (VLOOKUP(3,Tablas!$A$522:$G$524,3,TRUE)))))))))))), (IF($F$16=6,(IF(6-$F$18=0, (VLOOKUP(2,Tablas!$A$522:$G$524,3,TRUE)), (IF(6-$F$18=1, (VLOOKUP(2,Tablas!$A$522:$G$524,3,TRUE)), (IF(6-$F$18=2, (VLOOKUP(2,Tablas!$A$522:$G$524,3,TRUE)), (IF(6-$F$18=3, (VLOOKUP(3,Tablas!$A$522:$G$524,3,TRUE)), (IF(6-$F$18=4, (VLOOKUP(3,Tablas!$A$522:$G$524,3,TRUE)), (VLOOKUP(3,Tablas!$A$522:$G$524,3,TRUE)))))))))))), (IF($F$16>6,(IF(7-$F$18=0, (VLOOKUP(3,Tablas!$A$522:$G$524,3,TRUE)), (IF(7-$F$18=1, (VLOOKUP(3,Tablas!$A$522:$G$524,3,TRUE)), (IF(7-$F$18=2, (VLOOKUP(3,Tablas!$A$522:$G$524,3,TRUE)), (IF(7-$F$18=3, (VLOOKUP(3,Tablas!$A$522:$G$524,3,TRUE)), (IF(7-$F$18=4, (VLOOKUP(3,Tablas!$A$522:$G$524,3,TRUE)), (VLOOKUP(3,Tablas!$A$522:$G$524,3,TRUE)))))))))))), (IF($F$16=3,(IF(3-$F$18=0,0, (IF(3-$F$18=1,(VLOOKUP(1,Tablas!$A$522:$G$524,3,TRUE)), (IF(3-$F$18=2, (VLOOKUP(2,Tablas!$A$522:$G$524,3,TRUE)), (VLOOKUP(3,Tablas!$A$522:$G$524,3,TRUE)))))))), (IF($F$16=2,(IF(2-$F$18=0, 0, (IF(2-$F$18=1,(VLOOKUP(1,Tablas!$A$522:$G$524,3,TRUE)), (IF(2-$F$18=2, (VLOOKUP(2,Tablas!$A$522:$G$524,3,TRUE)), 0)))))), (IF($F$16=1,(IF(1-$F$18=0, 0, (IF(1-$F$18=1,(VLOOKUP(1,Tablas!$A$522:$G$524,3,TRUE)),0)))),0))))))))))))))))))) -> 1798.8465 | H39: =IF($F$14=1, (IF($F$16=0, 0, (IF($F$18>$F$16, (VLOOKUP($F$16,Tablas!$A$522:$G$524,4,TRUE)), (IF($F$16>4,(IF($F$18=0, (VLOOKUP(3,Tablas!$A$522:$G$524,4,TRUE)), (IF($F$18=1, (VLOOKUP(3,Tablas!$A$522:$G$524,4,TRUE)), (IF($F$18=2, (VLOOKUP(3,Tablas!$A$522:$G$524,4,TRUE)), (VLOOKUP(3,Tablas!$A$522:$G$524,4,TRUE)))))))), (IF($F$16=4,(IF(4-$F$18=0,(VLOOKUP(2,Tablas!$A$522:$G$524,4,TRUE)), (IF(4-$F$18=1,(VLOOKUP(2,Tablas!$A$522:$G$524,4,TRUE)), (IF(4-$F$18=2, (VLOOKUP(2,Tablas!$A$522:$G$524,4,TRUE)), (VLOOKUP(3,Tablas!$A$522:$G$524,4,TRUE)))))))), (IF($F$16=3,(IF(3-$F$18=0,(VLOOKUP(1,Tablas!$A$522:$G$524,4,TRUE)), (IF(3-$F$18=1,(VLOOKUP(1,Tablas!$A$522:$G$524,4,TRUE)), (IF(3-$F$18=2, (VLOOKUP(2,Tablas!$A$522:$G$524,4,TRUE)), (VLOOKUP(3,Tablas!$A$522:$G$524,4,TRUE)))))))), (IF($F$16=2,(IF(2-$F$18=0, 0, (IF(2-$F$18=1,(VLOOKUP(1,Tablas!$A$522:$G$524,4,TRUE)), (IF(2-$F$18=2, (VLOOKUP(2,Tablas!$A$522:$G$524,4,TRUE)), 0)))))), (IF($F$16=1,(IF(1-$F$18=0, 0, (IF(1-$F$18=1,(VLOOKUP(1,Tablas!$A$522:$G$524,4,TRUE)),0)))),0)))))))))))))), (IF($F$16=0, 0, (IF($F$18>$F$16, (VLOOKUP($F$16,Tablas!$A$522:$G$524,4,TRUE)), (IF($F$16=4,(IF(4-$F$18=0, 0, (IF(4-$F$18=1, (VLOOKUP(1,Tablas!$A$522:$G$524,4,TRUE)), (IF(4-$F$18=2, (VLOOKUP(2,Tablas!$A$522:$G$524,4,TRUE)), (IF(4-$F$18=3, (VLOOKUP(3,Tablas!$A$522:$G$524,4,TRUE)), (IF(4-$F$18=4, (VLOOKUP(3,Tablas!$A$522:$G$524,4,TRUE)), 0)))))))))), (IF($F$16=5,(IF(5-$F$18=0, (VLOOKUP(1,Tablas!$A$522:$G$524,4,TRUE)), (IF(5-$F$18=1, (VLOOKUP(1,Tablas!$A$522:$G$524,4,TRUE)), (IF(5-$F$18=2, (VLOOKUP(2,Tablas!$A$522:$G$524,4,TRUE)), (IF(5-$F$18=3, (VLOOKUP(3,Tablas!$A$522:$G$524,4,TRUE)), (IF(5-$F$18=4, (VLOOKUP(3,Tablas!$A$522:$G$524,4,TRUE)), (VLOOKUP(3,Tablas!$A$522:$G$524,4,TRUE)))))))))))), (IF($F$16=6,(IF(6-$F$18=0, (VLOOKUP(2,Tablas!$A$522:$G$524,4,TRUE)), (IF(6-$F$18=1, (VLOOKUP(2,Tablas!$A$522:$G$524,4,TRUE)), (IF(6-$F$18=2, (VLOOKUP(2,Tablas!$A$522:$G$524,4,TRUE)), (IF(6-$F$18=3, (VLOOKUP(3,Tablas!$A$522:$G$524,4,TRUE)), (IF(6-$F$18=4, (VLOOKUP(3,Tablas!$A$522:$G$524,4,TRUE)), (VLOOKUP(3,Tablas!$A$522:$G$524,4,TRUE)))))))))))), (IF($F$16>6,(IF(7-$F$18=0, (VLOOKUP(3,Tablas!$A$522:$G$524,4,TRUE)), (IF(7-$F$18=1, (VLOOKUP(3,Tablas!$A$522:$G$524,4,TRUE)), (IF(7-$F$18=2, (VLOOKUP(3,Tablas!$A$522:$G$524,4,TRUE)), (IF(7-$F$18=3, (VLOOKUP(3,Tablas!$A$522:$G$524,4,TRUE)), (IF(7-$F$18=4, (VLOOKUP(3,Tablas!$A$522:$G$524,4,TRUE)), (VLOOKUP(3,Tablas!$A$522:$G$524,4,TRUE)))))))))))), (IF($F$16=3,(IF(3-$F$18=0,0, (IF(3-$F$18=1,(VLOOKUP(1,Tablas!$A$522:$G$524,4,TRUE)), (IF(3-$F$18=2, (VLOOKUP(2,Tablas!$A$522:$G$524,4,TRUE)), (VLOOKUP(3,Tablas!$A$522:$G$524,4,TRUE)))))))), (IF($F$16=2,(IF(2-$F$18=0, 0, (IF(2-$F$18=1,(VLOOKUP(1,Tablas!$A$522:$G$524,4,TRUE)), (IF(2-$F$18=2, (VLOOKUP(2,Tablas!$A$522:$G$524,4,TRUE)), 0)))))), (IF($F$16=1,(IF(1-$F$18=0, 0, (IF(1-$F$18=1,(VLOOKUP(1,Tablas!$A$522:$G$524,4,TRUE)),0)))),0))))))))))))))))))) -> 1578.1015 | I39: =IF($F$14=1, (IF($F$16=0, 0, (IF($F$18>$F$16, (VLOOKUP($F$16,Tablas!$A$522:$G$524,5,TRUE)), (IF($F$16>4,(IF($F$18=0, (VLOOKUP(3,Tablas!$A$522:$G$524,5,TRUE)), (IF($F$18=1, (VLOOKUP(3,Tablas!$A$522:$G$524,5,TRUE)), (IF($F$18=2, (VLOOKUP(3,Tablas!$A$522:$G$524,5,TRUE)), (VLOOKUP(3,Tablas!$A$522:$G$524,5,TRUE)))))))), (IF($F$16=4,(IF(4-$F$18=0,(VLOOKUP(2,Tablas!$A$522:$G$524,5,TRUE)), (IF(4-$F$18=1,(VLOOKUP(2,Tablas!$A$522:$G$524,5,TRUE)), (IF(4-$F$18=2, (VLOOKUP(2,Tablas!$A$522:$G$524,5,TRUE)), (VLOOKUP(3,Tablas!$A$522:$G$524,5,TRUE)))))))), (IF($F$16=3,(IF(3-$F$18=0,(VLOOKUP(1,Tablas!$A$522:$G$524,5,TRUE)), (IF(3-$F$18=1,(VLOOKUP(1,Tablas!$A$522:$G$524,5,TRUE)), (IF(3-$F$18=2, (VLOOKUP(2,Tablas!$A$522:$G$524,5,TRUE)), (VLOOKUP(3,Tablas!$A$522:$G$524,5,TRUE)))))))), (IF($F$16=2,(IF(2-$F$18=0, 0, (IF(2-$F$18=1,(VLOOKUP(1,Tablas!$A$522:$G$524,5,TRUE)), (IF(2-$F$18=2, (VLOOKUP(2,Tablas!$A$522:$G$524,5,TRUE)), 0)))))), (IF($F$16=1,(IF(1-$F$18=0, 0, (IF(1-$F$18=1,(VLOOKUP(1,Tablas!$A$522:$G$524,5,TRUE)),0)))),0)))))))))))))), (IF($F$16=0, 0, (IF($F$18>$F$16, (VLOOKUP($F$16,Tablas!$A$522:$G$524,5,TRUE)), (IF($F$16=4,(IF(4-$F$18=0, 0, (IF(4-$F$18=1, (VLOOKUP(1,Tablas!$A$522:$G$524,5,TRUE)), (IF(4-$F$18=2, (VLOOKUP(2,Tablas!$A$522:$G$524,5,TRUE)), (IF(4-$F$18=3, (VLOOKUP(3,Tablas!$A$522:$G$524,5,TRUE)), (IF(4-$F$18=4, (VLOOKUP(3,Tablas!$A$522:$G$524,5,TRUE)), 0)))))))))), (IF($F$16=5,(IF(5-$F$18=0, (VLOOKUP(1,Tablas!$A$522:$G$524,5,TRUE)), (IF(5-$F$18=1, (VLOOKUP(1,Tablas!$A$522:$G$524,5,TRUE)), (IF(5-$F$18=2, (VLOOKUP(2,Tablas!$A$522:$G$524,5,TRUE)), (IF(5-$F$18=3, (VLOOKUP(3,Tablas!$A$522:$G$524,5,TRUE)), (IF(5-$F$18=4, (VLOOKUP(3,Tablas!$A$522:$G$524,5,TRUE)), (VLOOKUP(3,Tablas!$A$522:$G$524,5,TRUE)))))))))))), (IF($F$16=6,(IF(6-$F$18=0, (VLOOKUP(2,Tablas!$A$522:$G$524,5,TRUE)), (IF(6-$F$18=1, (VLOOKUP(2,Tablas!$A$522:$G$524,5,TRUE)), (IF(6-$F$18=2, (VLOOKUP(2,Tablas!$A$522:$G$524,5,TRUE)), (IF(6-$F$18=3, (VLOOKUP(3,Tablas!$A$522:$G$524,5,TRUE)), (IF(6-$F$18=4, (VLOOKUP(3,Tablas!$A$522:$G$524,5,TRUE)), (VLOOKUP(3,Tablas!$A$522:$G$524,5,TRUE)))))))))))), (IF($F$16>6,(IF(7-$F$18=0, (VLOOKUP(3,Tablas!$A$522:$G$524,5,TRUE)), (IF(7-$F$18=1, (VLOOKUP(3,Tablas!$A$522:$G$524,5,TRUE)), (IF(7-$F$18=2, (VLOOKUP(3,Tablas!$A$522:$G$524,5,TRUE)), (IF(7-$F$18=3, (VLOOKUP(3,Tablas!$A$522:$G$524,5,TRUE)), (IF(7-$F$18=4, (VLOOKUP(3,Tablas!$A$522:$G$524,5,TRUE)), (VLOOKUP(3,Tablas!$A$522:$G$524,5,TRUE)))))))))))), (IF($F$16=3,(IF(3-$F$18=0,0, (IF(3-$F$18=1,(VLOOKUP(1,Tablas!$A$522:$G$524,5,TRUE)), (IF(3-$F$18=2, (VLOOKUP(2,Tablas!$A$522:$G$524,5,TRUE)), (VLOOKUP(3,Tablas!$A$522:$G$524,5,TRUE)))))))), (IF($F$16=2,(IF(2-$F$18=0, 0, (IF(2-$F$18=1,(VLOOKUP(1,Tablas!$A$522:$G$524,5,TRUE)), (IF(2-$F$18=2, (VLOOKUP(2,Tablas!$A$522:$G$524,5,TRUE)), 0)))))), (IF($F$16=1,(IF(1-$F$18=0, 0, (IF(1-$F$18=1,(VLOOKUP(1,Tablas!$A$522:$G$524,5,TRUE)),0)))),0))))))))))))))))))) -> 1282.5735 | J39: =IF($F$14=1, (IF($F$16=0, 0, (IF($F$18>$F$16, (VLOOKUP($F$16,Tablas!$A$522:$G$524,6,TRUE)), (IF($F$16>4,(IF($F$18=0, (VLOOKUP(3,Tablas!$A$522:$G$524,6,TRUE)), (IF($F$18=1, (VLOOKUP(3,Tablas!$A$522:$G$524,6,TRUE)), (IF($F$18=2, (VLOOKUP(3,Tablas!$A$522:$G$524,6,TRUE)), (VLOOKUP(3,Tablas!$A$522:$G$524,6,TRUE)))))))), (IF($F$16=4,(IF(4-$F$18=0,(VLOOKUP(2,Tablas!$A$522:$G$524,6,TRUE)), (IF(4-$F$18=1,(VLOOKUP(2,Tablas!$A$522:$G$524,6,TRUE)), (IF(4-$F$18=2, (VLOOKUP(2,Tablas!$A$522:$G$524,6,TRUE)), (VLOOKUP(3,Tablas!$A$522:$G$524,6,TRUE)))))))), (IF($F$16=3,(IF(3-$F$18=0,(VLOOKUP(1,Tablas!$A$522:$G$524,6,TRUE)), (IF(3-$F$18=1,(VLOOKUP(1,Tablas!$A$522:$G$524,6,TRUE)), (IF(3-$F$18=2, (VLOOKUP(2,Tablas!$A$522:$G$524,6,TRUE)), (VLOOKUP(3,Tablas!$A$522:$G$524,6,TRUE)))))))), (IF($F$16=2,(IF(2-$F$18=0, 0, (IF(2-$F$18=1,(VLOOKUP(1,Tablas!$A$522:$G$524,6,TRUE)), (IF(2-$F$18=2, (VLOOKUP(2,Tablas!$A$522:$G$524,6,TRUE)), 0)))))), (IF($F$16=1,(IF(1-$F$18=0, 0, (IF(1-$F$18=1,(VLOOKUP(1,Tablas!$A$522:$G$524,6,TRUE)),0)))),0)))))))))))))), (IF($F$16=0, 0, (IF($F$18>$F$16, (VLOOKUP($F$16,Tablas!$A$522:$G$524,6,TRUE)), (IF($F$16=4,(IF(4-$F$18=0, 0, (IF(4-$F$18=1, (VLOOKUP(1,Tablas!$A$522:$G$524,6,TRUE)), (IF(4-$F$18=2, (VLOOKUP(2,Tablas!$A$522:$G$524,6,TRUE)), (IF(4-$F$18=3, (VLOOKUP(3,Tablas!$A$522:$G$524,6,TRUE)), (IF(4-$F$18=4, (VLOOKUP(3,Tablas!$A$522:$G$524,6,TRUE)), 0)))))))))), (IF($F$16=5,(IF(5-$F$18=0, (VLOOKUP(1,Tablas!$A$522:$G$524,6,TRUE)), (IF(5-$F$18=1, (VLOOKUP(1,Tablas!$A$522:$G$524,6,TRUE)), (IF(5-$F$18=2, (VLOOKUP(2,Tablas!$A$522:$G$524,6,TRUE)), (IF(5-$F$18=3, (VLOOKUP(3,Tablas!$A$522:$G$524,6,TRUE)), (IF(5-$F$18=4, (VLOOKUP(3,Tablas!$A$522:$G$524,6,TRUE)), (VLOOKUP(3,Tablas!$A$522:$G$524,6,TRUE)))))))))))), (IF($F$16=6,(IF(6-$F$18=0, (VLOOKUP(2,Tablas!$A$522:$G$524,6,TRUE)), (IF(6-$F$18=1, (VLOOKUP(2,Tablas!$A$522:$G$524,6,TRUE)), (IF(6-$F$18=2, (VLOOKUP(2,Tablas!$A$522:$G$524,6,TRUE)), (IF(6-$F$18=3, (VLOOKUP(3,Tablas!$A$522:$G$524,6,TRUE)), (IF(6-$F$18=4, (VLOOKUP(3,Tablas!$A$522:$G$524,6,TRUE)), (VLOOKUP(3,Tablas!$A$522:$G$524,6,TRUE)))))))))))), (IF($F$16>6,(IF(7-$F$18=0, (VLOOKUP(3,Tablas!$A$522:$G$524,6,TRUE)), (IF(7-$F$18=1, (VLOOKUP(3,Tablas!$A$522:$G$524,6,TRUE)), (IF(7-$F$18=2, (VLOOKUP(3,Tablas!$A$522:$G$524,6,TRUE)), (IF(7-$F$18=3, (VLOOKUP(3,Tablas!$A$522:$G$524,6,TRUE)), (IF(7-$F$18=4, (VLOOKUP(3,Tablas!$A$522:$G$524,6,TRUE)), (VLOOKUP(3,Tablas!$A$522:$G$524,6,TRUE)))))))))))), (IF($F$16=3,(IF(3-$F$18=0,0, (IF(3-$F$18=1,(VLOOKUP(1,Tablas!$A$522:$G$524,6,TRUE)), (IF(3-$F$18=2, (VLOOKUP(2,Tablas!$A$522:$G$524,6,TRUE)), (VLOOKUP(3,Tablas!$A$522:$G$524,6,TRUE)))))))), (IF($F$16=2,(IF(2-$F$18=0, 0, (IF(2-$F$18=1,(VLOOKUP(1,Tablas!$A$522:$G$524,6,TRUE)), (IF(2-$F$18=2, (VLOOKUP(2,Tablas!$A$522:$G$524,6,TRUE)), 0)))))), (IF($F$16=1,(IF(1-$F$18=0, 0, (IF(1-$F$18=1,(VLOOKUP(1,Tablas!$A$522:$G$524,6,TRUE)),0)))),0))))))))))))))))))) -> 1112.735 | K39: =IF($F$14=1, (IF($F$16=0, 0, (IF($F$18>$F$16, (VLOOKUP($F$16,Tablas!$A$522:$G$524,7,TRUE)), (IF($F$16>4,(IF($F$18=0, (VLOOKUP(3,Tablas!$A$522:$G$524,7,TRUE)), (IF($F$18=1, (VLOOKUP(3,Tablas!$A$522:$G$524,7,TRUE)), (IF($F$18=2, (VLOOKUP(3,Tablas!$A$522:$G$524,7,TRUE)), (VLOOKUP(3,Tablas!$A$522:$G$524,7,TRUE)))))))), (IF($F$16=4,(IF(4-$F$18=0,(VLOOKUP(2,Tablas!$A$522:$G$524,7,TRUE)), (IF(4-$F$18=1,(VLOOKUP(2,Tablas!$A$522:$G$524,7,TRUE)), (IF(4-$F$18=2, (VLOOKUP(2,Tablas!$A$522:$G$524,7,TRUE)), (VLOOKUP(3,Tablas!$A$522:$G$524,7,TRUE)))))))), (IF($F$16=3,(IF(3-$F$18=0,(VLOOKUP(1,Tablas!$A$522:$G$524,7,TRUE)), (IF(3-$F$18=1,(VLOOKUP(1,Tablas!$A$522:$G$524,7,TRUE)), (IF(3-$F$18=2, (VLOOKUP(2,Tablas!$A$522:$G$524,7,TRUE)), (VLOOKUP(3,Tablas!$A$522:$G$524,7,TRUE)))))))), (IF($F$16=2,(IF(2-$F$18=0, 0, (IF(2-$F$18=1,(VLOOKUP(1,Tablas!$A$522:$G$524,7,TRUE)), (IF(2-$F$18=2, (VLOOKUP(2,Tablas!$A$522:$G$524,7,TRUE)), 0)))))), (IF($F$16=1,(IF(1-$F$18=0, 0, (IF(1-$F$18=1,(VLOOKUP(1,Tablas!$A$522:$G$524,7,TRUE)),0)))),0)))))))))))))), (IF($F$16=0, 0, (IF($F$18>$F$16, (VLOOKUP($F$16,Tablas!$A$522:$G$524,7,TRUE)), (IF($F$16=4,(IF(4-$F$18=0, 0, (IF(4-$F$18=1, (VLOOKUP(1,Tablas!$A$522:$G$524,7,TRUE)), (IF(4-$F$18=2, (VLOOKUP(2,Tablas!$A$522:$G$524,7,TRUE)), (IF(4-$F$18=3, (VLOOKUP(3,Tablas!$A$522:$G$524,7,TRUE)), (IF(4-$F$18=4, (VLOOKUP(3,Tablas!$A$522:$G$524,7,TRUE)), 0)))))))))), (IF($F$16=5,(IF(5-$F$18=0, (VLOOKUP(1,Tablas!$A$522:$G$524,7,TRUE)), (IF(5-$F$18=1, (VLOOKUP(1,Tablas!$A$522:$G$524,7,TRUE)), (IF(5-$F$18=2, (VLOOKUP(2,Tablas!$A$522:$G$524,7,TRUE)), (IF(5-$F$18=3, (VLOOKUP(3,Tablas!$A$522:$G$524,7,TRUE)), (IF(5-$F$18=4, (VLOOKUP(3,Tablas!$A$522:$G$524,7,TRUE)), (VLOOKUP(3,Tablas!$A$522:$G$524,7,TRUE)))))))))))), (IF($F$16=6,(IF(6-$F$18=0, (VLOOKUP(2,Tablas!$A$522:$G$524,7,TRUE)), (IF(6-$F$18=1, (VLOOKUP(2,Tablas!$A$522:$G$524,7,TRUE)), (IF(6-$F$18=2, (VLOOKUP(2,Tablas!$A$522:$G$524,7,TRUE)), (IF(6-$F$18=3, (VLOOKUP(3,Tablas!$A$522:$G$524,7,TRUE)), (IF(6-$F$18=4, (VLOOKUP(3,Tablas!$A$522:$G$524,7,TRUE)), (VLOOKUP(3,Tablas!$A$522:$G$524,7,TRUE)))))))))))), (IF($F$16>6,(IF(7-$F$18=0, (VLOOKUP(3,Tablas!$A$522:$G$524,7,TRUE)), (IF(7-$F$18=1, (VLOOKUP(3,Tablas!$A$522:$G$524,7,TRUE)), (IF(7-$F$18=2, (VLOOKUP(3,Tablas!$A$522:$G$524,7,TRUE)), (IF(7-$F$18=3, (VLOOKUP(3,Tablas!$A$522:$G$524,7,TRUE)), (IF(7-$F$18=4, (VLOOKUP(3,Tablas!$A$522:$G$524,7,TRUE)), (VLOOKUP(3,Tablas!$A$522:$G$524,7,TRUE)))))))))))), (IF($F$16=3,(IF(3-$F$18=0,0, (IF(3-$F$18=1,(VLOOKUP(1,Tablas!$A$522:$G$524,7,TRUE)), (IF(3-$F$18=2, (VLOOKUP(2,Tablas!$A$522:$G$524,7,TRUE)), (VLOOKUP(3,Tablas!$A$522:$G$524,7,TRUE)))))))), (IF($F$16=2,(IF(2-$F$18=0, 0, (IF(2-$F$18=1,(VLOOKUP(1,Tablas!$A$522:$G$524,7,TRUE)), (IF(2-$F$18=2, (VLOOKUP(2,Tablas!$A$522:$G$524,7,TRUE)), 0)))))), (IF($F$16=1,(IF(1-$F$18=0, 0, (IF(1-$F$18=1,(VLOOKUP(1,Tablas!$A$522:$G$524,7,TRUE)),0)))),0))))))))))))))))))) -> 827.118
E40: Total de Prima neta | G40: =SUM(G37:G39) -> 13853.092 | H40: =SUM(H37:H39) -> 12152.905 | I40: =SUM(I37:I39) -> 9649.026 | J40: =SUM(J37:J39) -> 8377.715 | K40: =SUM(K37:K39) -> 6245.048
E41: Tarifa administrativa anual | G41: 0 | H41: 0 | I41: 0 | J41: 0 | K41: 0
E42: Contribución 3.5% Superintendencia de Bancos Contribución 0.5% Seguro Social Campesino | G42: =(G40)*4% -> 554.12368 | H42: =(H40)*4% -> 486.1162 | I42: =(I40)*4% -> 385.96104 | J42: =(J40)*4% -> 335.1086 | K42: =(K40)*4% -> 249.80192
E43: TOTAL de primera cuota | G43: =SUM(G40:G42) -> 14407.21568 | H43: =SUM(H40:H42) -> 12639.0212 | I43: =SUM(I40:I42) -> 10034.98704 | J43: =SUM(J40:J42) -> 8712.8236 | K43: =SUM(K40:K42) -> 6494.84992
E44: Costo de segunda cuota | G44: =G40+G42-78 -> 14329.21568 | H44: =H40+H42-78 -> 12561.0212 | I44: =I40+I42-78 -> 9956.98704 | J44: =J40+J42-78 -> 8634.8236 | K44: =K40+K42-78 -> 6416.84992
E45: TOTAL ANUAL | G45: =G43+G44 -> 28736.43136 | H45: =H43+H44 -> 25200.0424 | I45: 19991.97408 | J45: =J43+J44 -> 17347.6472 | K45: 12911.69984
E46: Ahorros en tarifas de prima para niños | G46: =IF($F$14=1,IF($F$16=0,0,IF($F$18=0,0,IF($F$18=1,(VLOOKUP(1,Tablas!$A$522:$G$524,3,TRUE)),(VLOOKUP(2,Tablas!$A$522:$G$524,3,TRUE))))), IF($F$16=0,0,IF($F$18=0,0,IF($F$18=1,(VLOOKUP(1,Tablas!$A$522:$G$524,3,TRUE)),IF($F$18=2,(VLOOKUP(2,Tablas!$A$522:$G$524,3,TRUE)), (VLOOKUP(3,Tablas!$A$522:$G$524,3,TRUE))))))) -> 3059.3455 | H46: =IF($F$14=1,IF($F$16=0,0,IF($F$18=0,0,IF($F$18=1,(VLOOKUP(1,Tablas!$A$522:$G$524,4,TRUE)),(VLOOKUP(2,Tablas!$A$522:$G$524,4,TRUE))))), IF($F$16=0,0,IF($F$18=0,0,IF($F$18=1,(VLOOKUP(1,Tablas!$A$522:$G$524,4,TRUE)),IF($F$18=2,(VLOOKUP(2,Tablas!$A$522:$G$524,4,TRUE)), (VLOOKUP(3,Tablas!$A$522:$G$524,4,TRUE))))))) -> 2681.376 | I46: =IF($F$14=1,IF($F$16=0,0,IF($F$18=0,0,IF($F$18=1,(VLOOKUP(1,Tablas!$A$522:$G$524,5,TRUE)),(VLOOKUP(2,Tablas!$A$522:$G$524,5,TRUE))))), IF($F$16=0,0,IF($F$18=0,0,IF($F$18=1,(VLOOKUP(1,Tablas!$A$522:$G$524,5,TRUE)),IF($F$18=2,(VLOOKUP(2,Tablas!$A$522:$G$524,5,TRUE)), (VLOOKUP(3,Tablas!$A$522:$G$524,5,TRUE))))))) -> 2178.1675 | J46: =IF($F$14=1,IF($F$16=0,0,IF($F$18=0,0,IF($F$18=1,(VLOOKUP(1,Tablas!$A$522:$G$524,6,TRUE)),(VLOOKUP(2,Tablas!$A$522:$G$524,6,TRUE))))), IF($F$16=0,0,IF($F$18=0,0,IF($F$18=1,(VLOOKUP(1,Tablas!$A$522:$G$524,6,TRUE)),IF($F$18=2,(VLOOKUP(2,Tablas!$A$522:$G$524,6,TRUE)), (VLOOKUP(3,Tablas!$A$522:$G$524,6,TRUE))))))) -> 1889.397 | K46: =IF($F$14=1,IF($F$16=0,0,IF($F$18=0,0,IF($F$18=1,(VLOOKUP(1,Tablas!$A$522:$G$524,7,TRUE)),(VLOOKUP(2,Tablas!$A$522:$G$524,7,TRUE))))), IF($F$16=0,0,IF($F$18=0,0,IF($F$18=1,(VLOOKUP(1,Tablas!$A$522:$G$524,7,TRUE)),IF($F$18=2,(VLOOKUP(2,Tablas!$A$522:$G$524,7,TRUE)), (VLOOKUP(3,Tablas!$A$522:$G$524,7,TRUE))))))) -> 1404.2085
E48: Tarifas Trimestrales
E49: Prima para Asegurado Titular | G49: =VLOOKUP($I$14,Tablas!$A$680:$G$746,3,TRUE)+75 -> 3358.72 | H49: =VLOOKUP($I$14,Tablas!$A$680:$G$746,4,TRUE)+75 -> 2953.63125 | I49: =VLOOKUP($I$14,Tablas!$A$680:$G$746,5,TRUE)+75 -> 2343.31 | J49: =VLOOKUP($I$14,Tablas!$A$680:$G$746,6,TRUE)+75 -> 2042.00625 | K49: =VLOOKUP($I$14,Tablas!$A$680:$G$746,7,TRUE)+75 -> 1536.405
E50: Prima para conyuge | G50: =IF($F$14=1,0,(VLOOKUP($I$16,Tablas!$A$680:$G$746,3,TRUE))) -> 2931.92625 | H50: =IF($F$14=1,0,(VLOOKUP($I$16,Tablas!$A$680:$G$746,4,TRUE))) -> 2569.38 | I50: =IF($F$14=1,0,(VLOOKUP($I$16,Tablas!$A$680:$G$746,5,TRUE))) -> 2033.85875 | J50: =IF($F$14=1,0,(VLOOKUP($I$16,Tablas!$A$680:$G$746,6,TRUE))) -> 1763.64375 | K50: =IF($F$14=1,0,(VLOOKUP($I$16,Tablas!$A$680:$G$746,7,TRUE))) -> 1310.87
E51: Prima para hijo (s) | G51: =IF($F$14=1, (IF($F$16=0, 0, (IF($F$18>$F$16, (VLOOKUP($F$16,Tablas!$A$747:$G$749,3,TRUE)), (IF($F$16>4,(IF($F$18=0, (VLOOKUP(3,Tablas!$A$747:$G$749,3,TRUE)), (IF($F$18=1, (VLOOKUP(3,Tablas!$A$747:$G$749,3,TRUE)), (IF($F$18=2, (VLOOKUP(3,Tablas!$A$747:$G$749,3,TRUE)), (VLOOKUP(3,Tablas!$A$747:$G$749,3,TRUE)))))))), (IF($F$16=4,(IF(4-$F$18=0,(VLOOKUP(2,Tablas!$A$747:$G$749,3,TRUE)), (IF(4-$F$18=1,(VLOOKUP(2,Tablas!$A$747:$G$749,3,TRUE)), (IF(4-$F$18=2, (VLOOKUP(2,Tablas!$A$747:$G$749,3,TRUE)), (VLOOKUP(3,Tablas!$A$747:$G$749,3,TRUE)))))))), (IF($F$16=3,(IF(3-$F$18=0,(VLOOKUP(1,Tablas!$A$747:$G$749,3,TRUE)), (IF(3-$F$18=1,(VLOOKUP(1,Tablas!$A$747:$G$749,3,TRUE)), (IF(3-$F$18=2, (VLOOKUP(2,Tablas!$A$747:$G$749,3,TRUE)), (VLOOKUP(3,Tablas!$A$747:$G$749,3,TRUE)))))))), (IF($F$16=2,(IF(2-$F$18=0, 0, (IF(2-$F$18=1,(VLOOKUP(1,Tablas!$A$747:$G$749,3,TRUE)), (IF(2-$F$18=2, (VLOOKUP(2,Tablas!$A$747:$G$749,3,TRUE)), 0)))))), (IF($F$16=1,(IF(1-$F$18=0, 0, (IF(1-$F$18=1,(VLOOKUP(1,Tablas!$A$747:$G$749,3,TRUE)),0)))),0)))))))))))))), (IF($F$16=0, 0, (IF($F$18>$F$16, (VLOOKUP($F$16,Tablas!$A$747:$G$749,3,TRUE)), (IF($F$16=4,(IF(4-$F$18=0, 0, (IF(4-$F$18=1, (VLOOKUP(1,Tablas!$A$747:$G$749,3,TRUE)), (IF(4-$F$18=2, (VLOOKUP(2,Tablas!$A$747:$G$749,3,TRUE)), (IF(4-$F$18=3, (VLOOKUP(3,Tablas!$A$747:$G$749,3,TRUE)), (IF(4-$F$18=4, (VLOOKUP(3,Tablas!$A$747:$G$749,3,TRUE)), 0)))))))))), (IF($F$16=5,(IF(5-$F$18=0, (VLOOKUP(1,Tablas!$A$747:$G$749,3,TRUE)), (IF(5-$F$18=1, (VLOOKUP(1,Tablas!$A$747:$G$749,3,TRUE)), (IF(5-$F$18=2, (VLOOKUP(2,Tablas!$A$747:$G$749,3,TRUE)), (IF(5-$F$18=3, (VLOOKUP(3,Tablas!$A$747:$G$749,3,TRUE)), (IF(5-$F$18=4, (VLOOKUP(3,Tablas!$A$747:$G$749,3,TRUE)), (VLOOKUP(3,Tablas!$A$747:$G$749,3,TRUE)))))))))))), (IF($F$16=6,(IF(6-$F$18=0, (VLOOKUP(2,Tablas!$A$747:$G$749,3,TRUE)), (IF(6-$F$18=1, (VLOOKUP(2,Tablas!$A$747:$G$749,3,TRUE)), (IF(6-$F$18=2, (VLOOKUP(2,Tablas!$A$747:$G$749,3,TRUE)), (IF(6-$F$18=3, (VLOOKUP(3,Tablas!$A$747:$G$749,3,TRUE)), (IF(6-$F$18=4, (VLOOKUP(3,Tablas!$A$747:$G$749,3,TRUE)), (VLOOKUP(3,Tablas!$A$747:$G$749,3,TRUE)))))))))))), (IF($F$16>6,(IF(7-$F$18=0, (VLOOKUP(3,Tablas!$A$747:$G$749,3,TRUE)), (IF(7-$F$18=1, (VLOOKUP(3,Tablas!$A$747:$G$749,3,TRUE)), (IF(7-$F$18=2, (VLOOKUP(3,Tablas!$A$747:$G$749,3,TRUE)), (IF(7-$F$18=3, (VLOOKUP(3,Tablas!$A$747:$G$749,3,TRUE)), (IF(7-$F$18=4, (VLOOKUP(3,Tablas!$A$747:$G$749,3,TRUE)), (VLOOKUP(3,Tablas!$A$747:$G$749,3,TRUE)))))))))))), (IF($F$16=3,(IF(3-$F$18=0,0, (IF(3-$F$18=1,(VLOOKUP(1,Tablas!$A$747:$G$749,3,TRUE)), (IF(3-$F$18=2, (VLOOKUP(2,Tablas!$A$747:$G$749,3,TRUE)), (VLOOKUP(3,Tablas!$A$747:$G$749,3,TRUE)))))))), (IF($F$16=2,(IF(2-$F$18=0, 0, (IF(2-$F$18=1,(VLOOKUP(1,Tablas!$A$747:$G$749,3,TRUE)), (IF(2-$F$18=2, (VLOOKUP(2,Tablas!$A$747:$G$749,3,TRUE)), 0)))))), (IF($F$16=1,(IF(1-$F$18=0, 0, (IF(1-$F$18=1,(VLOOKUP(1,Tablas!$A$747:$G$749,3,TRUE)),0)))),0))))))))))))))))))) -> 933.36375 | H51: =IF($F$14=1, (IF($F$16=0, 0, (IF($F$18>$F$16, (VLOOKUP($F$16,Tablas!$A$747:$G$749,4,TRUE)), (IF($F$16>4,(IF($F$18=0, (VLOOKUP(3,Tablas!$A$747:$G$749,4,TRUE)), (IF($F$18=1, (VLOOKUP(3,Tablas!$A$747:$G$749,4,TRUE)), (IF($F$18=2, (VLOOKUP(3,Tablas!$A$747:$G$749,4,TRUE)), (VLOOKUP(3,Tablas!$A$747:$G$749,4,TRUE)))))))), (IF($F$16=4,(IF(4-$F$18=0,(VLOOKUP(2,Tablas!$A$747:$G$749,4,TRUE)), (IF(4-$F$18=1,(VLOOKUP(2,Tablas!$A$747:$G$749,4,TRUE)), (IF(4-$F$18=2, (VLOOKUP(2,Tablas!$A$747:$G$749,4,TRUE)), (VLOOKUP(3,Tablas!$A$747:$G$749,4,TRUE)))))))), (IF($F$16=3,(IF(3-$F$18=0,(VLOOKUP(1,Tablas!$A$747:$G$749,4,TRUE)), (IF(3-$F$18=1,(VLOOKUP(1,Tablas!$A$747:$G$749,4,TRUE)), (IF(3-$F$18=2, (VLOOKUP(2,Tablas!$A$747:$G$749,4,TRUE)), (VLOOKUP(3,Tablas!$A$747:$G$749,4,TRUE)))))))), (IF($F$16=2,(IF(2-$F$18=0, 0, (IF(2-$F$18=1,(VLOOKUP(1,Tablas!$A$747:$G$749,4,TRUE)), (IF(2-$F$18=2, (VLOOKUP(2,Tablas!$A$747:$G$749,4,TRUE)), 0)))))), (IF($F$16=1,(IF(1-$F$18=0, 0, (IF(1-$F$18=1,(VLOOKUP(1,Tablas!$A$747:$G$749,4,TRUE)),0)))),0)))))))))))))), (IF($F$16=0, 0, (IF($F$18>$F$16, (VLOOKUP($F$16,Tablas!$A$747:$G$749,4,TRUE)), (IF($F$16=4,(IF(4-$F$18=0, 0, (IF(4-$F$18=1, (VLOOKUP(1,Tablas!$A$747:$G$749,4,TRUE)), (IF(4-$F$18=2, (VLOOKUP(2,Tablas!$A$747:$G$749,4,TRUE)), (IF(4-$F$18=3, (VLOOKUP(3,Tablas!$A$747:$G$749,4,TRUE)), (IF(4-$F$18=4, (VLOOKUP(3,Tablas!$A$747:$G$749,4,TRUE)), 0)))))))))), (IF($F$16=5,(IF(5-$F$18=0, (VLOOKUP(1,Tablas!$A$747:$G$749,4,TRUE)), (IF(5-$F$18=1, (VLOOKUP(1,Tablas!$A$747:$G$749,4,TRUE)), (IF(5-$F$18=2, (VLOOKUP(2,Tablas!$A$747:$G$749,4,TRUE)), (IF(5-$F$18=3, (VLOOKUP(3,Tablas!$A$747:$G$749,4,TRUE)), (IF(5-$F$18=4, (VLOOKUP(3,Tablas!$A$747:$G$749,4,TRUE)), (VLOOKUP(3,Tablas!$A$747:$G$749,4,TRUE)))))))))))), (IF($F$16=6,(IF(6-$F$18=0, (VLOOKUP(2,Tablas!$A$747:$G$749,4,TRUE)), (IF(6-$F$18=1, (VLOOKUP(2,Tablas!$A$747:$G$749,4,TRUE)), (IF(6-$F$18=2, (VLOOKUP(2,Tablas!$A$747:$G$749,4,TRUE)), (IF(6-$F$18=3, (VLOOKUP(3,Tablas!$A$747:$G$749,4,TRUE)), (IF(6-$F$18=4, (VLOOKUP(3,Tablas!$A$747:$G$749,4,TRUE)), (VLOOKUP(3,Tablas!$A$747:$G$749,4,TRUE)))))))))))), (IF($F$16>6,(IF(7-$F$18=0, (VLOOKUP(3,Tablas!$A$747:$G$749,4,TRUE)), (IF(7-$F$18=1, (VLOOKUP(3,Tablas!$A$747:$G$749,4,TRUE)), (IF(7-$F$18=2, (VLOOKUP(3,Tablas!$A$747:$G$749,4,TRUE)), (IF(7-$F$18=3, (VLOOKUP(3,Tablas!$A$747:$G$749,4,TRUE)), (IF(7-$F$18=4, (VLOOKUP(3,Tablas!$A$747:$G$749,4,TRUE)), (VLOOKUP(3,Tablas!$A$747:$G$749,4,TRUE)))))))))))), (IF($F$16=3,(IF(3-$F$18=0,0, (IF(3-$F$18=1,(VLOOKUP(1,Tablas!$A$747:$G$749,4,TRUE)), (IF(3-$F$18=2, (VLOOKUP(2,Tablas!$A$747:$G$749,4,TRUE)), (VLOOKUP(3,Tablas!$A$747:$G$749,4,TRUE)))))))), (IF($F$16=2,(IF(2-$F$18=0, 0, (IF(2-$F$18=1,(VLOOKUP(1,Tablas!$A$747:$G$749,4,TRUE)), (IF(2-$F$18=2, (VLOOKUP(2,Tablas!$A$747:$G$749,4,TRUE)), 0)))))), (IF($F$16=1,(IF(1-$F$18=0, 0, (IF(1-$F$18=1,(VLOOKUP(1,Tablas!$A$747:$G$749,4,TRUE)),0)))),0))))))))))))))))))) -> 818.82625 | I51: =IF($F$14=1, (IF($F$16=0, 0, (IF($F$18>$F$16, (VLOOKUP($F$16,Tablas!$A$747:$G$749,5,TRUE)), (IF($F$16>4,(IF($F$18=0, (VLOOKUP(3,Tablas!$A$747:$G$749,5,TRUE)), (IF($F$18=1, (VLOOKUP(3,Tablas!$A$747:$G$749,5,TRUE)), (IF($F$18=2, (VLOOKUP(3,Tablas!$A$747:$G$749,5,TRUE)), (VLOOKUP(3,Tablas!$A$747:$G$749,5,TRUE)))))))), (IF($F$16=4,(IF(4-$F$18=0,(VLOOKUP(2,Tablas!$A$747:$G$749,5,TRUE)), (IF(4-$F$18=1,(VLOOKUP(2,Tablas!$A$747:$G$749,5,TRUE)), (IF(4-$F$18=2, (VLOOKUP(2,Tablas!$A$747:$G$749,5,TRUE)), (VLOOKUP(3,Tablas!$A$747:$G$749,5,TRUE)))))))), (IF($F$16=3,(IF(3-$F$18=0,(VLOOKUP(1,Tablas!$A$747:$G$749,5,TRUE)), (IF(3-$F$18=1,(VLOOKUP(1,Tablas!$A$747:$G$749,5,TRUE)), (IF(3-$F$18=2, (VLOOKUP(2,Tablas!$A$747:$G$749,5,TRUE)), (VLOOKUP(3,Tablas!$A$747:$G$749,5,TRUE)))))))), (IF($F$16=2,(IF(2-$F$18=0, 0, (IF(2-$F$18=1,(VLOOKUP(1,Tablas!$A$747:$G$749,5,TRUE)), (IF(2-$F$18=2, (VLOOKUP(2,Tablas!$A$747:$G$749,5,TRUE)), 0)))))), (IF($F$16=1,(IF(1-$F$18=0, 0, (IF(1-$F$18=1,(VLOOKUP(1,Tablas!$A$747:$G$749,5,TRUE)),0)))),0)))))))))))))), (IF($F$16=0, 0, (IF($F$18>$F$16, (VLOOKUP($F$16,Tablas!$A$747:$G$749,5,TRUE)), (IF($F$16=4,(IF(4-$F$18=0, 0, (IF(4-$F$18=1, (VLOOKUP(1,Tablas!$A$747:$G$749,5,TRUE)), (IF(4-$F$18=2, (VLOOKUP(2,Tablas!$A$747:$G$749,5,TRUE)), (IF(4-$F$18=3, (VLOOKUP(3,Tablas!$A$747:$G$749,5,TRUE)), (IF(4-$F$18=4, (VLOOKUP(3,Tablas!$A$747:$G$749,5,TRUE)), 0)))))))))), (IF($F$16=5,(IF(5-$F$18=0, (VLOOKUP(1,Tablas!$A$747:$G$749,5,TRUE)), (IF(5-$F$18=1, (VLOOKUP(1,Tablas!$A$747:$G$749,5,TRUE)), (IF(5-$F$18=2, (VLOOKUP(2,Tablas!$A$747:$G$749,5,TRUE)), (IF(5-$F$18=3, (VLOOKUP(3,Tablas!$A$747:$G$749,5,TRUE)), (IF(5-$F$18=4, (VLOOKUP(3,Tablas!$A$747:$G$749,5,TRUE)), (VLOOKUP(3,Tablas!$A$747:$G$749,5,TRUE)))))))))))), (IF($F$16=6,(IF(6-$F$18=0, (VLOOKUP(2,Tablas!$A$747:$G$749,5,TRUE)), (IF(6-$F$18=1, (VLOOKUP(2,Tablas!$A$747:$G$749,5,TRUE)), (IF(6-$F$18=2, (VLOOKUP(2,Tablas!$A$747:$G$749,5,TRUE)), (IF(6-$F$18=3, (VLOOKUP(3,Tablas!$A$747:$G$749,5,TRUE)), (IF(6-$F$18=4, (VLOOKUP(3,Tablas!$A$747:$G$749,5,TRUE)), (VLOOKUP(3,Tablas!$A$747:$G$749,5,TRUE)))))))))))), (IF($F$16>6,(IF(7-$F$18=0, (VLOOKUP(3,Tablas!$A$747:$G$749,5,TRUE)), (IF(7-$F$18=1, (VLOOKUP(3,Tablas!$A$747:$G$749,5,TRUE)), (IF(7-$F$18=2, (VLOOKUP(3,Tablas!$A$747:$G$749,5,TRUE)), (IF(7-$F$18=3, (VLOOKUP(3,Tablas!$A$747:$G$749,5,TRUE)), (IF(7-$F$18=4, (VLOOKUP(3,Tablas!$A$747:$G$749,5,TRUE)), (VLOOKUP(3,Tablas!$A$747:$G$749,5,TRUE)))))))))))), (IF($F$16=3,(IF(3-$F$18=0,0, (IF(3-$F$18=1,(VLOOKUP(1,Tablas!$A$747:$G$749,5,TRUE)), (IF(3-$F$18=2, (VLOOKUP(2,Tablas!$A$747:$G$749,5,TRUE)), (VLOOKUP(3,Tablas!$A$747:$G$749,5,TRUE)))))))), (IF($F$16=2,(IF(2-$F$18=0, 0, (IF(2-$F$18=1,(VLOOKUP(1,Tablas!$A$747:$G$749,5,TRUE)), (IF(2-$F$18=2, (VLOOKUP(2,Tablas!$A$747:$G$749,5,TRUE)), 0)))))), (IF($F$16=1,(IF(1-$F$18=0, 0, (IF(1-$F$18=1,(VLOOKUP(1,Tablas!$A$747:$G$749,5,TRUE)),0)))),0))))))))))))))))))) -> 665.48625 | J51: =IF($F$14=1, (IF($F$16=0, 0, (IF($F$18>$F$16, (VLOOKUP($F$16,Tablas!$A$747:$G$749,6,TRUE)), (IF($F$16>4,(IF($F$18=0, (VLOOKUP(3,Tablas!$A$747:$G$749,6,TRUE)), (IF($F$18=1, (VLOOKUP(3,Tablas!$A$747:$G$749,6,TRUE)), (IF($F$18=2, (VLOOKUP(3,Tablas!$A$747:$G$749,6,TRUE)), (VLOOKUP(3,Tablas!$A$747:$G$749,6,TRUE)))))))), (IF($F$16=4,(IF(4-$F$18=0,(VLOOKUP(2,Tablas!$A$747:$G$749,6,TRUE)), (IF(4-$F$18=1,(VLOOKUP(2,Tablas!$A$747:$G$749,6,TRUE)), (IF(4-$F$18=2, (VLOOKUP(2,Tablas!$A$747:$G$749,6,TRUE)), (VLOOKUP(3,Tablas!$A$747:$G$749,6,TRUE)))))))), (IF($F$16=3,(IF(3-$F$18=0,(VLOOKUP(1,Tablas!$A$747:$G$749,6,TRUE)), (IF(3-$F$18=1,(VLOOKUP(1,Tablas!$A$747:$G$749,6,TRUE)), (IF(3-$F$18=2, (VLOOKUP(2,Tablas!$A$747:$G$749,6,TRUE)), (VLOOKUP(3,Tablas!$A$747:$G$749,6,TRUE)))))))), (IF($F$16=2,(IF(2-$F$18=0, 0, (IF(2-$F$18=1,(VLOOKUP(1,Tablas!$A$747:$G$749,6,TRUE)), (IF(2-$F$18=2, (VLOOKUP(2,Tablas!$A$747:$G$749,6,TRUE)), 0)))))), (IF($F$16=1,(IF(1-$F$18=0, 0, (IF(1-$F$18=1,(VLOOKUP(1,Tablas!$A$747:$G$749,6,TRUE)),0)))),0)))))))))))))), (IF($F$16=0, 0, (IF($F$18>$F$16, (VLOOKUP($F$16,Tablas!$A$747:$G$749,6,TRUE)), (IF($F$16=4,(IF(4-$F$18=0, 0, (IF(4-$F$18=1, (VLOOKUP(1,Tablas!$A$747:$G$749,6,TRUE)), (IF(4-$F$18=2, (VLOOKUP(2,Tablas!$A$747:$G$749,6,TRUE)), (IF(4-$F$18=3, (VLOOKUP(3,Tablas!$A$747:$G$749,6,TRUE)), (IF(4-$F$18=4, (VLOOKUP(3,Tablas!$A$747:$G$749,6,TRUE)), 0)))))))))), (IF($F$16=5,(IF(5-$F$18=0, (VLOOKUP(1,Tablas!$A$747:$G$749,6,TRUE)), (IF(5-$F$18=1, (VLOOKUP(1,Tablas!$A$747:$G$749,6,TRUE)), (IF(5-$F$18=2, (VLOOKUP(2,Tablas!$A$747:$G$749,6,TRUE)), (IF(5-$F$18=3, (VLOOKUP(3,Tablas!$A$747:$G$749,6,TRUE)), (IF(5-$F$18=4, (VLOOKUP(3,Tablas!$A$747:$G$749,6,TRUE)), (VLOOKUP(3,Tablas!$A$747:$G$749,6,TRUE)))))))))))), (IF($F$16=6,(IF(6-$F$18=0, (VLOOKUP(2,Tablas!$A$747:$G$749,6,TRUE)), (IF(6-$F$18=1, (VLOOKUP(2,Tablas!$A$747:$G$749,6,TRUE)), (IF(6-$F$18=2, (VLOOKUP(2,Tablas!$A$747:$G$749,6,TRUE)), (IF(6-$F$18=3, (VLOOKUP(3,Tablas!$A$747:$G$749,6,TRUE)), (IF(6-$F$18=4, (VLOOKUP(3,Tablas!$A$747:$G$749,6,TRUE)), (VLOOKUP(3,Tablas!$A$747:$G$749,6,TRUE)))))))))))), (IF($F$16>6,(IF(7-$F$18=0, (VLOOKUP(3,Tablas!$A$747:$G$749,6,TRUE)), (IF(7-$F$18=1, (VLOOKUP(3,Tablas!$A$747:$G$749,6,TRUE)), (IF(7-$F$18=2, (VLOOKUP(3,Tablas!$A$747:$G$749,6,TRUE)), (IF(7-$F$18=3, (VLOOKUP(3,Tablas!$A$747:$G$749,6,TRUE)), (IF(7-$F$18=4, (VLOOKUP(3,Tablas!$A$747:$G$749,6,TRUE)), (VLOOKUP(3,Tablas!$A$747:$G$749,6,TRUE)))))))))))), (IF($F$16=3,(IF(3-$F$18=0,0, (IF(3-$F$18=1,(VLOOKUP(1,Tablas!$A$747:$G$749,6,TRUE)), (IF(3-$F$18=2, (VLOOKUP(2,Tablas!$A$747:$G$749,6,TRUE)), (VLOOKUP(3,Tablas!$A$747:$G$749,6,TRUE)))))))), (IF($F$16=2,(IF(2-$F$18=0, 0, (IF(2-$F$18=1,(VLOOKUP(1,Tablas!$A$747:$G$749,6,TRUE)), (IF(2-$F$18=2, (VLOOKUP(2,Tablas!$A$747:$G$749,6,TRUE)), 0)))))), (IF($F$16=1,(IF(1-$F$18=0, 0, (IF(1-$F$18=1,(VLOOKUP(1,Tablas!$A$747:$G$749,6,TRUE)),0)))),0))))))))))))))))))) -> 577.3625 | K51: =IF($F$14=1, (IF($F$16=0, 0, (IF($F$18>$F$16, (VLOOKUP($F$16,Tablas!$A$747:$G$749,7,TRUE)), (IF($F$16>4,(IF($F$18=0, (VLOOKUP(3,Tablas!$A$747:$G$749,7,TRUE)), (IF($F$18=1, (VLOOKUP(3,Tablas!$A$747:$G$749,7,TRUE)), (IF($F$18=2, (VLOOKUP(3,Tablas!$A$747:$G$749,7,TRUE)), (VLOOKUP(3,Tablas!$A$747:$G$749,7,TRUE)))))))), (IF($F$16=4,(IF(4-$F$18=0,(VLOOKUP(2,Tablas!$A$747:$G$749,7,TRUE)), (IF(4-$F$18=1,(VLOOKUP(2,Tablas!$A$747:$G$749,7,TRUE)), (IF(4-$F$18=2, (VLOOKUP(2,Tablas!$A$747:$G$749,7,TRUE)), (VLOOKUP(3,Tablas!$A$747:$G$749,7,TRUE)))))))), (IF($F$16=3,(IF(3-$F$18=0,(VLOOKUP(1,Tablas!$A$747:$G$749,7,TRUE)), (IF(3-$F$18=1,(VLOOKUP(1,Tablas!$A$747:$G$749,7,TRUE)), (IF(3-$F$18=2, (VLOOKUP(2,Tablas!$A$747:$G$749,7,TRUE)), (VLOOKUP(3,Tablas!$A$747:$G$749,7,TRUE)))))))), (IF($F$16=2,(IF(2-$F$18=0, 0, (IF(2-$F$18=1,(VLOOKUP(1,Tablas!$A$747:$G$749,7,TRUE)), (IF(2-$F$18=2, (VLOOKUP(2,Tablas!$A$747:$G$749,7,TRUE)), 0)))))), (IF($F$16=1,(IF(1-$F$18=0, 0, (IF(1-$F$18=1,(VLOOKUP(1,Tablas!$A$747:$G$749,7,TRUE)),0)))),0)))))))))))))), (IF($F$16=0, 0, (IF($F$18>$F$16, (VLOOKUP($F$16,Tablas!$A$747:$G$749,7,TRUE)), (IF($F$16=4,(IF(4-$F$18=0, 0, (IF(4-$F$18=1, (VLOOKUP(1,Tablas!$A$747:$G$749,7,TRUE)), (IF(4-$F$18=2, (VLOOKUP(2,Tablas!$A$747:$G$749,7,TRUE)), (IF(4-$F$18=3, (VLOOKUP(3,Tablas!$A$747:$G$749,7,TRUE)), (IF(4-$F$18=4, (VLOOKUP(3,Tablas!$A$747:$G$749,7,TRUE)), 0)))))))))), (IF($F$16=5,(IF(5-$F$18=0, (VLOOKUP(1,Tablas!$A$747:$G$749,7,TRUE)), (IF(5-$F$18=1, (VLOOKUP(1,Tablas!$A$747:$G$749,7,TRUE)), (IF(5-$F$18=2, (VLOOKUP(2,Tablas!$A$747:$G$749,7,TRUE)), (IF(5-$F$18=3, (VLOOKUP(3,Tablas!$A$747:$G$749,7,TRUE)), (IF(5-$F$18=4, (VLOOKUP(3,Tablas!$A$747:$G$749,7,TRUE)), (VLOOKUP(3,Tablas!$A$747:$G$749,7,TRUE)))))))))))), (IF($F$16=6,(IF(6-$F$18=0, (VLOOKUP(2,Tablas!$A$747:$G$749,7,TRUE)), (IF(6-$F$18=1, (VLOOKUP(2,Tablas!$A$747:$G$749,7,TRUE)), (IF(6-$F$18=2, (VLOOKUP(2,Tablas!$A$747:$G$749,7,TRUE)), (IF(6-$F$18=3, (VLOOKUP(3,Tablas!$A$747:$G$749,7,TRUE)), (IF(6-$F$18=4, (VLOOKUP(3,Tablas!$A$747:$G$749,7,TRUE)), (VLOOKUP(3,Tablas!$A$747:$G$749,7,TRUE)))))))))))), (IF($F$16>6,(IF(7-$F$18=0, (VLOOKUP(3,Tablas!$A$747:$G$749,7,TRUE)), (IF(7-$F$18=1, (VLOOKUP(3,Tablas!$A$747:$G$749,7,TRUE)), (IF(7-$F$18=2, (VLOOKUP(3,Tablas!$A$747:$G$749,7,TRUE)), (IF(7-$F$18=3, (VLOOKUP(3,Tablas!$A$747:$G$749,7,TRUE)), (IF(7-$F$18=4, (VLOOKUP(3,Tablas!$A$747:$G$749,7,TRUE)), (VLOOKUP(3,Tablas!$A$747:$G$749,7,TRUE)))))))))))), (IF($F$16=3,(IF(3-$F$18=0,0, (IF(3-$F$18=1,(VLOOKUP(1,Tablas!$A$747:$G$749,7,TRUE)), (IF(3-$F$18=2, (VLOOKUP(2,Tablas!$A$747:$G$749,7,TRUE)), (VLOOKUP(3,Tablas!$A$747:$G$749,7,TRUE)))))))), (IF($F$16=2,(IF(2-$F$18=0, 0, (IF(2-$F$18=1,(VLOOKUP(1,Tablas!$A$747:$G$749,7,TRUE)), (IF(2-$F$18=2, (VLOOKUP(2,Tablas!$A$747:$G$749,7,TRUE)), 0)))))), (IF($F$16=1,(IF(1-$F$18=0, 0, (IF(1-$F$18=1,(VLOOKUP(1,Tablas!$A$747:$G$749,7,TRUE)),0)))),0))))))))))))))))))) -> 429.165
E52: Total de Prima neta | G52: =SUM(G49:G51) -> 7224.01 | H52: =SUM(H49:H51) -> 6341.8375 | I52: =SUM(I49:I51) -> 5042.655 | J52: =SUM(J49:J51) -> 4383.0125 | K52: =SUM(K49:K51) -> 3276.44
E53: Tarifa administrativa anual | G53: 0 | H53: 0 | I53: 0 | J53: 0 | K53: 0
E54: Contribución 3.5% Superintendencia de Bancos Contribución 0.5% Seguro Social Campesino | G54: =(G52)*4% -> 288.9604 | H54: =(H52)*4% -> 253.6735 | I54: =(I52)*4% -> 201.7062 | J54: =(J52)*4% -> 175.3205 | K54: =(K52)*4% -> 131.0576
E55: TOTAL de primera cuota | G55: =SUM(G52:G54) -> 7512.9704 | H55: =SUM(H52:H54) -> 6595.511 | I55: =SUM(I52:I54) -> 5244.3612 | J55: =SUM(J52:J54) -> 4558.333 | K55: =SUM(K52:K54) -> 3407.4976
E56: Tres (3) cuotas adicionales, cada una de: | G56: =G52+G54-78 -> 7434.9704 | H56: =H52+H54-78 -> 6517.511 | I56: =I52+I54-78 -> 5166.3612 | J56: =J52+J54-78 -> 4480.333 | K56: =K52+K54-78 -> 3329.4976
E57: TOTAL ANUAL | G57: =G55+(G56*3) -> 29817.8816 | H57: =H55+(H56*3) -> 26148.044 | I57: 20743.4448 | J57: =J55+(J56*3) -> 17999.332 | K57: 13395.9904
E58: Ahorros en tarifas de prima para niños | G58: =IF($F$14=1,IF($F$16=0,0,IF($F$18=0,0,IF($F$18=1,(VLOOKUP(1,Tablas!$A$747:$G$749,3,TRUE)),(VLOOKUP(2,Tablas!$A$747:$G$749,3,TRUE))))), IF($F$16=0,0,IF($F$18=0,0,IF($F$18=1,(VLOOKUP(1,Tablas!$A$747:$G$749,3,TRUE)),IF($F$18=2,(VLOOKUP(2,Tablas!$A$747:$G$749,3,TRUE)), (VLOOKUP(3,Tablas!$A$747:$G$749,3,TRUE))))))) -> 1587.39625 | H58: =IF($F$14=1,IF($F$16=0,0,IF($F$18=0,0,IF($F$18=1,(VLOOKUP(1,Tablas!$A$747:$G$749,4,TRUE)),(VLOOKUP(2,Tablas!$A$747:$G$749,4,TRUE))))), IF($F$16=0,0,IF($F$18=0,0,IF($F$18=1,(VLOOKUP(1,Tablas!$A$747:$G$749,4,TRUE)),IF($F$18=2,(VLOOKUP(2,Tablas!$A$747:$G$749,4,TRUE)), (VLOOKUP(3,Tablas!$A$747:$G$749,4,TRUE))))))) -> 1391.28 | I58: =IF($F$14=1,IF($F$16=0,0,IF($F$18=0,0,IF($F$18=1,(VLOOKUP(1,Tablas!$A$747:$G$749,5,TRUE)),(VLOOKUP(2,Tablas!$A$747:$G$749,5,TRUE))))), IF($F$16=0,0,IF($F$18=0,0,IF($F$18=1,(VLOOKUP(1,Tablas!$A$747:$G$749,5,TRUE)),IF($F$18=2,(VLOOKUP(2,Tablas!$A$747:$G$749,5,TRUE)), (VLOOKUP(3,Tablas!$A$747:$G$749,5,TRUE))))))) -> 1130.18125 | J58: =IF($F$14=1,IF($F$16=0,0,IF($F$18=0,0,IF($F$18=1,(VLOOKUP(1,Tablas!$A$747:$G$749,6,TRUE)),(VLOOKUP(2,Tablas!$A$747:$G$749,6,TRUE))))), IF($F$16=0,0,IF($F$18=0,0,IF($F$18=1,(VLOOKUP(1,Tablas!$A$747:$G$749,6,TRUE)),IF($F$18=2,(VLOOKUP(2,Tablas!$A$747:$G$749,6,TRUE)), (VLOOKUP(3,Tablas!$A$747:$G$749,6,TRUE))))))) -> 980.3475 | K58: =IF($F$14=1,IF($F$16=0,0,IF($F$18=0,0,IF($F$18=1,(VLOOKUP(1,Tablas!$A$747:$G$749,7,TRUE)),(VLOOKUP(2,Tablas!$A$747:$G$749,7,TRUE))))), IF($F$16=0,0,IF($F$18=0,0,IF($F$18=1,(VLOOKUP(1,Tablas!$A$747:$G$749,7,TRUE)),IF($F$18=2,(VLOOKUP(2,Tablas!$A$747:$G$749,7,TRUE)), (VLOOKUP(3,Tablas!$A$747:$G$749,7,TRUE))))))) -> 728.59875
E60: Tarifas en US$ - Efectivas a partir del 1ro. de enero de 2022
E61: Este presupuesto solamente tiene carácter informativo y en ningún momento expresa compromiso legal para suministrarle cobertura de seguro. La emisión de una póliza de seguro Bupa está sujeta a todas las evaluaciones de riesgo por parte de Bupa y a la recepción de todos los pagos de prima requeridos.

Sheet Global Health Premier
A14: RESUMEN DE BENEFICIOS | D14: Nombre del Asegurado Titular | F14: =+'INGRESO DE DATOS'!$D$15 -> Nombre Completo
D16: Número de adultos en la póliza | F16: =+'INGRESO DE DATOS'!$D$17 -> 2 | H16: Edad del Asegurado Titular | I16: =+'INGRESO DE DATOS'!$D$19 -> 42
D18: Número de niños en la póliza | F18: =+'INGRESO DE DATOS'!$H$17 -> 3 | H18: Edad del/la conyuge | I18: =+'INGRESO DE DATOS'!$H$19 -> 38
F20: Fecha de la cotización: | G20: =NOW() -> 2022-08-25T10:38:56.600
H21: FALSE
E22: Zona de cotización: | F22: ='INGRESO DE DATOS'!D21 -> Resto de Ecuador
E24: Deducibles | G24: PLAN 1 | H24: PLAN 2 | I24: PLAN 3 | J24: PLAN 4 | K24: PLAN 5
E25: En el país de residencia | G25: 250 | H25: 2000 | I25: 5000 | J25: 10000 | K25: 20000
E26: Fuera del país de residencia | G26: 5000 | H26: 2000 | I26: 5000 | J26: 10000 | K26: 20000
E28: Tarifas Anuales
E29: Prima para Asegurado Titular | G29: =VLOOKUP($I$16,Tablas!$A$155:$G$221,3,TRUE)+75 -> 7855.05 | H29: =VLOOKUP($I$16,Tablas!$A$155:$G$221,4,TRUE)+75 -> 7134.25 | I29: =VLOOKUP($I$16,Tablas!$A$155:$G$221,5,TRUE)+75 -> 5005.85 | J29: =VLOOKUP($I$16,Tablas!$A$155:$G$221,6,TRUE)+75 -> 3589.75 | K29: =VLOOKUP($I$16,Tablas!$A$155:$G$221,7,TRUE)+75 -> 2832.4
E30: Prima para conyuge | G30: =IF($F$16=1,0,(VLOOKUP($I$18,Tablas!$A$155:$G$221,3,TRUE))) -> 6944.5 | H30: =IF($F$16=1,0,(VLOOKUP($I$18,Tablas!$A$155:$G$221,4,TRUE))) -> 6303.6 | I30: =IF($F$16=1,0,(VLOOKUP($I$18,Tablas!$A$155:$G$221,5,TRUE))) -> 4434.45 | J30: =IF($F$16=1,0,(VLOOKUP($I$18,Tablas!$A$155:$G$221,6,TRUE))) -> 3162.85 | K30: =IF($F$16=1,0,(VLOOKUP($I$18,Tablas!$A$155:$G$221,7,TRUE))) -> 2481.15
E31: Prima para hijo (s) | G31: =IF($F$18=0,0,(VLOOKUP($F$18,Tablas!$A$222:$G$224,3,TRUE))) -> 5307.4 | H31: =IF($F$18=0,0,(VLOOKUP($F$18,Tablas!$A$222:$G$224,4,TRUE))) -> 4818.65 | I31: =IF($F$18=0,0,(VLOOKUP($F$18,Tablas!$A$222:$G$224,5,TRUE))) -> 3547.9 | J31: =IF($F$18=0,0,(VLOOKUP($F$18,Tablas!$A$222:$G$224,6,TRUE))) -> 2529.6 | K31: =IF($F$18=0,0,(VLOOKUP($F$18,Tablas!$A$222:$G$224,7,TRUE))) -> 1984.75
E32: Total de Prima neta | G32: =SUM(G29:G31) -> 20106.95 | H32: =SUM(H29:H31) -> 18256.5 | I32: 12988.2 | J32: =SUM(J29:J31) -> 9282.2 | K32: 7298.3
E33: Tarifa administrativa anual | G33: 0 | H33: 0 | I33: 0 | J33: 0 | K33: 0
E34: Contribución 3.5% Superintendencia de Bancos Contribución 0.5% Seguro Social Campesino | G34: =(G32)*4% -> 804.278 | H34: =(H32)*4% -> 730.26 | I34: =(I32)*4% -> 519.528 | J34: =(J32)*4% -> 371.288 | K34: =(K32)*4% -> 291.932
E35: TOTAL ANUAL | G35: =SUM(G32:G34) -> 20911.228 | H35: =SUM(H32:H34) -> 18986.76 | I35: =SUM(I32:I34) -> 13507.728 | J35: =SUM(J32:J34) -> 9653.488 | K35: =SUM(K32:K34) -> 7590.232
E37: Tarifas Semianuales
E38: Prima para Asegurado Titular | G38: =VLOOKUP($I$16,Tablas!$A$530:$G$596,3,TRUE)+75 -> 4198.4265 | H38: =VLOOKUP($I$16,Tablas!$A$530:$G$596,4,TRUE)+75 -> 3816.4025 | I38: =VLOOKUP($I$16,Tablas!$A$530:$G$596,5,TRUE)+75 -> 2688.3505 | J38: =VLOOKUP($I$16,Tablas!$A$530:$G$596,6,TRUE)+75 -> 1937.8175 | K38: =VLOOKUP($I$16,Tablas!$A$530:$G$596,7,TRUE)+75 -> 1536.422
E39: Prima para conyuge | G39: =IF($F$16=1,0,(VLOOKUP($I$18,Tablas!$A$530:$G$596,3,TRUE))) -> 3680.585 | H39: =IF($F$16=1,0,(VLOOKUP($I$18,Tablas!$A$530:$G$596,4,TRUE))) -> 3340.908 | I39: =IF($F$16=1,0,(VLOOKUP($I$18,Tablas!$A$530:$G$596,5,TRUE))) -> 2350.2585 | J39: =IF($F$16=1,0,(VLOOKUP($I$18,Tablas!$A$530:$G$596,6,TRUE))) -> 1676.3105 | K39: =IF($F$16=1,0,(VLOOKUP($I$18,Tablas!$A$530:$G$596,7,TRUE))) -> 1315.0095
E40: Prima para hijo (s) | G40: =IF($F$18=0,0,(VLOOKUP($F$18,Tablas!$A$597:$G$599,3,TRUE))) -> 2812.922 | H40: =IF($F$18=0,0,(VLOOKUP($F$18,Tablas!$A$597:$G$599,4,TRUE))) -> 2553.8845 | I40: =IF($F$18=0,0,(VLOOKUP($F$18,Tablas!$A$597:$G$599,5,TRUE))) -> 1880.387 | J40: =IF($F$18=0,0,(VLOOKUP($F$18,Tablas!$A$597:$G$599,6,TRUE))) -> 1340.688 | K40: =IF($F$18=0,0,(VLOOKUP($F$18,Tablas!$A$597:$G$599,7,TRUE))) -> 1051.9175
E41: Total de Prima neta | G41: =SUM(G38:G40) -> 10691.9335 | H41: =SUM(H38:H40) -> 9711.195 | I41: =SUM(I38:I40) -> 6918.996 | J41: =SUM(J38:J40) -> 4954.816 | K41: =SUM(K38:K40) -> 3903.349
E42: Tarifa administrativa anual | G42: 0 | H42: 0 | I42: 0 | J42: 0 | K42: 0
E43: Contribución 3.5% Superintendencia de Bancos Contribución 0.5% Seguro Social Campesino | G43: =(G41)*4% -> 427.67734 | H43: =(H41)*4% -> 388.4478 | I43: =(I41)*4% -> 276.75984 | J43: =(J41)*4% -> 198.19264 | K43: =(K41)*4% -> 156.13396
E44: TOTAL de primera cuota | G44: =SUM(G41:G43) -> 11119.61084 | H44: =SUM(H41:H43) -> 10099.6428 | I44: =SUM(I41:I43) -> 7195.75584 | J44: =SUM(J41:J43) -> 5153.00864 | K44: =SUM(K41:K43) -> 4059.48296
E45: Costo de segunda cuota | G45: =G41+G43-78 -> 11041.61084 | H45: =H41+H43-78 -> 10021.6428 | I45: =I41+I43-78 -> 7117.75584 | J45: =J41+J43-78 -> 5075.00864 | K45: =K41+K43-78 -> 3981.48296
E46: TOTAL ANUAL | G46: =G44+G45 -> 22161.22168 | H46: =H44+H45 -> 20121.2856 | I46: 14313.51168 | J46: =J44+J45 -> 10228.01728 | K46: 8040.96592
E48: Tarifas Trimestrales
E49: Prima para Asegurado Titular | G49: =VLOOKUP($I$16,Tablas!$A$755:$G$821,3,TRUE)+75 -> 2214.51375 | H49: =VLOOKUP($I$16,Tablas!$A$755:$G$821,4,TRUE)+75 -> 2016.29375 | I49: =VLOOKUP($I$16,Tablas!$A$755:$G$821,5,TRUE)+75 -> 1430.98375 | J49: =VLOOKUP($I$16,Tablas!$A$755:$G$821,6,TRUE)+75 -> 1041.55625 | K49: =VLOOKUP($I$16,Tablas!$A$755:$G$821,7,TRUE)+75 -> 833.285
E50: Prima para conyuge | G50: =IF($F$16=1,0,(VLOOKUP($I$18,Tablas!$A$755:$G$821,3,TRUE))) -> 1909.7375 | H50: =IF($F$16=1,0,(VLOOKUP($I$18,Tablas!$A$755:$G$821,4,TRUE))) -> 1733.49 | I50: =IF($F$16=1,0,(VLOOKUP($I$18,Tablas!$A$755:$G$821,5,TRUE))) -> 1219.47375 | J50: =IF($F$16=1,0,(VLOOKUP($I$18,Tablas!$A$755:$G$821,6,TRUE))) -> 869.78375 | K50: =IF($F$16=1,0,(VLOOKUP($I$18,Tablas!$A$755:$G$821,7,TRUE))) -> 682.31625
E51: Prima para hijo (s) | G51: =IF($F$18=0,0,(VLOOKUP($F$18,Tablas!$A$822:$G$824,3,TRUE))) -> 1459.535 | H51: =IF($F$18=0,0,(VLOOKUP($F$18,Tablas!$A$822:$G$824,4,TRUE))) -> 1325.12875 | I51: =IF($F$18=0,0,(VLOOKUP($F$18,Tablas!$A$822:$G$824,5,TRUE))) -> 975.6725 | J51: =IF($F$18=0,0,(VLOOKUP($F$18,Tablas!$A$822:$G$824,6,TRUE))) -> 695.64 | K51: =IF($F$18=0,0,(VLOOKUP($F$18,Tablas!$A$822:$G$824,7,TRUE))) -> 545.80625
E52: Total de Prima neta | G52: =SUM(G49:G51) -> 5583.78625 | H52: =SUM(H49:H51) -> 5074.9125 | I52: =SUM(I49:I51) -> 3626.13 | J52: =SUM(J49:J51) -> 2606.98 | K52: =SUM(K49:K51) -> 2061.4075
E53: Tarifa administrativa anual | G53: 0 | H53: 0 | I53: 0 | J53: 0 | K53: 0
E54: Contribución 3.5% Superintendencia de Bancos Contribución 0.5% Seguro Social Campesino | G54: =(G52)*4% -> 223.35145 | H54: =(H52)*4% -> 202.9965 | I54: =(I52)*4% -> 145.0452 | J54: =(J52)*4% -> 104.2792 | K54: =(K52)*4% -> 82.4563
E55: TOTAL de primera cuota | G55: =SUM(G52:G54) -> 5807.1377 | H55: =SUM(H52:H54) -> 5277.909 | I55: =SUM(I52:I54) -> 3771.1752 | J55: =SUM(J52:J54) -> 2711.2592 | K55: =SUM(K52:K54) -> 2143.8638
E56: Tres (3) cuotas adicionales, cada una de: | G56: =G52+G54-78 -> 5729.1377 | H56: =H52+H54-78 -> 5199.909 | I56: =I52+I54-78 -> 3693.1752 | J56: =J52+J54-78 -> 2633.2592 | K56: =K52+K54-78 -> 2065.8638
E57: TOTAL ANUAL | G57: =G55+(G56*3) -> 22994.5508 | H57: =H55+(H56*3) -> 20877.636 | I57: 14850.7008 | J57: =J55+(J56*3) -> 10611.0368 | K57: 8341.4552
E59: Tarifas en US$ - Efectivas a partir del 1ro. de enero de 2022
E60: Este presupuesto solamente tiene carácter informativo y en ningún momento expresa compromiso legal para suministrarle cobertura de seguro. La emisión de una póliza de seguro Bupa está sujeta a todas las evaluaciones de riesgo por parte de Bupa y a la recepción de todos los pagos de prima requeridos.

Sheet Global Health Select
A13: RESUMEN DE BENEFICIOS | D13: Nombre del Asegurado Titular | F13: =+'INGRESO DE DATOS'!$D$15 -> Nombre Completo
D15: Número de adultos en la póliza | F15: =+'INGRESO DE DATOS'!$D$17 -> 2 | H15: Edad del Asegurado Titular | I15: =+'INGRESO DE DATOS'!$D$19 -> 42
D17: Número de niños en la póliza | F17: =+'INGRESO DE DATOS'!$H$17 -> 3 | H17: Edad del/la conyuge | I17: =+'INGRESO DE DATOS'!$H$19 -> 38
F19: Fecha de la cotización: | G19: =NOW() -> 2022-08-25T10:38:56.600
H20: FALSE
E21: Zona de cotización: | F21: ='INGRESO DE DATOS'!D21 -> Resto de Ecuador
E23: Deducibles | G23: PLAN 1 | H23: PLAN 2 | I23: PLAN 3 | J23: PLAN 4 | K23: PLAN 5
E24: En el país de residencia | G24: 250 | H24: 2000 | I24: 5000 | J24: 10000 | K24: 20000
E25: Fuera del país de residencia | G25: 5000 | H25: 2000 | I25: 5000 | J25: 10000 | K25: 20000
E27: Tarifas Anuales
E28: Prima para Asegurado Titular | G28: =VLOOKUP($I$15,Tablas!$A$305:$G$371,3,TRUE)+75 -> 5194.55 | H28: =VLOOKUP($I$15,Tablas!$A$305:$G$371,4,TRUE)+75 -> 4986.3 | I28: =VLOOKUP($I$15,Tablas!$A$305:$G$371,5,TRUE)+75 -> 3505.6 | J28: =VLOOKUP($I$15,Tablas!$A$305:$G$371,6,TRUE)+75 -> 2517.9 | K28: =VLOOKUP($I$15,Tablas!$A$305:$G$371,7,TRUE)+75 -> 1990.9
E29: Prima para conyuge | G29: =IF($F$15=1,0,(VLOOKUP($I$17,Tablas!$A$305:$G$371,3,TRUE))) -> 4513.5 | H29: =IF($F$15=1,0,(VLOOKUP($I$17,Tablas!$A$305:$G$371,4,TRUE))) -> 4329.9 | I29: =IF($F$15=1,0,(VLOOKUP($I$17,Tablas!$A$305:$G$371,5,TRUE))) -> 3048.1 | J29: =IF($F$15=1,0,(VLOOKUP($I$17,Tablas!$A$305:$G$371,6,TRUE))) -> 2170.9 | K29: =IF($F$15=1,0,(VLOOKUP($I$17,Tablas!$A$305:$G$371,7,TRUE))) -> 1703.4
E30: Prima para hijo (s) | G30: =IF($F$17=0,0,(VLOOKUP($F$17,Tablas!$A$372:$G$374,3,TRUE))) -> 3672 | H30: =IF($F$17=0,0,(VLOOKUP($F$17,Tablas!$A$372:$G$374,4,TRUE))) -> 3523.25 | I30: =IF($F$17=0,0,(VLOOKUP($F$17,Tablas!$A$372:$G$374,5,TRUE))) -> 2609.5 | J30: =IF($F$17=0,0,(VLOOKUP($F$17,Tablas!$A$372:$G$374,6,TRUE))) -> 1857.25 | K30: =IF($F$17=0,0,(VLOOKUP($F$17,Tablas!$A$372:$G$374,7,TRUE))) -> 1456.9
E31: Total de Prima neta | G31: =SUM(G28:G30) -> 13380.05 | H31: =SUM(H28:H30) -> 12839.45 | I31: =SUM(I28:I30) -> 9163.2 | J31: =SUM(J28:J30) -> 6546.05 | K31: =SUM(K28:K30) -> 5151.2
E32: Tarifa administrativa anual | G32: 0 | H32: 0 | I32: 0 | J32: 0 | K32: 0
E33: Contribución 3.5% Superintendencia de Bancos Contribución 0.5% Seguro Social Campesino | G33: =(G31)*4% -> 535.202 | H33: =(H31)*4% -> 513.578 | I33: =(I31)*4% -> 366.528 | J33: =(J31)*4% -> 261.842 | K33: =(K31)*4% -> 206.048
E34: TOTAL ANUAL | G34: =SUM(G31:G33) -> 13915.252 | H34: =SUM(H31:H33) -> 13353.028 | I34: =SUM(I31:I33) -> 9529.728 | J34: =SUM(J31:J33) -> 6807.892 | K34: =SUM(K31:K33) -> 5357.248
E36: Tarifas Semianuales
E37: Prima para Asegurado Titular | G37: =VLOOKUP($I$15,Tablas!$A$605:$G$671,3,TRUE)+75 -> 2788.3615 | H37: =VLOOKUP($I$15,Tablas!$A$605:$G$671,4,TRUE)+75 -> 2677.989 | I37: =VLOOKUP($I$15,Tablas!$A$605:$G$671,5,TRUE)+75 -> 1893.218 | J37: =VLOOKUP($I$15,Tablas!$A$605:$G$671,6,TRUE)+75 -> 1369.737 | K37: =VLOOKUP($I$15,Tablas!$A$605:$G$671,7,TRUE)+75 -> 1090.427
E38: Prima para conyuge | G38: =IF($F$15=1,0,(VLOOKUP($I$17,Tablas!$A$605:$G$671,3,TRUE))) -> 2392.155 | H38: =IF($F$15=1,0,(VLOOKUP($I$17,Tablas!$A$605:$G$671,4,TRUE))) -> 2294.847 | I38: =IF($F$15=1,0,(VLOOKUP($I$17,Tablas!$A$605:$G$671,5,TRUE))) -> 1615.493 | J38: =IF($F$15=1,0,(VLOOKUP($I$17,Tablas!$A$605:$G$671,6,TRUE))) -> 1150.577 | K38: =IF($F$15=1,0,(VLOOKUP($I$17,Tablas!$A$605:$G$671,7,TRUE))) -> 902.802
E39: Prima para hijo (s) | G39: =IF($F$17=0,0,(VLOOKUP($F$17,Tablas!$A$672:$G$674,3,TRUE))) -> 1946.16 | H39: =IF($F$17=0,0,(VLOOKUP($F$17,Tablas!$A$672:$G$674,4,TRUE))) -> 1867.3225 | I39: =IF($F$17=0,0,(VLOOKUP($F$17,Tablas!$A$672:$G$674,5,TRUE))) -> 1383.035 | J39: =IF($F$17=0,0,(VLOOKUP($F$17,Tablas!$A$672:$G$674,6,TRUE))) -> 984.3425 | K39: =IF($F$17=0,0,(VLOOKUP($F$17,Tablas!$A$672:$G$674,7,TRUE))) -> 772.157
E40: Total de Prima neta | G40: =SUM(G37:G39) -> 7126.6765 | H40: =SUM(H37:H39) -> 6840.1585 | I40: =SUM(I37:I39) -> 4891.746 | J40: =SUM(J37:J39) -> 3504.6565 | K40: =SUM(K37:K39) -> 2765.386
E41: Tarifa administrativa anual | G41: 0 | H41: 0 | I41: 0 | J41: 0 | K41: 0
E42: Contribución 3.5% Superintendencia de Bancos Contribución 0.5% Seguro Social Campesino | G42: =(G40)*4% -> 285.06706 | H42: =(H40)*4% -> 273.60634 | I42: =(I40)*4% -> 195.66984 | J42: =(J40)*4% -> 140.18626 | K42: =(K40)*4% -> 110.61544
E43: TOTAL de primera cuota | G43: =SUM(G40:G42) -> 7411.74356 | H43: =SUM(H40:H42) -> 7113.76484 | I43: =SUM(I40:I42) -> 5087.41584 | J43: =SUM(J40:J42) -> 3644.84276 | K43: =SUM(K40:K42) -> 2876.00144
E44: Costo de segunda cuota | G44: =G40+G42-78 -> 7333.74356 | H44: =H40+H42-78 -> 7035.76484 | I44: =I40+I42-78 -> 5009.41584 | J44: =J40+J42-78 -> 3566.84276 | K44: =K40+K42-78 -> 2798.00144
E45: TOTAL ANUAL | G45: =G43+G44 -> 14745.48712 | H45: =H43+H44 -> 14149.52968 | I45: 10096.83168 | J45: =J43+J44 -> 7211.68552 | K45: 5674.00288
E47: Tarifas Trimestrales
E48: Prima para Asegurado Titular | G48: =VLOOKUP($I$15,Tablas!$A$830:$G$896,3,TRUE)+75 -> 1482.87625 | H48: =VLOOKUP($I$15,Tablas!$A$830:$G$896,4,TRUE)+75 -> 1425.6075 | I48: =VLOOKUP($I$15,Tablas!$A$830:$G$896,5,TRUE)+75 -> 1018.415 | J48: =VLOOKUP($I$15,Tablas!$A$830:$G$896,6,TRUE)+75 -> 746.7975 | K48: =VLOOKUP($I$15,Tablas!$A$830:$G$896,7,TRUE)+75 -> 601.8725
E49: Prima para conyuge | G49: =IF($F$15=1,0,(VLOOKUP($I$17,Tablas!$A$830:$G$896,3,TRUE))) -> 1241.2125 | H49: =IF($F$15=1,0,(VLOOKUP($I$17,Tablas!$A$830:$G$896,4,TRUE))) -> 1190.7225 | I49: =IF($F$15=1,0,(VLOOKUP($I$17,Tablas!$A$830:$G$896,5,TRUE))) -> 838.2275 | J49: =IF($F$15=1,0,(VLOOKUP($I$17,Tablas!$A$830:$G$896,6,TRUE))) -> 596.9975 | K49: =IF($F$15=1,0,(VLOOKUP($I$17,Tablas!$A$830:$G$896,7,TRUE))) -> 468.435
E50: Prima para hijo (s) | G50: =IF($F$17=0,0,(VLOOKUP($F$17,Tablas!$A$897:$G$899,3,TRUE))) -> 1009.8 | H50: =IF($F$17=0,0,(VLOOKUP($F$17,Tablas!$A$897:$G$899,4,TRUE))) -> 968.89375 | I50: =IF($F$17=0,0,(VLOOKUP($F$17,Tablas!$A$897:$G$899,5,TRUE))) -> 717.6125 | J50: =IF($F$17=0,0,(VLOOKUP($F$17,Tablas!$A$897:$G$899,6,TRUE))) -> 510.74375 | K50: =IF($F$17=0,0,(VLOOKUP($F$17,Tablas!$A$897:$G$899,7,TRUE))) -> 400.6475
E51: Total de Prima neta | G51: =SUM(G48:G50) -> 3733.88875 | H51: =SUM(H48:H50) -> 3585.22375 | I51: =SUM(I48:I50) -> 2574.255 | J51: =SUM(J48:J50) -> 1854.53875 | K51: =SUM(K48:K50) -> 1470.955
E52: Tarifa administrativa anual | G52: 0 | H52: 0 | I52: 0 | J52: 0 | K52: 0
E53: Contribución 3.5% Superintendencia de Bancos Contribución 0.5% Seguro Social Campesino | G53: =(G51)*4% -> 149.35555 | H53: =(H51)*4% -> 143.40895 | I53: =(I51)*4% -> 102.9702 | J53: =(J51)*4% -> 74.18155 | K53: =(K51)*4% -> 58.8382
E54: TOTAL de primera cuota | G54: =SUM(G51:G53) -> 3883.2443 | H54: =SUM(H51:H53) -> 3728.6327 | I54: =SUM(I51:I53) -> 2677.2252 | J54: =SUM(J51:J53) -> 1928.7203 | K54: =SUM(K51:K53) -> 1529.7932
E55: Tres (3) cuotas adicionales, cada una de: | G55: =G51+G53-78 -> 3805.2443 | H55: =H51+H53-78 -> 3650.6327 | I55: =I51+I53-78 -> 2599.2252 | J55: =J51+J53-78 -> 1850.7203 | K55: =K51+K53-78 -> 1451.7932
E56: TOTAL ANUAL | G56: =G54+(G55*3) -> 15298.9772 | H56: =H54+(H55*3) -> 14680.5308 | I56: 10474.9008 | J56: =J54+(J55*3) -> 7480.8812 | K56: 5885.1728
E58: Tarifas en US$ - Efectivas a partir del 1ro. de enero de 2022
E59: Este presupuesto solamente tiene carácter informativo y en ningún momento expresa compromiso legal para suministrarle cobertura de seguro. La emisión de una póliza de seguro Bupa está sujeta a todas las evaluaciones de riesgo por parte de Bupa y a la recepción de todos los pagos de prima requeridos.

Sheet — (hidden)
A23: Global Major Medical Health Plan | D23: Nombre del Asegurado Titular | F23: =+'INGRESO DE DATOS'!$D$15 -> Nombre Completo
A24: Cobertura geográfica | B24: Mundial
A25: Red de proveedores | B25: En Latinoamérica: Abierta En estados Unidos: BCBS En el resto del Mundo: Red Global Bupa | D25: Número de adultos en la póliza | F25: =+'INGRESO DE DATOS'!$D$17 -> 2 | H25: Edad del Asegurado Titular | I25: =+'INGRESO DE DATOS'!$D$19 -> 42
A26: Opción fuera de la red de proveedores | B26: N/A
A27: Cobertura máxima annual | B27: US$5,000,000 | D27: Número de niños en la póliza | F27: =+'INGRESO DE DATOS'!$H$17 -> 3 | H27: Edad del/la conyuge | I27: =+'INGRESO DE DATOS'!$H$19 -> 38
A28: Cobertura extendida para dependientes elegibles | B28: 1 año
A29: Inclusión de niños sin costo | B29: Tarifas con descuentos para 1, 2 y 3 o más hijos | F29: Fecha de la cotización: | H29: =NOW() -> 2022-08-25T10:38:56.600
A30: TRATAMIENTOS AMBULATORIOS | H30: FALSE
A31: Cirugía ambulatoria | B31: 1 | E31: Deducibles | G31: PLAN 1 | H31: PLAN 2
A32: Exámenes de patología, radiología y diagnóstico | B32: 1 | E32: En el país de residencia | G32: 10000 | H32: 20000
A33: Honorarios médicos | B33: N/A | E33: Fuera del país de residencia | G33: 10000 | H33: 20000
A34: Enfermeros profesionales | B34: N/A
A35: Salud mental | B35: N/A | E35: Tarifas Anuales
A36: Fisioterapeutas, osteópatas y quiroprácticos | B36: N/A | E36: Prima para Asegurado Titular | G36: =VLOOKUP($I$25,Tablas!$A$1129:$G$1195,3,TRUE) -> 3586 | H36: =VLOOKUP($I$25,Tablas!$A$1129:$G$1195,4,TRUE) -> 2717
A37: Terapeuta ocupacional y ortóptico | B37: N/A | E37: Prima para conyuge | G37: =IF($F$25=1,0,(VLOOKUP($I$27,Tablas!$A$1129:$G$1195,3,TRUE))) -> 3198 | H37: =IF($F$25=1,0,(VLOOKUP($I$27,Tablas!$A$1129:$G$1195,4,TRUE))) -> 2428
A38: Podología | B38: N/A | E38: Prima para hijo (s) | G38: =IF($F$27=0,0,(VLOOKUP($F$27,Tablas!$A$1196:$G$1198,3,TRUE))) -> 2428 | H38: =IF($F$27=0,0,(VLOOKUP($F$27,Tablas!$A$1196:$G$1198,4,TRUE))) -> 1905
A39: Terapias complementarias | B39: N/A | E39: Total de Prima neta | G39: =SUM(G36:G38) -> 9212 | H39: =SUM(H36:H38) -> 7050
A40: Consultas medicina alternativa | B40: N/A | E40: Tarifa administrativa anual | G40: 75 | H40: 75
A41: Medicamentos y materiales de curación con receta médica | B41: 1 | E41: IVA (14.49%) | G41: =(G40)*14.49% -> 10.8675 | H41: =(H40)*14.49% -> 10.8675
A42: Equipo médico durable | B42: 1 | E42: TOTAL ANUAL | G42: =SUM(G39:G41) -> 9297.8675 | H42: =SUM(H39:H41) -> 7135.8675
A43: Asesoría nutricional | B43: N/A
A44: TRATAMIENTO DENTAL | E44: Tarifas Semianuales
A45: Tratamiento dental relacionado con un accidente cubierto | B45: 1 | E45: Prima para Asegurado Titular | G45: =VLOOKUP($I$25,Tablas!$A$1353:$G$1419,3,TRUE) -> 1900.58 | H45: =VLOOKUP($I$25,Tablas!$A$1353:$G$1419,4,TRUE) -> 1440.01
A46: Tratamiento dental : rellenos, tratamiento del conducto radicular, radiografia, extraccion dental, limpieza dental, anestecia | B46: N/A | E46: Prima para conyuge | G46: =IF($F$25=1,0,(VLOOKUP($I$27,Tablas!$A$1353:$G$1419,3,TRUE))) -> 1694.94 | H46: =IF($F$25=1,0,(VLOOKUP($I$27,Tablas!$A$1353:$G$1419,4,TRUE))) -> 1286.84
A47: Restauración mayor no estética : puentes, coronas, implantes dentales, dentaduras postizas | B47: N/A | E47: Prima para hijo (s) | G47: =IF($F$27=0,0,(VLOOKUP($F$27,Tablas!$A$1420:$G$1422,3,TRUE))) -> 1286.84 | H47: =IF($F$27=0,0,(VLOOKUP($F$27,Tablas!$A$1420:$G$1422,4,TRUE))) -> 1009.65
A48: Ortodoncia no estética | B48: N/A | E48: Total de Prima neta | G48: =SUM(G45:G47) -> 4882.36 | H48: =SUM(H45:H47) -> 3736.5
A49: HOSPITALIZACIÓN Y TRATAMIENTO EN EL HOSPITAL | E49: Tarifa administrativa anual | G49: 75 | H49: 75
A50: Alojamiento en el hospital y alimentos | B50: 100% habitación privada | E50: IVA (14.49%) | G50: =(G49)*14.49% -> 10.8675 | H50: =(H49)*14.49% -> 10.8675
E51: TOTAL de primera cuota | G51: =SUM(G48:G50) -> 4968.2275 | H51: =SUM(H48:H50) -> 3822.3675
A52: Gastos de alojamiento para acompañantes en caso de hospitalización | B52: N/A | E52: Costo de segunda cuota | G52: =G48+G50 - G49*14.49% -> 4882.36 | H52: =H48+H50 - H49*14.49% -> 3736.5
A53: Cama extra en el hospital para acompañante | B53: 100%, 1 persona | E53: TOTAL ANUAL | G53: =G51+G52 -> 9850.5875 | H53: =H51+H52 -> 7558.8675
A54: Derecho a sala, insumos, materiales clínicos y medicamentos | B54: 1
A55: Cuidados intensivos | B55: 1 | E55: Tarifas Trimestrales
A56: Cirugía, incluyendo honorarios de equipo médico quirúrgico | B56: 1 | E56: Prima para Asegurado Titular | G56: =VLOOKUP($I$25,Tablas!$A$1278:$G$1344,3,TRUE) -> 986.15 | H56: =VLOOKUP($I$25,Tablas!$A$1278:$G$1344,4,TRUE) -> 747.175
A57: Exámenes de patología, radiología y diagnóstico | B57: 1 | E57: Prima para conyuge | G57: =IF($F$25=1,0,(VLOOKUP($I$27,Tablas!$A$1278:$G$1344,3,TRUE))) -> 879.45 | H57: =IF($F$25=1,0,(VLOOKUP($I$27,Tablas!$A$1278:$G$1344,4,TRUE))) -> 667.7
A58: Fisioterapeutas, terapeutas ocupacionales, quinesiólogos, fonoaudiólogos y nutricionistas | B58: 1 | E58: Prima para hijo (s) | G58: =IF($F$27=0,0,(VLOOKUP($F$27,Tablas!$A$1345:$G$1347,3,TRUE))) -> 667.7 | H58: =IF($F$27=0,0,(VLOOKUP($F$27,Tablas!$A$1345:$G$1347,4,TRUE))) -> 523.875
A59: Cirugía por obesidad | B59: 100% (Período de espera de 24 meses) | E59: Total de Prima neta | G59: =SUM(G56:G58) -> 2533.3 | H59: =SUM(H56:H58) -> 1938.75
A60: Cirugía preventiva | B60: 1 | E60: Tarifa administrativa anual | G60: 75 | H60: 75
A61: Prótesis | B61: US$ 5,000 | E61: IVA (14.49%) | G61: =(G60)*14.49% -> 10.8675 | H61: =(H60)*14.49% -> 10.8675
A62: Implantes prostéticos y órtesis | B62: 1 | E62: TOTAL de primera cuota | G62: =SUM(G59:G61) -> 2619.1675 | H62: =SUM(H59:H61) -> 2024.6175
A63: Cirugía reconstructiva | B63: 1 | E63: Tres (3) cuotas adicionales, cada una de: | G63: =G59+G61 - G60*14.49% -> 2533.3 | H63: =H59+H61 - H60*14.49% -> 1938.75
A64: Salud Mental (durante hospitalización) | B64: 100% maximo 90 visitas de por vida | E64: TOTAL ANUAL | G64: =G62+(G63*3) -> 10219.0675 | H64: =H62+(H63*3) -> 7840.8675
A65: REHABILITACION Y CUIDADO PALIATIVOS
A66: Cuidados en el hogar | B66: US$ 300 por día, máximo 60 días | E66: Tarifas Mensuales
A67: Cuidados paliativos y centro para enfermeros terminales | B67: 1 | E67: Prima para Asegurado Titular | G67: =VLOOKUP($I$25,Tablas!$A$1203:$G$1269,3,TRUE) -> 334.6933333 | H67: =VLOOKUP($I$25,Tablas!$A$1203:$G$1269,4,TRUE) -> 253.5866667
A68: Rehabilitación (multidisciplinaria) | B68: 100% hasta 60 días | E68: Prima para conyuge | G68: =IF($F$25=1,0,(VLOOKUP($I$27,Tablas!$A$1203:$G$112694,3,TRUE))) -> 298.48 | H68: =IF($F$25=1,0,(VLOOKUP($I$27,Tablas!$A$1203:$G$1269,4,TRUE))) -> 226.6133333
A69: CUIDADOS PARA PACIENTES INTERNADOS Y/O PACIENTES AMBULATORIOS | E69: Prima para hijo (s) | G69: =IF($F$27=0,0,(VLOOKUP($F$27,Tablas!$A$1270:$G$1272,3,TRUE))) -> 226.6133333 | H69: =IF($F$27=0,0,(VLOOKUP($F$27,Tablas!$A$1270:$G$1272,4,TRUE))) -> 177.8
A70: Imagenología avanzada | B70: 1 | E70: Total de Prima neta | G70: =SUM(G67:G69) -> 859.7866667 | H70: =SUM(H67:H69) -> 658
A71: Condiciones congénitas | E71: Tarifa administrativa anual | G71: 75 | H71: 75
A72: 1. Diagnosticado antes de los 18 años de edad | B72: 1. US$500,000 de por vida | E72: IVA (14.49%) | G72: =(G71)*14.49% -> 10.8675 | H72: =(H71)*14.49% -> 10.8675
A73: 2. Diagnosticado al cumplir los 18 años de edad o después | B73: 2. 100% | E73: TOTAL de primera cuota | G73: =SUM(G70:G72) -> 945.6541667 | H73: =SUM(H70:H72) -> 743.8675
A74: Tratamiento contra el cáncer | B74: 1 | E74: Once (11) cuotas mensuales cada una de: | G74: =G70+G72 - G71*14.49% -> 859.7866667 | H74: =H70+H72 - H71*14.49% -> 658
A75: Servicio de trasplantes | B75: US$1,000,000 por diagnóstico, de por vida | E75: TOTAL ANUAL | G75: =G73+(G74*11) -> 10403.3075 | H75: =H73+(H74*11) -> 7981.8675
A76: Diálisis renal | B76: 1
A77: Síndrome de inmunodeficiencia adquirida (SIDA) (período de espera de 1 año) | B77: US$500,000 de por vida
A78: Cobertura para actividades y deportes peligrosos (Tanto de forma amateur como profesional o por compensación) | B78: 1
A79: EMBARAZO Y PARTO
A80: Parto normal y cesárea | B80: N/A
A81: Tratamiento pre y post parto | B81: N/A
A82: Complicaciones del embarazo y parto | B82: N/A
A83: TRANSPORTE Y VIAJES | E83: Tarifas en US$ - Efectivas a partir del 01 de Enero, 2017 hasta Julio 1, 2017
A84: Evacuación médica hospitalaria | B84: 1 | E84: Este presupuesto solamente tiene carácter informativo y en ningún momento expresa compromiso legal para suministrarle cobertura de seguro. La emisión de una póliza de seguro Bupa está sujeta a todas las evaluaciones de riesgo por parte de Bupa y a la recepción de todos los pagos de prima requeridos.
A85: Repatriación médica | B85: 1
A86: Ambulancia aérea local | B86: 1
A87: Ambulancia terrestre local | B87: 1
A88: Costos de viaje de traslado para un acompañante (por evacuación o repatriación)) | B88: 1
A89: Costos de alimentación y transporte para acompañante | B89: US$150 por día; maximo 10 días por año políza
A90: Costos de viaje de traslado de niños | B90: 1
A91: Costos de viaje de traslado, alimentación y trasporte para visita compasiva | B91: N/A
A92: Repatriación de restos mortales | B92: 1
A93: TRATAMIENTO PREVENTIVO
A94: Examen de salud general (período de espera de 10 meses) | B94: N/A
A95: Vacunas para niños, VPH, e Influenza | B95: N/A
A96: Examen dental preventivo (período de espera de 6 meses) (no deducible) | B96: N/A
A97: Exámen de la vista (no deducible) | B97: N/A
A98: Aparatos auditivos | B98: N/A
A99: Anteojos y lentes de contacto | B99: N/A
A100: Cirugía refractiva (1 por ojo, de por vida) | B100: N/A
A101: Prueba genética de cáncer | B101: N/A

Sheet Resumen tarifas
A17: Cotizador de Seguro Médico - Global Health Plans
A19: Nombre del Asegurado Titular | C19: =+'INGRESO DE DATOS'!$D$15 -> Nombre Completo
A21: Número de adultos en la póliza | C21: =+'INGRESO DE DATOS'!$D$17 -> 2 | E21: Edad del Asegurado Titular | G21: =+'INGRESO DE DATOS'!$D$19 -> 42
A23: Número de niños en la póliza | C23: =+'INGRESO DE DATOS'!$H$17 -> 3 | E23: Edad del/la cónyuge | G23: =+'INGRESO DE DATOS'!$H$19 -> 38
B25: Fecha de la cotización: | C25: =NOW() -> 2022-08-25T10:38:56.600 | F25: Zona de cotización: | G25: ='INGRESO DE DATOS'!D21 -> Resto de Ecuador
A27: Global Ultimtate Health Plan
A28: Deducibles | C28: PLAN 1 | D28: PLAN 2
A29: En el país de residencia | C29: 0 | D29: 1000
A30: Fuera del país de residencia | C30: 0 | D30: 1000
C31: Tarifas anuales
C32: ='Global Health Ultimate'!G33 -> 83127.2 | D32: ='Global Health Ultimate'!H33 -> 53659.84
C33: Tarifas semi anuales
C34: ='Global Health Ultimate'!G44 -> 44016.076 | D34: ='Global Health Ultimate'!H44 -> 28398.3752
C35: Tarifas trimestrales
C36: ='Global Health Ultimate'!G56 -> 22838.53 | D36: ='Global Health Ultimate'!H56 -> 14735.006
A37: Ahorros en tarifas de prima para niños* | C37: ='Global Health Ultimate'!G34 -> 9449 | D37: ='Global Health Ultimate'!H34 -> 6096
A39: Global Elite Health Plan
A40: Deducibles | D40: PLAN 1 | E40: PLAN 2 | F40: PLAN 3 | G40: PLAN 4 | H40: PLAN 5
A41: En el país de residencia | D41: 250 | E41: 2000 | F41: 3500 | G41: 5000 | H41: 10000
A42: Fuera del país de residencia | D42: 5000 | E42: 2000 | F42: 3500 | G42: 5000 | H42: 10000
D43: Tarifas anuales
D44: =+'Global Health Elite'!G33 -> 27114.256 | E44: =+'Global Health Elite'!H33 -> 23778.04 | F44: =+'Global Health Elite'!I33 -> 18864.768 | G44: =+'Global Health Elite'!J33 -> 16370.12 | H44: =+'Global Health Elite'!K33 -> 12185.264
D45: Tarifas semi anuales
D46: =+'Global Health Elite'!G44 -> 14329.21568 | E46: =+'Global Health Elite'!H44 -> 12561.0212 | F46: =+'Global Health Elite'!I44 -> 9956.98704 | G46: =+'Global Health Elite'!J44 -> 8634.8236 | H46: =+'Global Health Elite'!K44 -> 6416.84992
D47: Tarifas trimestrales
D48: =+'Global Health Elite'!G56 -> 7434.9704 | E48: =+'Global Health Elite'!H56 -> 6517.511 | F48: =+'Global Health Elite'!I56 -> 5166.3612 | G48: =+'Global Health Elite'!J56 -> 4480.333 | H48: =+'Global Health Elite'!K56 -> 3329.4976
A49: Ahorros en tarifas de prima para niños* | D49: =+'Global Health Elite'!G34 -> 5772.35 | E49: =+'Global Health Elite'!H34 -> 5059.2 | F49: =+'Global Health Elite'!I34 -> 4109.75 | G49: =+'Global Health Elite'!J34 -> 3564.9 | H49: =+'Global Health Elite'!K34 -> 4109.75
A51: Global Premier Health Plan
A52: Deducibles | E52: PLAN 1 | F52: PLAN 2 | G52: PLAN 3 | H52: PLAN 4 | I52: PLAN 5
A53: En el país de residencia | E53: 250 | F53: 2000 | G53: 5000 | H53: 10000 | I53: 20000
A54: Fuera del país de residencia | E54: 5000 | F54: 2000 | G54: 5000 | H54: 10000 | I54: 20000
E55: Tarifas anuales
E56: =+'Global Health Premier'!G35 -> 20911.228 | F56: =+'Global Health Premier'!H35 -> 18986.76 | G56: =+'Global Health Premier'!I35 -> 13507.728 | H56: =+'Global Health Premier'!J35 -> 9653.488 | I56: =+'Global Health Premier'!K35 -> 7590.232
E57: Tarifas semi anuales
E58: =+'Global Health Premier'!G45 -> 11041.61084 | F58: =+'Global Health Premier'!H45 -> 10021.6428 | G58: =+'Global Health Premier'!I45 -> 7117.75584 | H58: =+'Global Health Premier'!J45 -> 5075.00864 | I58: =+'Global Health Premier'!K45 -> 3981.48296
E59: Tarifas trimestrales
E60: =+'Global Health Premier'!G56 -> 5729.1377 | F60: =+'Global Health Premier'!H56 -> 5199.909 | G60: =+'Global Health Premier'!I56 -> 3693.1752 | H60: =+'Global Health Premier'!J56 -> 2633.2592 | I60: =+'Global Health Premier'!K56 -> 2065.8638
A62: Global Select Health Plan
A63: Deducibles | E63: PLAN 1 | F63: PLAN 2 | G63: PLAN 3 | H63: PLAN 4 | I63: PLAN 5
A64: En el país de residencia | E64: 250 | F64: 2000 | G64: 5000 | H64: 10000 | I64: 20000
A65: Fuera del país de residencia | E65: 5000 | F65: 2000 | G65: 5000 | H65: 10000 | I65: 20000
E66: Tarifas anuales
E67: =+'Global Health Select'!G34 -> 13915.252 | F67: =+'Global Health Select'!H34 -> 13353.028 | G67: =+'Global Health Select'!I34 -> 9529.728 | H67: =+'Global Health Select'!J34 -> 6807.892 | I67: =+'Global Health Select'!K34 -> 5357.248
E68: Tarifas semi anuales
E69: =+'Global Health Select'!G44 -> 7333.74356 | F69: =+'Global Health Select'!H44 -> 7035.76484 | G69: =+'Global Health Select'!I44 -> 5009.41584 | H69: =+'Global Health Select'!J44 -> 3566.84276 | I69: =+'Global Health Select'!K44 -> 2798.00144
E70: Tarifas trimestrales
E71: =+'Global Health Select'!G55 -> 3805.2443 | F71: =+'Global Health Select'!H55 -> 3650.6327 | G71: =+'Global Health Select'!I55 -> 2599.2252 | H71: =+'Global Health Select'!J55 -> 1850.7203 | I71: =+'Global Health Select'!K55 -> 1451.7932
A73: Bupa Global Major Medical Health Plan
A74: Deducibles | C74: PLAN 1 | D74: PLAN 2
A75: En el país de residencia | C75: 10000 | D75: 20000
A76: Fuera del país de residencia | C76: 10000 | D76: 20000
C77: Tarifas anuales
C78: =—!G42 -> 9297.8675 | D78: =—!H42 -> 7135.8675
C79: Tarifas semi anuales
C80: =—!G52 -> 4882.36 | D80: =—!H52 -> 3736.5
C81: Tarifas trimestrales
C82: =—!G63 -> 2533.3 | D82: =—!H63 -> 1938.75
A85: *Basado en un modo de pago anual
A87: Tarifas en US$ - Efectivas a partir del 1ro. de enero de 2022
A88: Este presupuesto solamente tiene carácter informativo y en ningún momento expresa compromiso legal para suministrarle cobertura de seguro. La emisión de una póliza de seguro Bupa está sujeta a todas las evaluaciones de riesgo por parte de Bupa y a la recepción de todos los pagos de prima requeridos.

Sheet Tablas (hidden)
A2: BUPA GLOBAL ELITE | I2: FACTOR MENSUAL: | K2: =1.12/12 -> 0.09333333333 | N2: Zonas
A3: TARIFAS ANUALES | I3: FACTOR TRIMESTRAL: | K3: =1.1/4 -> 0.275 | N3: Guayas/Santa Elena
A4: EDAD | I4: FACTOR SEMIANUAL: | K4: =1.06/2 -> 0.53 | N4: Resto de Ecuador
C5: 250 | D5: 2000 | E5: 3500 | F5: 5000 | G5: 10000
A6: 18 | C6: =O6 -> 8034.2 | D6: =P6 -> 7043.1 | E6: 5683.1 | F6: 4930.85 | G6: 3664.35 | I6: =IF('INGRESO DE DATOS'!$D$21="Guayas/Santa Elena",'Tablas Guayaquil'!C6,'Tablas Resto de Ecuador'!C6) -> 9452 | J6: =IF('INGRESO DE DATOS'!$D$21="Guayas/Santa Elena",'Tablas Guayaquil'!D6,'Tablas Resto de Ecuador'!D6) -> 8286 | K6: =IF('INGRESO DE DATOS'!$D$21="Guayas/Santa Elena",'Tablas Guayaquil'!E6,'Tablas Resto de Ecuador'!E6) -> 6686 | L6: =IF('INGRESO DE DATOS'!$D$21="Guayas/Santa Elena",'Tablas Guayaquil'!F6,'Tablas Resto de Ecuador'!F6) -> 5801 | M6: =IF('INGRESO DE DATOS'!$D$21="Guayas/Santa Elena",'Tablas Guayaquil'!G6,'Tablas Resto de Ecuador'!G6) -> 4311 | O6: =I6*0.85 -> 8034.2 | P6: =J6*0.85 -> 7043.1 | Q6: 5683.1 | R6: 4930.85 | S6: 3664.35
A7: 19 | C7: =O7 -> 8034.2 | D7: =P7 -> 7043.1 | E7: =Q7 -> 5683.1 | F7: =R7 -> 4930.85 | G7: =S7 -> 3664.35 | I7: =IF('INGRESO DE DATOS'!$D$21="Guayas/Santa Elena",'Tablas Guayaquil'!C7,'Tablas Resto de Ecuador'!C7) -> 9452 | J7: =IF('INGRESO DE DATOS'!$D$21="Guayas/Santa Elena",'Tablas Guayaquil'!D7,'Tablas Resto de Ecuador'!D7) -> 8286 | K7: =IF('INGRESO DE DATOS'!$D$21="Guayas/Santa Elena",'Tablas Guayaquil'!E7,'Tablas Resto de Ecuador'!E7) -> 6686 | L7: =IF('INGRESO DE DATOS'!$D$21="Guayas/Santa Elena",'Tablas Guayaquil'!F7,'Tablas Resto de Ecuador'!F7) -> 5801 | M7: =IF('INGRESO DE DATOS'!$D$21="Guayas/Santa Elena",'Tablas Guayaquil'!G7,'Tablas Resto de Ecuador'!G7) -> 4311 | O7: =I7*0.85 -> 8034.2 | P7: =J7*0.85 -> 7043.1 | Q7: =K7*0.85 -> 5683.1 | R7: =L7*0.85 -> 4930.85 | S7: =M7*0.85 -> 3664.35
A8: 20 | C8: 8034.2 | D8: 7043.1 | E8: 5683.1 | F8: 4930.85 | G8: 3664.35 | I8: =IF('INGRESO DE DATOS'!$D$21="Guayas/Santa Elena",'Tablas Guayaquil'!C8,'Tablas Resto de Ecuador'!C8) -> 9452 | J8: =IF('INGRESO DE DATOS'!$D$21="Guayas/Santa Elena",'Tablas Guayaquil'!D8,'Tablas Resto de Ecuador'!D8) -> 8286 | K8: =IF('INGRESO DE DATOS'!$D$21="Guayas/Santa Elena",'Tablas Guayaquil'!E8,'Tablas Resto de Ecuador'!E8) -> 6686 | L8: =IF('INGRESO DE DATOS'!$D$21="Guayas/Santa Elena",'Tablas Guayaquil'!F8,'Tablas Resto de Ecuador'!F8) -> 5801 | M8: =IF('INGRESO DE DATOS'!$D$21="Guayas/Santa Elena",'Tablas Guayaquil'!G8,'Tablas Resto de Ecuador'!G8) -> 4311 | O8: 8034.2 | P8: 7043.1 | Q8: 5683.1 | R8: 4930.85 | S8: 3664.35
A9: 21 | C9: 8034.2 | D9: 7043.1 | E9: 5683.1 | F9: 4930.85 | G9: 3664.35 | I9: =IF('INGRESO DE DATOS'!$D$21="Guayas/Santa Elena",'Tablas Guayaquil'!C9,'Tablas Resto de Ecuador'!C9) -> 9452 | J9: =IF('INGRESO DE DATOS'!$D$21="Guayas/Santa Elena",'Tablas Guayaquil'!D9,'Tablas Resto de Ecuador'!D9) -> 8286 | K9: =IF('INGRESO DE DATOS'!$D$21="Guayas/Santa Elena",'Tablas Guayaquil'!E9,'Tablas Resto de Ecuador'!E9) -> 6686 | L9: =IF('INGRESO DE DATOS'!$D$21="Guayas/Santa Elena",'Tablas Guayaquil'!F9,'Tablas Resto de Ecuador'!F9) -> 5801 | M9: =IF('INGRESO DE DATOS'!$D$21="Guayas/Santa Elena",'Tablas Guayaquil'!G9,'Tablas Resto de Ecuador'!G9) -> 4311 | O9: 8034.2 | P9: 7043.1 | Q9: 5683.1 | R9: 4930.85 | S9: 3664.35
A10: 22 | C10: 8034.2 | D10: 7043.1 | E10: 5683.1 | F10: 4930.85 | G10: 3664.35 | I10: =IF('INGRESO DE DATOS'!$D$21="Guayas/Santa Elena",'Tablas Guayaquil'!C10,'Tablas Resto de Ecuador'!C10) -> 9452 | J10: =IF('INGRESO DE DATOS'!$D$21="Guayas/Santa Elena",'Tablas Guayaquil'!D10,'Tablas Resto de Ecuador'!D10) -> 8286 | K10: =IF('INGRESO DE DATOS'!$D$21="Guayas/Santa Elena",'Tablas Guayaquil'!E10,'Tablas Resto de Ecuador'!E10) -> 6686 | L10: =IF('INGRESO DE DATOS'!$D$21="Guayas/Santa Elena",'Tablas Guayaquil'!F10,'Tablas Resto de Ecuador'!F10) -> 5801 | M10: =IF('INGRESO DE DATOS'!$D$21="Guayas/Santa Elena",'Tablas Guayaquil'!G10,'Tablas Resto de Ecuador'!G10) -> 4311 | O10: 8034.2 | P10: 7043.1 | Q10: 5683.1 | R10: 4930.85 | S10: 3664.35
A11: 23 | C11: 8034.2 | D11: 7043.1 | E11: 5683.1 | F11: 4930.85 | G11: 3664.35 | I11: =IF('INGRESO DE DATOS'!$D$21="Guayas/Santa Elena",'Tablas Guayaquil'!C11,'Tablas Resto de Ecuador'!C11) -> 9452 | J11: =IF('INGRESO DE DATOS'!$D$21="Guayas/Santa Elena",'Tablas Guayaquil'!D11,'Tablas Resto de Ecuador'!D11) -> 8286 | K11: =IF('INGRESO DE DATOS'!$D$21="Guayas/Santa Elena",'Tablas Guayaquil'!E11,'Tablas Resto de Ecuador'!E11) -> 6686 | L11: =IF('INGRESO DE DATOS'!$D$21="Guayas/Santa Elena",'Tablas Guayaquil'!F11,'Tablas Resto de Ecuador'!F11) -> 5801 | M11: =IF('INGRESO DE DATOS'!$D$21="Guayas/Santa Elena",'Tablas Guayaquil'!G11,'Tablas Resto de Ecuador'!G11) -> 4311 | O11: 8034.2 | P11: 7043.1 | Q11: 5683.1 | R11: 4930.85 | S11: 3664.35
A12: 24 | C12: 8034.2 | D12: 7043.1 | E12: 5683.1 | F12: 4930.85 | G12: 3664.35 | I12: =IF('INGRESO DE DATOS'!$D$21="Guayas/Santa Elena",'Tablas Guayaquil'!C12,'Tablas Resto de Ecuador'!C12) -> 9452 | J12: =IF('INGRESO DE DATOS'!$D$21="Guayas/Santa Elena",'Tablas Guayaquil'!D12,'Tablas Resto de Ecuador'!D12) -> 8286 | K12: =IF('INGRESO DE DATOS'!$D$21="Guayas/Santa Elena",'Tablas Guayaquil'!E12,'Tablas Resto de Ecuador'!E12) -> 6686 | L12: =IF('INGRESO DE DATOS'!$D$21="Guayas/Santa Elena",'Tablas Guayaquil'!F12,'Tablas Resto de Ecuador'!F12) -> 5801 | M12: =IF('INGRESO DE DATOS'!$D$21="Guayas/Santa Elena",'Tablas Guayaquil'!G12,'Tablas Resto de Ecuador'!G12) -> 4311 | O12: 8034.2 | P12: 7043.1 | Q12: 5683.1 | R12: 4930.85 | S12: 3664.35
A13: 25 | C13: 8586.7 | D13: 7525.9 | E13: 6036.7 | F13: 5236 | G13: 3889.6 | I13: =IF('INGRESO DE DATOS'!$D$21="Guayas/Santa Elena",'Tablas Guayaquil'!C13,'Tablas Resto de Ecuador'!C13) -> 10102 | J13: =IF('INGRESO DE DATOS'!$D$21="Guayas/Santa Elena",'Tablas Guayaquil'!D13,'Tablas Resto de Ecuador'!D13) -> 8854 | K13: =IF('INGRESO DE DATOS'!$D$21="Guayas/Santa Elena",'Tablas Guayaquil'!E13,'Tablas Resto de Ecuador'!E13) -> 7102 | L13: =IF('INGRESO DE DATOS'!$D$21="Guayas/Santa Elena",'Tablas Guayaquil'!F13,'Tablas Resto de Ecuador'!F13) -> 6160 | M13: =IF('INGRESO DE DATOS'!$D$21="Guayas/Santa Elena",'Tablas Guayaquil'!G13,'Tablas Resto de Ecuador'!G13) -> 4576 | O13: 8586.7 | P13: 7525.9 | Q13: 6036.7 | R13: 5236 | S13: 3889.6
A14: 26 | C14: 8586.7 | D14: 7525.9 | E14: 6036.7 | F14: 5236 | G14: 3889.6 | I14: =IF('INGRESO DE DATOS'!$D$21="Guayas/Santa Elena",'Tablas Guayaquil'!C14,'Tablas Resto de Ecuador'!C14) -> 10102 | J14: =IF('INGRESO DE DATOS'!$D$21="Guayas/Santa Elena",'Tablas Guayaquil'!D14,'Tablas Resto de Ecuador'!D14) -> 8854 | K14: =IF('INGRESO DE DATOS'!$D$21="Guayas/Santa Elena",'Tablas Guayaquil'!E14,'Tablas Resto de Ecuador'!E14) -> 7102 | L14: =IF('INGRESO DE DATOS'!$D$21="Guayas/Santa Elena",'Tablas Guayaquil'!F14,'Tablas Resto de Ecuador'!F14) -> 6160 | M14: =IF('INGRESO DE DATOS'!$D$21="Guayas/Santa Elena",'Tablas Guayaquil'!G14,'Tablas Resto de Ecuador'!G14) -> 4576 | O14: 8586.7 | P14: 7525.9 | Q14: 6036.7 | R14: 5236 | S14: 3889.6
A15: 27 | C15: 8586.7 | D15: 7525.9 | E15: 6036.7 | F15: 5236 | G15: 3889.6 | I15: =IF('INGRESO DE DATOS'!$D$21="Guayas/Santa Elena",'Tablas Guayaquil'!C15,'Tablas Resto de Ecuador'!C15) -> 10102 | J15: =IF('INGRESO DE DATOS'!$D$21="Guayas/Santa Elena",'Tablas Guayaquil'!D15,'Tablas Resto de Ecuador'!D15) -> 8854 | K15: =IF('INGRESO DE DATOS'!$D$21="Guayas/Santa Elena",'Tablas Guayaquil'!E15,'Tablas Resto de Ecuador'!E15) -> 7102 | L15: =IF('INGRESO DE DATOS'!$D$21="Guayas/Santa Elena",'Tablas Guayaquil'!F15,'Tablas Resto de Ecuador'!F15) -> 6160 | M15: =IF('INGRESO DE DATOS'!$D$21="Guayas/Santa Elena",'Tablas Guayaquil'!G15,'Tablas Resto de Ecuador'!G15) -> 4576 | O15: 8586.7 | P15: 7525.9 | Q15: 6036.7 | R15: 5236 | S15: 3889.6
A16: 28 | C16: 8586.7 | D16: 7525.9 | E16: 6036.7 | F16: 5236 | G16: 3889.6 | I16: =IF('INGRESO DE DATOS'!$D$21="Guayas/Santa Elena",'Tablas Guayaquil'!C16,'Tablas Resto de Ecuador'!C16) -> 10102 | J16: =IF('INGRESO DE DATOS'!$D$21="Guayas/Santa Elena",'Tablas Guayaquil'!D16,'Tablas Resto de Ecuador'!D16) -> 8854 | K16: =IF('INGRESO DE DATOS'!$D$21="Guayas/Santa Elena",'Tablas Guayaquil'!E16,'Tablas Resto de Ecuador'!E16) -> 7102 | L16: =IF('INGRESO DE DATOS'!$D$21="Guayas/Santa Elena",'Tablas Guayaquil'!F16,'Tablas Resto de Ecuador'!F16) -> 6160 | M16: =IF('INGRESO DE DATOS'!$D$21="Guayas/Santa Elena",'Tablas Guayaquil'!G16,'Tablas Resto de Ecuador'!G16) -> 4576 | O16: 8586.7 | P16: 7525.9 | Q16: 6036.7 | R16: 5236 | S16: 3889.6
A17: 29 | C17: 8586.7 | D17: 7525.9 | E17: 6036.7 | F17: 5236 | G17: 3889.6 | I17: =IF('INGRESO DE DATOS'!$D$21="Guayas/Santa Elena",'Tablas Guayaquil'!C17,'Tablas Resto de Ecuador'!C17) -> 10102 | J17: =IF('INGRESO DE DATOS'!$D$21="Guayas/Santa Elena",'Tablas Guayaquil'!D17,'Tablas Resto de Ecuador'!D17) -> 8854 | K17: =IF('INGRESO DE DATOS'!$D$21="Guayas/Santa Elena",'Tablas Guayaquil'!E17,'Tablas Resto de Ecuador'!E17) -> 7102 | L17: =IF('INGRESO DE DATOS'!$D$21="Guayas/Santa Elena",'Tablas Guayaquil'!F17,'Tablas Resto de Ecuador'!F17) -> 6160 | M17: =IF('INGRESO DE DATOS'!$D$21="Guayas/Santa Elena",'Tablas Guayaquil'!G17,'Tablas Resto de Ecuador'!G17) -> 4576 | O17: 8586.7 | P17: 7525.9 | Q17: 6036.7 | R17: 5236 | S17: 3889.6
A18: 30 | C18: 9547.2 | D18: 8369.95 | E18: 6663.15 | F18: 5778.3 | G18: 4293.35 | I18: =IF('INGRESO DE DATOS'!$D$21="Guayas/Santa Elena",'Tablas Guayaquil'!C18,'Tablas Resto de Ecuador'!C18) -> 11232 | J18: =IF('INGRESO DE DATOS'!$D$21="Guayas/Santa Elena",'Tablas Guayaquil'!D18,'Tablas Resto de Ecuador'!D18) -> 9847 | K18: =IF('INGRESO DE DATOS'!$D$21="Guayas/Santa Elena",'Tablas Guayaquil'!E18,'Tablas Resto de Ecuador'!E18) -> 7839 | L18: =IF('INGRESO DE DATOS'!$D$21="Guayas/Santa Elena",'Tablas Guayaquil'!F18,'Tablas Resto de Ecuador'!F18) -> 6798 | M18: =IF('INGRESO DE DATOS'!$D$21="Guayas/Santa Elena",'Tablas Guayaquil'!G18,'Tablas Resto de Ecuador'!G18) -> 5051 | O18: 9547.2 | P18: 8369.95 | Q18: 6663.15 | R18: 5778.3 | S18: 4293.35
A19: 31 | C19: 9547.2 | D19: 8369.95 | E19: 6663.15 | F19: 5778.3 | G19: 4293.35 | I19: =IF('INGRESO DE DATOS'!$D$21="Guayas/Santa Elena",'Tablas Guayaquil'!C19,'Tablas Resto de Ecuador'!C19) -> 11232 | J19: =IF('INGRESO DE DATOS'!$D$21="Guayas/Santa Elena",'Tablas Guayaquil'!D19,'Tablas Resto de Ecuador'!D19) -> 9847 | K19: =IF('INGRESO DE DATOS'!$D$21="Guayas/Santa Elena",'Tablas Guayaquil'!E19,'Tablas Resto de Ecuador'!E19) -> 7839 | L19: =IF('INGRESO DE DATOS'!$D$21="Guayas/Santa Elena",'Tablas Guayaquil'!F19,'Tablas Resto de Ecuador'!F19) -> 6798 | M19: =IF('INGRESO DE DATOS'!$D$21="Guayas/Santa Elena",'Tablas Guayaquil'!G19,'Tablas Resto de Ecuador'!G19) -> 5051 | O19: 9547.2 | P19: 8369.95 | Q19: 6663.15 | R19: 5778.3 | S19: 4293.35
A20: 32 | C20: 9547.2 | D20: 8369.95 | E20: 6663.15 | F20: 5778.3 | G20: 4293.35 | I20: =IF('INGRESO DE DATOS'!$D$21="Guayas/Santa Elena",'Tablas Guayaquil'!C20,'Tablas Resto de Ecuador'!C20) -> 11232 | J20: =IF('INGRESO DE DATOS'!$D$21="Guayas/Santa Elena",'Tablas Guayaquil'!D20,'Tablas Resto de Ecuador'!D20) -> 9847 | K20: =IF('INGRESO DE DATOS'!$D$21="Guayas/Santa Elena",'Tablas Guayaquil'!E20,'Tablas Resto de Ecuador'!E20) -> 7839 | L20: =IF('INGRESO DE DATOS'!$D$21="Guayas/Santa Elena",'Tablas Guayaquil'!F20,'Tablas Resto de Ecuador'!F20) -> 6798 | M20: =IF('INGRESO DE DATOS'!$D$21="Guayas/Santa Elena",'Tablas Guayaquil'!G20,'Tablas Resto de Ecuador'!G20) -> 5051 | O20: 9547.2 | P20: 8369.95 | Q20: 6663.15 | R20: 5778.3 | S20: 4293.35
A21: 33 | C21: 9547.2 | D21: 8369.95 | E21: 6663.15 | F21: 5778.3 | G21: 4293.35 | I21: =IF('INGRESO DE DATOS'!$D$21="Guayas/Santa Elena",'Tablas Guayaquil'!C21,'Tablas Resto de Ecuador'!C21) -> 11232 | J21: =IF('INGRESO DE DATOS'!$D$21="Guayas/Santa Elena",'Tablas Guayaquil'!D21,'Tablas Resto de Ecuador'!D21) -> 9847 | K21: =IF('INGRESO DE DATOS'!$D$21="Guayas/Santa Elena",'Tablas Guayaquil'!E21,'Tablas Resto de Ecuador'!E21) -> 7839 | L21: =IF('INGRESO DE DATOS'!$D$21="Guayas/Santa Elena",'Tablas Guayaquil'!F21,'Tablas Resto de Ecuador'!F21) -> 6798 | M21: =IF('INGRESO DE DATOS'!$D$21="Guayas/Santa Elena",'Tablas Guayaquil'!G21,'Tablas Resto de Ecuador'!G21) -> 5051 | O21: 9547.2 | P21: 8369.95 | Q21: 6663.15 | R21: 5778.3 | S21: 4293.35
A22: 34 | C22: 9547.2 | D22: 8369.95 | E22: 6663.15 | F22: 5778.3 | G22: 4293.35 | I22: =IF('INGRESO DE DATOS'!$D$21="Guayas/Santa Elena",'Tablas Guayaquil'!C22,'Tablas Resto de Ecuador'!C22) -> 11232 | J22: =IF('INGRESO DE DATOS'!$D$21="Guayas/Santa Elena",'Tablas Guayaquil'!D22,'Tablas Resto de Ecuador'!D22) -> 9847 | K22: =IF('INGRESO DE DATOS'!$D$21="Guayas/Santa Elena",'Tablas Guayaquil'!E22,'Tablas Resto de Ecuador'!E22) -> 7839 | L22: =IF('INGRESO DE DATOS'!$D$21="Guayas/Santa Elena",'Tablas Guayaquil'!F22,'Tablas Resto de Ecuador'!F22) -> 6798 | M22: =IF('INGRESO DE DATOS'!$D$21="Guayas/Santa Elena",'Tablas Guayaquil'!G22,'Tablas Resto de Ecuador'!G22) -> 5051 | O22: 9547.2 | P22: 8369.95 | Q22: 6663.15 | R22: 5778.3 | S22: 4293.35
A23: 35 | C23: 10661.55 | D23: 9343.2 | E23: 7395.85 | F23: 6413.25 | G23: 4766.8 | I23: =IF('INGRESO DE DATOS'!$D$21="Guayas/Santa Elena",'Tablas Guayaquil'!C23,'Tablas Resto de Ecuador'!C23) -> 12543 | J23: =IF('INGRESO DE DATOS'!$D$21="Guayas/Santa Elena",'Tablas Guayaquil'!D23,'Tablas Resto de Ecuador'!D23) -> 10992 | K23: =IF('INGRESO DE DATOS'!$D$21="Guayas/Santa Elena",'Tablas Guayaquil'!E23,'Tablas Resto de Ecuador'!E23) -> 8701 | L23: =IF('INGRESO DE DATOS'!$D$21="Guayas/Santa Elena",'Tablas Guayaquil'!F23,'Tablas Resto de Ecuador'!F23) -> 7545 | M23: =IF('INGRESO DE DATOS'!$D$21="Guayas/Santa Elena",'Tablas Guayaquil'!G23,'Tablas Resto de Ecuador'!G23) -> 5608 | O23: 10661.55 | P23: 9343.2 | Q23: 7395.85 | R23: 6413.25 | S23: 4766.8
A24: 36 | C24: 10661.55 | D24: 9343.2 | E24: 7395.85 | F24: 6413.25 | G24: 4766.8 | I24: =IF('INGRESO DE DATOS'!$D$21="Guayas/Santa Elena",'Tablas Guayaquil'!C24,'Tablas Resto de Ecuador'!C24) -> 12543 | J24: =IF('INGRESO DE DATOS'!$D$21="Guayas/Santa Elena",'Tablas Guayaquil'!D24,'Tablas Resto de Ecuador'!D24) -> 10992 | K24: =IF('INGRESO DE DATOS'!$D$21="Guayas/Santa Elena",'Tablas Guayaquil'!E24,'Tablas Resto de Ecuador'!E24) -> 8701 | L24: =IF('INGRESO DE DATOS'!$D$21="Guayas/Santa Elena",'Tablas Guayaquil'!F24,'Tablas Resto de Ecuador'!F24) -> 7545 | M24: =IF('INGRESO DE DATOS'!$D$21="Guayas/Santa Elena",'Tablas Guayaquil'!G24,'Tablas Resto de Ecuador'!G24) -> 5608 | O24: 10661.55 | P24: 9343.2 | Q24: 7395.85 | R24: 6413.25 | S24: 4766.8
A25: 37 | C25: 10661.55 | D25: 9343.2 | E25: 7395.85 | F25: 6413.25 | G25: 4766.8 | I25: =IF('INGRESO DE DATOS'!$D$21="Guayas/Santa Elena",'Tablas Guayaquil'!C25,'Tablas Resto de Ecuador'!C25) -> 12543 | J25: =IF('INGRESO DE DATOS'!$D$21="Guayas/Santa Elena",'Tablas Guayaquil'!D25,'Tablas Resto de Ecuador'!D25) -> 10992 | K25: =IF('INGRESO DE DATOS'!$D$21="Guayas/Santa Elena",'Tablas Guayaquil'!E25,'Tablas Resto de Ecuador'!E25) -> 8701 | L25: =IF('INGRESO DE DATOS'!$D$21="Guayas/Santa Elena",'Tablas Guayaquil'!F25,'Tablas Resto de Ecuador'!F25) -> 7545 | M25: =IF('INGRESO DE DATOS'!$D$21="Guayas/Santa Elena",'Tablas Guayaquil'!G25,'Tablas Resto de Ecuador'!G25) -> 5608 | O25: 10661.55 | P25: 9343.2 | Q25: 7395.85 | R25: 6413.25 | S25: 4766.8
A26: 38 | C26: 10661.55 | D26: 9343.2 | E26: 7395.85 | F26: 6413.25 | G26: 4766.8 | I26: =IF('INGRESO DE DATOS'!$D$21="Guayas/Santa Elena",'Tablas Guayaquil'!C26,'Tablas Resto de Ecuador'!C26) -> 12543 | J26: =IF('INGRESO DE DATOS'!$D$21="Guayas/Santa Elena",'Tablas Guayaquil'!D26,'Tablas Resto de Ecuador'!D26) -> 10992 | K26: =IF('INGRESO DE DATOS'!$D$21="Guayas/Santa Elena",'Tablas Guayaquil'!E26,'Tablas Resto de Ecuador'!E26) -> 8701 | L26: =IF('INGRESO DE DATOS'!$D$21="Guayas/Santa Elena",'Tablas Guayaquil'!F26,'Tablas Resto de Ecuador'!F26) -> 7545 | M26: =IF('INGRESO DE DATOS'!$D$21="Guayas/Santa Elena",'Tablas Guayaquil'!G26,'Tablas Resto de Ecuador'!G26) -> 5608 | O26: 10661.55 | P26: 9343.2 | Q26: 7395.85 | R26: 6413.25 | S26: 4766.8
A27: 39 | C27: 10661.55 | D27: 9343.2 | E27: 7395.85 | F27: 6413.25 | G27: 4766.8 | I27: =IF('INGRESO DE DATOS'!$D$21="Guayas/Santa Elena",'Tablas Guayaquil'!C27,'Tablas Resto de Ecuador'!C27) -> 12543 | J27: =IF('INGRESO DE DATOS'!$D$21="Guayas/Santa Elena",'Tablas Guayaquil'!D27,'Tablas Resto de Ecuador'!D27) -> 10992 | K27: =IF('INGRESO DE DATOS'!$D$21="Guayas/Santa Elena",'Tablas Guayaquil'!E27,'Tablas Resto de Ecuador'!E27) -> 8701 | L27: =IF('INGRESO DE DATOS'!$D$21="Guayas/Santa Elena",'Tablas Guayaquil'!F27,'Tablas Resto de Ecuador'!F27) -> 7545 | M27: =IF('INGRESO DE DATOS'!$D$21="Guayas/Santa Elena",'Tablas Guayaquil'!G27,'Tablas Resto de Ecuador'!G27) -> 5608 | O27: 10661.55 | P27: 9343.2 | Q27: 7395.85 | R27: 6413.25 | S27: 4766.8
A28: 40 | C28: 11940.8 | D28: 10467.75 | E28: 8248.4 | F28: 7152.75 | G28: 5314.2 | I28: =IF('INGRESO DE DATOS'!$D$21="Guayas/Santa Elena",'Tablas Guayaquil'!C28,'Tablas Resto de Ecuador'!C28) -> 14048 | J28: =IF('INGRESO DE DATOS'!$D$21="Guayas/Santa Elena",'Tablas Guayaquil'!D28,'Tablas Resto de Ecuador'!D28) -> 12315 | K28: =IF('INGRESO DE DATOS'!$D$21="Guayas/Santa Elena",'Tablas Guayaquil'!E28,'Tablas Resto de Ecuador'!E28) -> 9704 | L28: =IF('INGRESO DE DATOS'!$D$21="Guayas/Santa Elena",'Tablas Guayaquil'!F28,'Tablas Resto de Ecuador'!F28) -> 8415 | M28: =IF('INGRESO DE DATOS'!$D$21="Guayas/Santa Elena",'Tablas Guayaquil'!G28,'Tablas Resto de Ecuador'!G28) -> 6252 | O28: 11940.8 | P28: 10467.75 | Q28: 8248.4 | R28: 7152.75 | S28: 5314.2
A29: 41 | C29: 11940.8 | D29: 10467.75 | E29: 8248.4 | F29: 7152.75 | G29: 5314.2 | I29: =IF('INGRESO DE DATOS'!$D$21="Guayas/Santa Elena",'Tablas Guayaquil'!C29,'Tablas Resto de Ecuador'!C29) -> 14048 | J29: =IF('INGRESO DE DATOS'!$D$21="Guayas/Santa Elena",'Tablas Guayaquil'!D29,'Tablas Resto de Ecuador'!D29) -> 12315 | K29: =IF('INGRESO DE DATOS'!$D$21="Guayas/Santa Elena",'Tablas Guayaquil'!E29,'Tablas Resto de Ecuador'!E29) -> 9704 | L29: =IF('INGRESO DE DATOS'!$D$21="Guayas/Santa Elena",'Tablas Guayaquil'!F29,'Tablas Resto de Ecuador'!F29) -> 8415 | M29: =IF('INGRESO DE DATOS'!$D$21="Guayas/Santa Elena",'Tablas Guayaquil'!G29,'Tablas Resto de Ecuador'!G29) -> 6252 | O29: 11940.8 | P29: 10467.75 | Q29: 8248.4 | R29: 7152.75 | S29: 5314.2
A30: 42 | C30: 11940.8 | D30: 10467.75 | E30: 8248.4 | F30: 7152.75 | G30: 5314.2 | I30: =IF('INGRESO DE DATOS'!$D$21="Guayas/Santa Elena",'Tablas Guayaquil'!C30,'Tablas Resto de Ecuador'!C30) -> 14048 | J30: =IF('INGRESO DE DATOS'!$D$21="Guayas/Santa Elena",'Tablas Guayaquil'!D30,'Tablas Resto de Ecuador'!D30) -> 12315 | K30: =IF('INGRESO DE DATOS'!$D$21="Guayas/Santa Elena",'Tablas Guayaquil'!E30,'Tablas Resto de Ecuador'!E30) -> 9704 | L30: =IF('INGRESO DE DATOS'!$D$21="Guayas/Santa Elena",'Tablas Guayaquil'!F30,'Tablas Resto de Ecuador'!F30) -> 8415 | M30: =IF('INGRESO DE DATOS'!$D$21="Guayas/Santa Elena",'Tablas Guayaquil'!G30,'Tablas Resto de Ecuador'!G30) -> 6252 | O30: 11940.8 | P30: 10467.75 | Q30: 8248.4 | R30: 7152.75 | S30: 5314.2
A31: 43 | C31: 11940.8 | D31: 10467.75 | E31: 8248.4 | F31: 7152.75 | G31: 5314.2 | I31: =IF('INGRESO DE DATOS'!$D$21="Guayas/Santa Elena",'Tablas Guayaquil'!C31,'Tablas Resto de Ecuador'!C31) -> 14048 | J31: =IF('INGRESO DE DATOS'!$D$21="Guayas/Santa Elena",'Tablas Guayaquil'!D31,'Tablas Resto de Ecuador'!D31) -> 12315 | K31: =IF('INGRESO DE DATOS'!$D$21="Guayas/Santa Elena",'Tablas Guayaquil'!E31,'Tablas Resto de Ecuador'!E31) -> 9704 | L31: =IF('INGRESO DE DATOS'!$D$21="Guayas/Santa Elena",'Tablas Guayaquil'!F31,'Tablas Resto de Ecuador'!F31) -> 8415 | M31: =IF('INGRESO DE DATOS'!$D$21="Guayas/Santa Elena",'Tablas Guayaquil'!G31,'Tablas Resto de Ecuador'!G31) -> 6252 | O31: 11940.8 | P31: 10467.75 | Q31: 8248.4 | R31: 7152.75 | S31: 5314.2
A32: 44 | C32: 11940.8 | D32: 10467.75 | E32: 8248.4 | F32: 7152.75 | G32: 5314.2 | I32: =IF('INGRESO DE DATOS'!$D$21="Guayas/Santa Elena",'Tablas Guayaquil'!C32,'Tablas Resto de Ecuador'!C32) -> 14048 | J32: =IF('INGRESO DE DATOS'!$D$21="Guayas/Santa Elena",'Tablas Guayaquil'!D32,'Tablas Resto de Ecuador'!D32) -> 12315 | K32: =IF('INGRESO DE DATOS'!$D$21="Guayas/Santa Elena",'Tablas Guayaquil'!E32,'Tablas Resto de Ecuador'!E32) -> 9704 | L32: =IF('INGRESO DE DATOS'!$D$21="Guayas/Santa Elena",'Tablas Guayaquil'!F32,'Tablas Resto de Ecuador'!F32) -> 8415 | M32: =IF('INGRESO DE DATOS'!$D$21="Guayas/Santa Elena",'Tablas Guayaquil'!G32,'Tablas Resto de Ecuador'!G32) -> 6252 | O32: 11940.8 | P32: 10467.75 | Q32: 8248.4 | R32: 7152.75 | S32: 5314.2
A33: 45 | C33: 13363.7 | D33: 11715.55 | E33: 9202.95 | F33: 7979.8 | G33: 5929.6 | I33: =IF('INGRESO DE DATOS'!$D$21="Guayas/Santa Elena",'Tablas Guayaquil'!C33,'Tablas Resto de Ecuador'!C33) -> 15722 | J33: =IF('INGRESO DE DATOS'!$D$21="Guayas/Santa Elena",'Tablas Guayaquil'!D33,'Tablas Resto de Ecuador'!D33) -> 13783 | K33: =IF('INGRESO DE DATOS'!$D$21="Guayas/Santa Elena",'Tablas Guayaquil'!E33,'Tablas Resto de Ecuador'!E33) -> 10827 | L33: =IF('INGRESO DE DATOS'!$D$21="Guayas/Santa Elena",'Tablas Guayaquil'!F33,'Tablas Resto de Ecuador'!F33) -> 9388 | M33: =IF('INGRESO DE DATOS'!$D$21="Guayas/Santa Elena",'Tablas Guayaquil'!G33,'Tablas Resto de Ecuador'!G33) -> 6976 | O33: 13363.7 | P33: 11715.55 | Q33: 9202.95 | R33: 7979.8 | S33: 5929.6
A34: 46 | C34: 13363.7 | D34: 11715.55 | E34: 9202.95 | F34: 7979.8 | G34: 5929.6 | I34: =IF('INGRESO DE DATOS'!$D$21="Guayas/Santa Elena",'Tablas Guayaquil'!C34,'Tablas Resto de Ecuador'!C34) -> 15722 | J34: =IF('INGRESO DE DATOS'!$D$21="Guayas/Santa Elena",'Tablas Guayaquil'!D34,'Tablas Resto de Ecuador'!D34) -> 13783 | K34: =IF('INGRESO DE DATOS'!$D$21="Guayas/Santa Elena",'Tablas Guayaquil'!E34,'Tablas Resto de Ecuador'!E34) -> 10827 | L34: =IF('INGRESO DE DATOS'!$D$21="Guayas/Santa Elena",'Tablas Guayaquil'!F34,'Tablas Resto de Ecuador'!F34) -> 9388 | M34: =IF('INGRESO DE DATOS'!$D$21="Guayas/Santa Elena",'Tablas Guayaquil'!G34,'Tablas Resto de Ecuador'!G34) -> 6976 | O34: 13363.7 | P34: 11715.55 | Q34: 9202.95 | R34: 7979.8 | S34: 5929.6
A35: 47 | C35: 13363.7 | D35: 11715.55 | E35: 9202.95 | F35: 7979.8 | G35: 5929.6 | I35: =IF('INGRESO DE DATOS'!$D$21="Guayas/Santa Elena",'Tablas Guayaquil'!C35,'Tablas Resto de Ecuador'!C35) -> 15722 | J35: =IF('INGRESO DE DATOS'!$D$21="Guayas/Santa Elena",'Tablas Guayaquil'!D35,'Tablas Resto de Ecuador'!D35) -> 13783 | K35: =IF('INGRESO DE DATOS'!$D$21="Guayas/Santa Elena",'Tablas Guayaquil'!E35,'Tablas Resto de Ecuador'!E35) -> 10827 | L35: =IF('INGRESO DE DATOS'!$D$21="Guayas/Santa Elena",'Tablas Guayaquil'!F35,'Tablas Resto de Ecuador'!F35) -> 9388 | M35: =IF('INGRESO DE DATOS'!$D$21="Guayas/Santa Elena",'Tablas Guayaquil'!G35,'Tablas Resto de Ecuador'!G35) -> 6976 | O35: 13363.7 | P35: 11715.55 | Q35: 9202.95 | R35: 7979.8 | S35: 5929.6
A36: 48 | C36: 13363.7 | D36: 11715.55 | E36: 9202.95 | F36: 7979.8 | G36: 5929.6 | I36: =IF('INGRESO DE DATOS'!$D$21="Guayas/Santa Elena",'Tablas Guayaquil'!C36,'Tablas Resto de Ecuador'!C36) -> 15722 | J36: =IF('INGRESO DE DATOS'!$D$21="Guayas/Santa Elena",'Tablas Guayaquil'!D36,'Tablas Resto de Ecuador'!D36) -> 13783 | K36: =IF('INGRESO DE DATOS'!$D$21="Guayas/Santa Elena",'Tablas Guayaquil'!E36,'Tablas Resto de Ecuador'!E36) -> 10827 | L36: =IF('INGRESO DE DATOS'!$D$21="Guayas/Santa Elena",'Tablas Guayaquil'!F36,'Tablas Resto de Ecuador'!F36) -> 9388 | M36: =IF('INGRESO DE DATOS'!$D$21="Guayas/Santa Elena",'Tablas Guayaquil'!G36,'Tablas Resto de Ecuador'!G36) -> 6976 | O36: 13363.7 | P36: 11715.55 | Q36: 9202.95 | R36: 7979.8 | S36: 5929.6
A37: 49 | C37: 13363.7 | D37: 11715.55 | E37: 9202.95 | F37: 7979.8 | G37: 5929.6 | I37: =IF('INGRESO DE DATOS'!$D$21="Guayas/Santa Elena",'Tablas Guayaquil'!C37,'Tablas Resto de Ecuador'!C37) -> 15722 | J37: =IF('INGRESO DE DATOS'!$D$21="Guayas/Santa Elena",'Tablas Guayaquil'!D37,'Tablas Resto de Ecuador'!D37) -> 13783 | K37: =IF('INGRESO DE DATOS'!$D$21="Guayas/Santa Elena",'Tablas Guayaquil'!E37,'Tablas Resto de Ecuador'!E37) -> 10827 | L37: =IF('INGRESO DE DATOS'!$D$21="Guayas/Santa Elena",'Tablas Guayaquil'!F37,'Tablas Resto de Ecuador'!F37) -> 9388 | M37: =IF('INGRESO DE DATOS'!$D$21="Guayas/Santa Elena",'Tablas Guayaquil'!G37,'Tablas Resto de Ecuador'!G37) -> 6976 | O37: 13363.7 | P37: 11715.55 | Q37: 9202.95 | R37: 7979.8 | S37: 5929.6
A38: 50 | C38: 14966.8 | D38: 13120.6 | E38: 10283.3 | F38: 8918.2 | G38: 6625.75 | I38: =IF('INGRESO DE DATOS'!$D$21="Guayas/Santa Elena",'Tablas Guayaquil'!C38,'Tablas Resto de Ecuador'!C38) -> 17608 | J38: =IF('INGRESO DE DATOS'!$D$21="Guayas/Santa Elena",'Tablas Guayaquil'!D38,'Tablas Resto de Ecuador'!D38) -> 15436 | K38: =IF('INGRESO DE DATOS'!$D$21="Guayas/Santa Elena",'Tablas Guayaquil'!E38,'Tablas Resto de Ecuador'!E38) -> 12098 | L38: =IF('INGRESO DE DATOS'!$D$21="Guayas/Santa Elena",'Tablas Guayaquil'!F38,'Tablas Resto de Ecuador'!F38) -> 10492 | M38: =IF('INGRESO DE DATOS'!$D$21="Guayas/Santa Elena",'Tablas Guayaquil'!G38,'Tablas Resto de Ecuador'!G38) -> 7795 | O38: 14966.8 | P38: 13120.6 | Q38: 10283.3 | R38: 8918.2 | S38: 6625.75
A39: 51 | C39: 14966.8 | D39: 13120.6 | E39: 10283.3 | F39: 8918.2 | G39: 6625.75 | I39: =IF('INGRESO DE DATOS'!$D$21="Guayas/Santa Elena",'Tablas Guayaquil'!C39,'Tablas Resto de Ecuador'!C39) -> 17608 | J39: =IF('INGRESO DE DATOS'!$D$21="Guayas/Santa Elena",'Tablas Guayaquil'!D39,'Tablas Resto de Ecuador'!D39) -> 15436 | K39: =IF('INGRESO DE DATOS'!$D$21="Guayas/Santa Elena",'Tablas Guayaquil'!E39,'Tablas Resto de Ecuador'!E39) -> 12098 | L39: =IF('INGRESO DE DATOS'!$D$21="Guayas/Santa Elena",'Tablas Guayaquil'!F39,'Tablas Resto de Ecuador'!F39) -> 10492 | M39: =IF('INGRESO DE DATOS'!$D$21="Guayas/Santa Elena",'Tablas Guayaquil'!G39,'Tablas Resto de Ecuador'!G39) -> 7795 | O39: 14966.8 | P39: 13120.6 | Q39: 10283.3 | R39: 8918.2 | S39: 6625.75
A40: 52 | C40: 14966.8 | D40: 13120.6 | E40: 10283.3 | F40: 8918.2 | G40: 6625.75 | I40: =IF('INGRESO DE DATOS'!$D$21="Guayas/Santa Elena",'Tablas Guayaquil'!C40,'Tablas Resto de Ecuador'!C40) -> 17608 | J40: =IF('INGRESO DE DATOS'!$D$21="Guayas/Santa Elena",'Tablas Guayaquil'!D40,'Tablas Resto de Ecuador'!D40) -> 15436 | K40: =IF('INGRESO DE DATOS'!$D$21="Guayas/Santa Elena",'Tablas Guayaquil'!E40,'Tablas Resto de Ecuador'!E40) -> 12098 | L40: =IF('INGRESO DE DATOS'!$D$21="Guayas/Santa Elena",'Tablas Guayaquil'!F40,'Tablas Resto de Ecuador'!F40) -> 10492 | M40: =IF('INGRESO DE DATOS'!$D$21="Guayas/Santa Elena",'Tablas Guayaquil'!G40,'Tablas Resto de Ecuador'!G40) -> 7795 | O40: 14966.8 | P40: 13120.6 | Q40: 10283.3 | R40: 8918.2 | S40: 6625.75
A41: 53 | C41: 14966.8 | D41: 13120.6 | E41: 10283.3 | F41: 8918.2 | G41: 6625.75 | I41: =IF('INGRESO DE DATOS'!$D$21="Guayas/Santa Elena",'Tablas Guayaquil'!C41,'Tablas Resto de Ecuador'!C41) -> 17608 | J41: =IF('INGRESO DE DATOS'!$D$21="Guayas/Santa Elena",'Tablas Guayaquil'!D41,'Tablas Resto de Ecuador'!D41) -> 15436 | K41: =IF('INGRESO DE DATOS'!$D$21="Guayas/Santa Elena",'Tablas Guayaquil'!E41,'Tablas Resto de Ecuador'!E41) -> 12098 | L41: =IF('INGRESO DE DATOS'!$D$21="Guayas/Santa Elena",'Tablas Guayaquil'!F41,'Tablas Resto de Ecuador'!F41) -> 10492 | M41: =IF('INGRESO DE DATOS'!$D$21="Guayas/Santa Elena",'Tablas Guayaquil'!G41,'Tablas Resto de Ecuador'!G41) -> 7795 | O41: 14966.8 | P41: 13120.6 | Q41: 10283.3 | R41: 8918.2 | S41: 6625.75
A42: 54 | C42: 14966.8 | D42: 13120.6 | E42: 10283.3 | F42: 8918.2 | G42: 6625.75 | I42: =IF('INGRESO DE DATOS'!$D$21="Guayas/Santa Elena",'Tablas Guayaquil'!C42,'Tablas Resto de Ecuador'!C42) -> 17608 | J42: =IF('INGRESO DE DATOS'!$D$21="Guayas/Santa Elena",'Tablas Guayaquil'!D42,'Tablas Resto de Ecuador'!D42) -> 15436 | K42: =IF('INGRESO DE DATOS'!$D$21="Guayas/Santa Elena",'Tablas Guayaquil'!E42,'Tablas Resto de Ecuador'!E42) -> 12098 | L42: =IF('INGRESO DE DATOS'!$D$21="Guayas/Santa Elena",'Tablas Guayaquil'!F42,'Tablas Resto de Ecuador'!F42) -> 10492 | M42: =IF('INGRESO DE DATOS'!$D$21="Guayas/Santa Elena",'Tablas Guayaquil'!G42,'Tablas Resto de Ecuador'!G42) -> 7795 | O42: 14966.8 | P42: 13120.6 | Q42: 10283.3 | R42: 8918.2 | S42: 6625.75
A43: 55 | C43: 16731.4 | D43: 14666.75 | E43: 11477.55 | F43: 9954.35 | G43: 7396.7 | I43: =IF('INGRESO DE DATOS'!$D$21="Guayas/Santa Elena",'Tablas Guayaquil'!C43,'Tablas Resto de Ecuador'!C43) -> 19684 | J43: =IF('INGRESO DE DATOS'!$D$21="Guayas/Santa Elena",'Tablas Guayaquil'!D43,'Tablas Resto de Ecuador'!D43) -> 17255 | K43: =IF('INGRESO DE DATOS'!$D$21="Guayas/Santa Elena",'Tablas Guayaquil'!E43,'Tablas Resto de Ecuador'!E43) -> 13503 | L43: =IF('INGRESO DE DATOS'!$D$21="Guayas/Santa Elena",'Tablas Guayaquil'!F43,'Tablas Resto de Ecuador'!F43) -> 11711 | M43: =IF('INGRESO DE DATOS'!$D$21="Guayas/Santa Elena",'Tablas Guayaquil'!G43,'Tablas Resto de Ecuador'!G43) -> 8702 | O43: 16731.4 | P43: 14666.75 | Q43: 11477.55 | R43: 9954.35 | S43: 7396.7
A44: 56 | C44: 16731.4 | D44: 14666.75 | E44: 11477.55 | F44: 9954.35 | G44: 7396.7 | I44: =IF('INGRESO DE DATOS'!$D$21="Guayas/Santa Elena",'Tablas Guayaquil'!C44,'Tablas Resto de Ecuador'!C44) -> 19684 | J44: =IF('INGRESO DE DATOS'!$D$21="Guayas/Santa Elena",'Tablas Guayaquil'!D44,'Tablas Resto de Ecuador'!D44) -> 17255 | K44: =IF('INGRESO DE DATOS'!$D$21="Guayas/Santa Elena",'Tablas Guayaquil'!E44,'Tablas Resto de Ecuador'!E44) -> 13503 | L44: =IF('INGRESO DE DATOS'!$D$21="Guayas/Santa Elena",'Tablas Guayaquil'!F44,'Tablas Resto de Ecuador'!F44) -> 11711 | M44: =IF('INGRESO DE DATOS'!$D$21="Guayas/Santa Elena",'Tablas Guayaquil'!G44,'Tablas Resto de Ecuador'!G44) -> 8702 | O44: 16731.4 | P44: 14666.75 | Q44: 11477.55 | R44: 9954.35 | S44: 7396.7
A45: 57 | C45: 16731.4 | D45: 14666.75 | E45: 11477.55 | F45: 9954.35 | G45: 7396.7 | I45: =IF('INGRESO DE DATOS'!$D$21="Guayas/Santa Elena",'Tablas Guayaquil'!C45,'Tablas Resto de Ecuador'!C45) -> 19684 | J45: =IF('INGRESO DE DATOS'!$D$21="Guayas/Santa Elena",'Tablas Guayaquil'!D45,'Tablas Resto de Ecuador'!D45) -> 17255 | K45: =IF('INGRESO DE DATOS'!$D$21="Guayas/Santa Elena",'Tablas Guayaquil'!E45,'Tablas Resto de Ecuador'!E45) -> 13503 | L45: =IF('INGRESO DE DATOS'!$D$21="Guayas/Santa Elena",'Tablas Guayaquil'!F45,'Tablas Resto de Ecuador'!F45) -> 11711 | M45: =IF('INGRESO DE DATOS'!$D$21="Guayas/Santa Elena",'Tablas Guayaquil'!G45,'Tablas Resto de Ecuador'!G45) -> 8702 | O45: 16731.4 | P45: 14666.75 | Q45: 11477.55 | R45: 9954.35 | S45: 7396.7
A46: 58 | C46: 16731.4 | D46: 14666.75 | E46: 11477.55 | F46: 9954.35 | G46: 7396.7 | I46: =IF('INGRESO DE DATOS'!$D$21="Guayas/Santa Elena",'Tablas Guayaquil'!C46,'Tablas Resto de Ecuador'!C46) -> 19684 | J46: =IF('INGRESO DE DATOS'!$D$21="Guayas/Santa Elena",'Tablas Guayaquil'!D46,'Tablas Resto de Ecuador'!D46) -> 17255 | K46: =IF('INGRESO DE DATOS'!$D$21="Guayas/Santa Elena",'Tablas Guayaquil'!E46,'Tablas Resto de Ecuador'!E46) -> 13503 | L46: =IF('INGRESO DE DATOS'!$D$21="Guayas/Santa Elena",'Tablas Guayaquil'!F46,'Tablas Resto de Ecuador'!F46) -> 11711 | M46: =IF('INGRESO DE DATOS'!$D$21="Guayas/Santa Elena",'Tablas Guayaquil'!G46,'Tablas Resto de Ecuador'!G46) -> 8702 | O46: 16731.4 | P46: 14666.75 | Q46: 11477.55 | R46: 9954.35 | S46: 7396.7
A47: 59 | C47: 16731.4 | D47: 14666.75 | E47: 11477.55 | F47: 9954.35 | G47: 7396.7 | I47: =IF('INGRESO DE DATOS'!$D$21="Guayas/Santa Elena",'Tablas Guayaquil'!C47,'Tablas Resto de Ecuador'!C47) -> 19684 | J47: =IF('INGRESO DE DATOS'!$D$21="Guayas/Santa Elena",'Tablas Guayaquil'!D47,'Tablas Resto de Ecuador'!D47) -> 17255 | K47: =IF('INGRESO DE DATOS'!$D$21="Guayas/Santa Elena",'Tablas Guayaquil'!E47,'Tablas Resto de Ecuador'!E47) -> 13503 | L47: =IF('INGRESO DE DATOS'!$D$21="Guayas/Santa Elena",'Tablas Guayaquil'!F47,'Tablas Resto de Ecuador'!F47) -> 11711 | M47: =IF('INGRESO DE DATOS'!$D$21="Guayas/Santa Elena",'Tablas Guayaquil'!G47,'Tablas Resto de Ecuador'!G47) -> 8702 | O47: 16731.4 | P47: 14666.75 | Q47: 11477.55 | R47: 9954.35 | S47: 7396.7
A48: 60 | C48: 17907.8 | D48: 15696.95 | E48: 12278.25 | F48: 10645.4 | G48: 7910.95 | I48: =IF('INGRESO DE DATOS'!$D$21="Guayas/Santa Elena",'Tablas Guayaquil'!C48,'Tablas Resto de Ecuador'!C48) -> 21068 | J48: =IF('INGRESO DE DATOS'!$D$21="Guayas/Santa Elena",'Tablas Guayaquil'!D48,'Tablas Resto de Ecuador'!D48) -> 18467 | K48: =IF('INGRESO DE DATOS'!$D$21="Guayas/Santa Elena",'Tablas Guayaquil'!E48,'Tablas Resto de Ecuador'!E48) -> 14445 | L48: =IF('INGRESO DE DATOS'!$D$21="Guayas/Santa Elena",'Tablas Guayaquil'!F48,'Tablas Resto de Ecuador'!F48) -> 12524 | M48: =IF('INGRESO DE DATOS'!$D$21="Guayas/Santa Elena",'Tablas Guayaquil'!G48,'Tablas Resto de Ecuador'!G48) -> 9307 | O48: 17907.8 | P48: 15696.95 | Q48: 12278.25 | R48: 10645.4 | S48: 7910.95
A49: 61 | C49: 19958 | D49: 17491.3 | E49: 13672.25 | F49: 11855.8 | G49: 8809.4 | I49: =IF('INGRESO DE DATOS'!$D$21="Guayas/Santa Elena",'Tablas Guayaquil'!C49,'Tablas Resto de Ecuador'!C49) -> 23480 | J49: =IF('INGRESO DE DATOS'!$D$21="Guayas/Santa Elena",'Tablas Guayaquil'!D49,'Tablas Resto de Ecuador'!D49) -> 20578 | K49: =IF('INGRESO DE DATOS'!$D$21="Guayas/Santa Elena",'Tablas Guayaquil'!E49,'Tablas Resto de Ecuador'!E49) -> 16085 | L49: =IF('INGRESO DE DATOS'!$D$21="Guayas/Santa Elena",'Tablas Guayaquil'!F49,'Tablas Resto de Ecuador'!F49) -> 13948 | M49: =IF('INGRESO DE DATOS'!$D$21="Guayas/Santa Elena",'Tablas Guayaquil'!G49,'Tablas Resto de Ecuador'!G49) -> 10364 | O49: 19958 | P49: 17491.3 | Q49: 13672.25 | R49: 11855.8 | S49: 8809.4
A50: 62 | C50: 22171.4 | D50: 19432.7 | E50: 15185.25 | F50: 13168.2 | G50: 9783.5 | I50: =IF('INGRESO DE DATOS'!$D$21="Guayas/Santa Elena",'Tablas Guayaquil'!C50,'Tablas Resto de Ecuador'!C50) -> 26084 | J50: =IF('INGRESO DE DATOS'!$D$21="Guayas/Santa Elena",'Tablas Guayaquil'!D50,'Tablas Resto de Ecuador'!D50) -> 22862 | K50: =IF('INGRESO DE DATOS'!$D$21="Guayas/Santa Elena",'Tablas Guayaquil'!E50,'Tablas Resto de Ecuador'!E50) -> 17865 | L50: =IF('INGRESO DE DATOS'!$D$21="Guayas/Santa Elena",'Tablas Guayaquil'!F50,'Tablas Resto de Ecuador'!F50) -> 15492 | M50: =IF('INGRESO DE DATOS'!$D$21="Guayas/Santa Elena",'Tablas Guayaquil'!G50,'Tablas Resto de Ecuador'!G50) -> 11510 | O50: 22171.4 | P50: 19432.7 | Q50: 15185.25 | R50: 13168.2 | S50: 9783.5
A51: 63 | C51: 24553.1 | D51: 21521.15 | E51: 16817.25 | F51: 14584.3 | G51: 10836.65 | I51: =IF('INGRESO DE DATOS'!$D$21="Guayas/Santa Elena",'Tablas Guayaquil'!C51,'Tablas Resto de Ecuador'!C51) -> 28886 | J51: =IF('INGRESO DE DATOS'!$D$21="Guayas/Santa Elena",'Tablas Guayaquil'!D51,'Tablas Resto de Ecuador'!D51) -> 25319 | K51: =IF('INGRESO DE DATOS'!$D$21="Guayas/Santa Elena",'Tablas Guayaquil'!E51,'Tablas Resto de Ecuador'!E51) -> 19785 | L51: =IF('INGRESO DE DATOS'!$D$21="Guayas/Santa Elena",'Tablas Guayaquil'!F51,'Tablas Resto de Ecuador'!F51) -> 17158 | M51: =IF('INGRESO DE DATOS'!$D$21="Guayas/Santa Elena",'Tablas Guayaquil'!G51,'Tablas Resto de Ecuador'!G51) -> 12749 | O51: 24553.1 | P51: 21521.15 | Q51: 16817.25 | R51: 14584.3 | S51: 10836.65
A52: 64 | C52: 27103.95 | D52: 23755.8 | E52: 18568.25 | F52: 16101.55 | G52: 11963.75 | I52: =IF('INGRESO DE DATOS'!$D$21="Guayas/Santa Elena",'Tablas Guayaquil'!C52,'Tablas Resto de Ecuador'!C52) -> 31887 | J52: =IF('INGRESO DE DATOS'!$D$21="Guayas/Santa Elena",'Tablas Guayaquil'!D52,'Tablas Resto de Ecuador'!D52) -> 27948 | K52: =IF('INGRESO DE DATOS'!$D$21="Guayas/Santa Elena",'Tablas Guayaquil'!E52,'Tablas Resto de Ecuador'!E52) -> 21845 | L52: =IF('INGRESO DE DATOS'!$D$21="Guayas/Santa Elena",'Tablas Guayaquil'!F52,'Tablas Resto de Ecuador'!F52) -> 18943 | M52: =IF('INGRESO DE DATOS'!$D$21="Guayas/Santa Elena",'Tablas Guayaquil'!G52,'Tablas Resto de Ecuador'!G52) -> 14075 | O52: 27103.95 | P52: 23755.8 | Q52: 18568.25 | R52: 16101.55 | S52: 11963.75
A53: 65 | C53: 29821.4 | D53: 26138.35 | E53: 20436.55 | F53: 17722.5 | G53: 13167.35 | I53: =IF('INGRESO DE DATOS'!$D$21="Guayas/Santa Elena",'Tablas Guayaquil'!C53,'Tablas Resto de Ecuador'!C53) -> 35084 | J53: =IF('INGRESO DE DATOS'!$D$21="Guayas/Santa Elena",'Tablas Guayaquil'!D53,'Tablas Resto de Ecuador'!D53) -> 30751 | K53: =IF('INGRESO DE DATOS'!$D$21="Guayas/Santa Elena",'Tablas Guayaquil'!E53,'Tablas Resto de Ecuador'!E53) -> 24043 | L53: =IF('INGRESO DE DATOS'!$D$21="Guayas/Santa Elena",'Tablas Guayaquil'!F53,'Tablas Resto de Ecuador'!F53) -> 20850 | M53: =IF('INGRESO DE DATOS'!$D$21="Guayas/Santa Elena",'Tablas Guayaquil'!G53,'Tablas Resto de Ecuador'!G53) -> 15491 | O53: 29821.4 | P53: 26138.35 | Q53: 20436.55 | R53: 17722.5 | S53: 13167.35
A54: 66 | C54: 32702.9 | D54: 28666.25 | E54: 22423 | F54: 19445.45 | G54: 14444.9 | I54: =IF('INGRESO DE DATOS'!$D$21="Guayas/Santa Elena",'Tablas Guayaquil'!C54,'Tablas Resto de Ecuador'!C54) -> 38474 | J54: =IF('INGRESO DE DATOS'!$D$21="Guayas/Santa Elena",'Tablas Guayaquil'!D54,'Tablas Resto de Ecuador'!D54) -> 33725 | K54: =IF('INGRESO DE DATOS'!$D$21="Guayas/Santa Elena",'Tablas Guayaquil'!E54,'Tablas Resto de Ecuador'!E54) -> 26380 | L54: =IF('INGRESO DE DATOS'!$D$21="Guayas/Santa Elena",'Tablas Guayaquil'!F54,'Tablas Resto de Ecuador'!F54) -> 22877 | M54: =IF('INGRESO DE DATOS'!$D$21="Guayas/Santa Elena",'Tablas Guayaquil'!G54,'Tablas Resto de Ecuador'!G54) -> 16994 | O54: 32702.9 | P54: 28666.25 | Q54: 22423 | R54: 19445.45 | S54: 14444.9
A55: 67 | C55: 35755.25 | D55: 31340.35 | E55: 24528.45 | F55: 21267.85 | G55: 15801.5 | I55: =IF('INGRESO DE DATOS'!$D$21="Guayas/Santa Elena",'Tablas Guayaquil'!C55,'Tablas Resto de Ecuador'!C55) -> 42065 | J55: =IF('INGRESO DE DATOS'!$D$21="Guayas/Santa Elena",'Tablas Guayaquil'!D55,'Tablas Resto de Ecuador'!D55) -> 36871 | K55: =IF('INGRESO DE DATOS'!$D$21="Guayas/Santa Elena",'Tablas Guayaquil'!E55,'Tablas Resto de Ecuador'!E55) -> 28857 | L55: =IF('INGRESO DE DATOS'!$D$21="Guayas/Santa Elena",'Tablas Guayaquil'!F55,'Tablas Resto de Ecuador'!F55) -> 25021 | M55: =IF('INGRESO DE DATOS'!$D$21="Guayas/Santa Elena",'Tablas Guayaquil'!G55,'Tablas Resto de Ecuador'!G55) -> 18590 | O55: 35755.25 | P55: 31340.35 | Q55: 24528.45 | R55: 21267.85 | S55: 15801.5
A56: 68 | C56: 38970.8 | D56: 34162.35 | E56: 26751.2 | F56: 23198.2 | G56: 17236.3 | I56: =IF('INGRESO DE DATOS'!$D$21="Guayas/Santa Elena",'Tablas Guayaquil'!C56,'Tablas Resto de Ecuador'!C56) -> 45848 | J56: =IF('INGRESO DE DATOS'!$D$21="Guayas/Santa Elena",'Tablas Guayaquil'!D56,'Tablas Resto de Ecuador'!D56) -> 40191 | K56: =IF('INGRESO DE DATOS'!$D$21="Guayas/Santa Elena",'Tablas Guayaquil'!E56,'Tablas Resto de Ecuador'!E56) -> 31472 | L56: =IF('INGRESO DE DATOS'!$D$21="Guayas/Santa Elena",'Tablas Guayaquil'!F56,'Tablas Resto de Ecuador'!F56) -> 27292 | M56: =IF('INGRESO DE DATOS'!$D$21="Guayas/Santa Elena",'Tablas Guayaquil'!G56,'Tablas Resto de Ecuador'!G56) -> 20278 | O56: 38970.8 | P56: 34162.35 | Q56: 26751.2 | R56: 23198.2 | S56: 17236.3
A57: 69 | C57: 42359.75 | D57: 37128.85 | E57: 29093.8 | F57: 25228.85 | G57: 18745.05 | I57: =IF('INGRESO DE DATOS'!$D$21="Guayas/Santa Elena",'Tablas Guayaquil'!C57,'Tablas Resto de Ecuador'!C57) -> 49835 | J57: =IF('INGRESO DE DATOS'!$D$21="Guayas/Santa Elena",'Tablas Guayaquil'!D57,'Tablas Resto de Ecuador'!D57) -> 43681 | K57: =IF('INGRESO DE DATOS'!$D$21="Guayas/Santa Elena",'Tablas Guayaquil'!E57,'Tablas Resto de Ecuador'!E57) -> 34228 | L57: =IF('INGRESO DE DATOS'!$D$21="Guayas/Santa Elena",'Tablas Guayaquil'!F57,'Tablas Resto de Ecuador'!F57) -> 29681 | M57: =IF('INGRESO DE DATOS'!$D$21="Guayas/Santa Elena",'Tablas Guayaquil'!G57,'Tablas Resto de Ecuador'!G57) -> 22053 | O57: 42359.75 | P57: 37128.85 | Q57: 29093.8 | R57: 25228.85 | S57: 18745.05
A58: 70 | C58: 45911.9 | D58: 40242.4 | E58: 31552.85 | F58: 27361.5 | G58: 20327.75 | I58: =IF('INGRESO DE DATOS'!$D$21="Guayas/Santa Elena",'Tablas Guayaquil'!C58,'Tablas Resto de Ecuador'!C58) -> 54014 | J58: =IF('INGRESO DE DATOS'!$D$21="Guayas/Santa Elena",'Tablas Guayaquil'!D58,'Tablas Resto de Ecuador'!D58) -> 47344 | K58: =IF('INGRESO DE DATOS'!$D$21="Guayas/Santa Elena",'Tablas Guayaquil'!E58,'Tablas Resto de Ecuador'!E58) -> 37121 | L58: =IF('INGRESO DE DATOS'!$D$21="Guayas/Santa Elena",'Tablas Guayaquil'!F58,'Tablas Resto de Ecuador'!F58) -> 32190 | M58: =IF('INGRESO DE DATOS'!$D$21="Guayas/Santa Elena",'Tablas Guayaquil'!G58,'Tablas Resto de Ecuador'!G58) -> 23915 | O58: 45911.9 | P58: 40242.4 | Q58: 31552.85 | R58: 27361.5 | S58: 20327.75
A59: 71 | C59: 49631.5 | D59: 43503 | E59: 34133.45 | F59: 29597 | G59: 21990.35 | I59: =IF('INGRESO DE DATOS'!$D$21="Guayas/Santa Elena",'Tablas Guayaquil'!C59,'Tablas Resto de Ecuador'!C59) -> 58390 | J59: =IF('INGRESO DE DATOS'!$D$21="Guayas/Santa Elena",'Tablas Guayaquil'!D59,'Tablas Resto de Ecuador'!D59) -> 51180 | K59: =IF('INGRESO DE DATOS'!$D$21="Guayas/Santa Elena",'Tablas Guayaquil'!E59,'Tablas Resto de Ecuador'!E59) -> 40157 | L59: =IF('INGRESO DE DATOS'!$D$21="Guayas/Santa Elena",'Tablas Guayaquil'!F59,'Tablas Resto de Ecuador'!F59) -> 34820 | M59: =IF('INGRESO DE DATOS'!$D$21="Guayas/Santa Elena",'Tablas Guayaquil'!G59,'Tablas Resto de Ecuador'!G59) -> 25871 | O59: 49631.5 | P59: 43503 | Q59: 34133.45 | R59: 29597 | S59: 21990.35
A60: 72 | C60: 53518.55 | D60: 46908.95 | E60: 36827.95 | F60: 31935.35 | G60: 23725.2 | I60: =IF('INGRESO DE DATOS'!$D$21="Guayas/Santa Elena",'Tablas Guayaquil'!C60,'Tablas Resto de Ecuador'!C60) -> 62963 | J60: =IF('INGRESO DE DATOS'!$D$21="Guayas/Santa Elena",'Tablas Guayaquil'!D60,'Tablas Resto de Ecuador'!D60) -> 55187 | K60: =IF('INGRESO DE DATOS'!$D$21="Guayas/Santa Elena",'Tablas Guayaquil'!E60,'Tablas Resto de Ecuador'!E60) -> 43327 | L60: =IF('INGRESO DE DATOS'!$D$21="Guayas/Santa Elena",'Tablas Guayaquil'!F60,'Tablas Resto de Ecuador'!F60) -> 37571 | M60: =IF('INGRESO DE DATOS'!$D$21="Guayas/Santa Elena",'Tablas Guayaquil'!G60,'Tablas Resto de Ecuador'!G60) -> 27912 | O60: 53518.55 | P60: 46908.95 | Q60: 36827.95 | R60: 31935.35 | S60: 23725.2
A61: 73 | C61: 57571.35 | D61: 50462.8 | E61: 39644 | F61: 34376.55 | G61: 25541.65 | I61: =IF('INGRESO DE DATOS'!$D$21="Guayas/Santa Elena",'Tablas Guayaquil'!C61,'Tablas Resto de Ecuador'!C61) -> 67731 | J61: =IF('INGRESO DE DATOS'!$D$21="Guayas/Santa Elena",'Tablas Guayaquil'!D61,'Tablas Resto de Ecuador'!D61) -> 59368 | K61: =IF('INGRESO DE DATOS'!$D$21="Guayas/Santa Elena",'Tablas Guayaquil'!E61,'Tablas Resto de Ecuador'!E61) -> 46640 | L61: =IF('INGRESO DE DATOS'!$D$21="Guayas/Santa Elena",'Tablas Guayaquil'!F61,'Tablas Resto de Ecuador'!F61) -> 40443 | M61: =IF('INGRESO DE DATOS'!$D$21="Guayas/Santa Elena",'Tablas Guayaquil'!G61,'Tablas Resto de Ecuador'!G61) -> 30049 | O61: 57571.35 | P61: 50462.8 | Q61: 39644 | R61: 34376.55 | S61: 25541.65
A62: 74 | C62: 61793.3 | D62: 54162 | E62: 42577.35 | F62: 36919.75 | G62: 27431.2 | I62: =IF('INGRESO DE DATOS'!$D$21="Guayas/Santa Elena",'Tablas Guayaquil'!C62,'Tablas Resto de Ecuador'!C62) -> 72698 | J62: =IF('INGRESO DE DATOS'!$D$21="Guayas/Santa Elena",'Tablas Guayaquil'!D62,'Tablas Resto de Ecuador'!D62) -> 63720 | K62: =IF('INGRESO DE DATOS'!$D$21="Guayas/Santa Elena",'Tablas Guayaquil'!E62,'Tablas Resto de Ecuador'!E62) -> 50091 | L62: =IF('INGRESO DE DATOS'!$D$21="Guayas/Santa Elena",'Tablas Guayaquil'!F62,'Tablas Resto de Ecuador'!F62) -> 43435 | M62: =IF('INGRESO DE DATOS'!$D$21="Guayas/Santa Elena",'Tablas Guayaquil'!G62,'Tablas Resto de Ecuador'!G62) -> 32272 | O62: 61793.3 | P62: 54162 | Q62: 42577.35 | R62: 36919.75 | S62: 27431.2
A63: 75 | C63: 66181 | D63: 58011.65 | E63: 45628 | F63: 39564.95 | G63: 29393.85 | I63: =IF('INGRESO DE DATOS'!$D$21="Guayas/Santa Elena",'Tablas Guayaquil'!C63,'Tablas Resto de Ecuador'!C63) -> 77860 | J63: =IF('INGRESO DE DATOS'!$D$21="Guayas/Santa Elena",'Tablas Guayaquil'!D63,'Tablas Resto de Ecuador'!D63) -> 68249 | K63: =IF('INGRESO DE DATOS'!$D$21="Guayas/Santa Elena",'Tablas Guayaquil'!E63,'Tablas Resto de Ecuador'!E63) -> 53680 | L63: =IF('INGRESO DE DATOS'!$D$21="Guayas/Santa Elena",'Tablas Guayaquil'!F63,'Tablas Resto de Ecuador'!F63) -> 46547 | M63: =IF('INGRESO DE DATOS'!$D$21="Guayas/Santa Elena",'Tablas Guayaquil'!G63,'Tablas Resto de Ecuador'!G63) -> 34581 | O63: 66181 | P63: 58011.65 | Q63: 45628 | R63: 39564.95 | S63: 29393.85
A64: 76 | C64: 66181 | D64: 58011.65 | E64: 45628 | F64: 39564.95 | G64: 29393.85 | I64: =IF('INGRESO DE DATOS'!$D$21="Guayas/Santa Elena",'Tablas Guayaquil'!C64,'Tablas Resto de Ecuador'!C64) -> 77860 | J64: =IF('INGRESO DE DATOS'!$D$21="Guayas/Santa Elena",'Tablas Guayaquil'!D64,'Tablas Resto de Ecuador'!D64) -> 68249 | K64: =IF('INGRESO DE DATOS'!$D$21="Guayas/Santa Elena",'Tablas Guayaquil'!E64,'Tablas Resto de Ecuador'!E64) -> 53680 | L64: =IF('INGRESO DE DATOS'!$D$21="Guayas/Santa Elena",'Tablas Guayaquil'!F64,'Tablas Resto de Ecuador'!F64) -> 46547 | M64: =IF('INGRESO DE DATOS'!$D$21="Guayas/Santa Elena",'Tablas Guayaquil'!G64,'Tablas Resto de Ecuador'!G64) -> 34581 | O64: 66181 | P64: 58011.65 | Q64: 45628 | R64: 39564.95 | S64: 29393.85
A65: 77 | C65: 66181 | D65: 58011.65 | E65: 45628 | F65: 39564.95 | G65: 29393.85 | I65: =IF('INGRESO DE DATOS'!$D$21="Guayas/Santa Elena",'Tablas Guayaquil'!C65,'Tablas Resto de Ecuador'!C65) -> 77860 | J65: =IF('INGRESO DE DATOS'!$D$21="Guayas/Santa Elena",'Tablas Guayaquil'!D65,'Tablas Resto de Ecuador'!D65) -> 68249 | K65: =IF('INGRESO DE DATOS'!$D$21="Guayas/Santa Elena",'Tablas Guayaquil'!E65,'Tablas Resto de Ecuador'!E65) -> 53680 | L65: =IF('INGRESO DE DATOS'!$D$21="Guayas/Santa Elena",'Tablas Guayaquil'!F65,'Tablas Resto de Ecuador'!F65) -> 46547 | M65: =IF('INGRESO DE DATOS'!$D$21="Guayas/Santa Elena",'Tablas Guayaquil'!G65,'Tablas Resto de Ecuador'!G65) -> 34581 | O65: 66181 | P65: 58011.65 | Q65: 45628 | R65: 39564.95 | S65: 29393.85
A66: 78 | C66: 66181 | D66: 58011.65 | E66: 45628 | F66: 39564.95 | G66: 29393.85 | I66: =IF('INGRESO DE DATOS'!$D$21="Guayas/Santa Elena",'Tablas Guayaquil'!C66,'Tablas Resto de Ecuador'!C66) -> 77860 | J66: =IF('INGRESO DE DATOS'!$D$21="Guayas/Santa Elena",'Tablas Guayaquil'!D66,'Tablas Resto de Ecuador'!D66) -> 68249 | K66: =IF('INGRESO DE DATOS'!$D$21="Guayas/Santa Elena",'Tablas Guayaquil'!E66,'Tablas Resto de Ecuador'!E66) -> 53680 | L66: =IF('INGRESO DE DATOS'!$D$21="Guayas/Santa Elena",'Tablas Guayaquil'!F66,'Tablas Resto de Ecuador'!F66) -> 46547 | M66: =IF('INGRESO DE DATOS'!$D$21="Guayas/Santa Elena",'Tablas Guayaquil'!G66,'Tablas Resto de Ecuador'!G66) -> 34581 | O66: 66181 | P66: 58011.65 | Q66: 45628 | R66: 39564.95 | S66: 29393.85
A67: 79 | C67: 66181 | D67: 58011.65 | E67: 45628 | F67: 39564.95 | G67: 29393.85 | I67: =IF('INGRESO DE DATOS'!$D$21="Guayas/Santa Elena",'Tablas Guayaquil'!C67,'Tablas Resto de Ecuador'!C67) -> 77860 | J67: =IF('INGRESO DE DATOS'!$D$21="Guayas/Santa Elena",'Tablas Guayaquil'!D67,'Tablas Resto de Ecuador'!D67) -> 68249 | K67: =IF('INGRESO DE DATOS'!$D$21="Guayas/Santa Elena",'Tablas Guayaquil'!E67,'Tablas Resto de Ecuador'!E67) -> 53680 | L67: =IF('INGRESO DE DATOS'!$D$21="Guayas/Santa Elena",'Tablas Guayaquil'!F67,'Tablas Resto de Ecuador'!F67) -> 46547 | M67: =IF('INGRESO DE DATOS'!$D$21="Guayas/Santa Elena",'Tablas Guayaquil'!G67,'Tablas Resto de Ecuador'!G67) -> 34581 | O67: 66181 | P67: 58011.65 | Q67: 45628 | R67: 39564.95 | S67: 29393.85
A68: 80 | C68: 66181 | D68: 58011.65 | E68: 45628 | F68: 39564.95 | G68: 29393.85 | I68: =IF('INGRESO DE DATOS'!$D$21="Guayas/Santa Elena",'Tablas Guayaquil'!C68,'Tablas Resto de Ecuador'!C68) -> 77860 | J68: =IF('INGRESO DE DATOS'!$D$21="Guayas/Santa Elena",'Tablas Guayaquil'!D68,'Tablas Resto de Ecuador'!D68) -> 68249 | K68: =IF('INGRESO DE DATOS'!$D$21="Guayas/Santa Elena",'Tablas Guayaquil'!E68,'Tablas Resto de Ecuador'!E68) -> 53680 | L68: =IF('INGRESO DE DATOS'!$D$21="Guayas/Santa Elena",'Tablas Guayaquil'!F68,'Tablas Resto de Ecuador'!F68) -> 46547 | M68: =IF('INGRESO DE DATOS'!$D$21="Guayas/Santa Elena",'Tablas Guayaquil'!G68,'Tablas Resto de Ecuador'!G68) -> 34581 | O68: 66181 | P68: 58011.65 | Q68: 45628 | R68: 39564.95 | S68: 29393.85
A69: 81 | C69: 66181 | D69: 58011.65 | E69: 45628 | F69: 39564.95 | G69: 29393.85 | I69: =IF('INGRESO DE DATOS'!$D$21="Guayas/Santa Elena",'Tablas Guayaquil'!C69,'Tablas Resto de Ecuador'!C69) -> 77860 | J69: =IF('INGRESO DE DATOS'!$D$21="Guayas/Santa Elena",'Tablas Guayaquil'!D69,'Tablas Resto de Ecuador'!D69) -> 68249 | K69: =IF('INGRESO DE DATOS'!$D$21="Guayas/Santa Elena",'Tablas Guayaquil'!E69,'Tablas Resto de Ecuador'!E69) -> 53680 | L69: =IF('INGRESO DE DATOS'!$D$21="Guayas/Santa Elena",'Tablas Guayaquil'!F69,'Tablas Resto de Ecuador'!F69) -> 46547 | M69: =IF('INGRESO DE DATOS'!$D$21="Guayas/Santa Elena",'Tablas Guayaquil'!G69,'Tablas Resto de Ecuador'!G69) -> 34581 | O69: 66181 | P69: 58011.65 | Q69: 45628 | R69: 39564.95 | S69: 29393.85
A70: 82 | C70: 66181 | D70: 58011.65 | E70: 45628 | F70: 39564.95 | G70: 29393.85 | I70: =IF('INGRESO DE DATOS'!$D$21="Guayas/Santa Elena",'Tablas Guayaquil'!C70,'Tablas Resto de Ecuador'!C70) -> 77860 | J70: =IF('INGRESO DE DATOS'!$D$21="Guayas/Santa Elena",'Tablas Guayaquil'!D70,'Tablas Resto de Ecuador'!D70) -> 68249 | K70: =IF('INGRESO DE DATOS'!$D$21="Guayas/Santa Elena",'Tablas Guayaquil'!E70,'Tablas Resto de Ecuador'!E70) -> 53680 | L70: =IF('INGRESO DE DATOS'!$D$21="Guayas/Santa Elena",'Tablas Guayaquil'!F70,'Tablas Resto de Ecuador'!F70) -> 46547 | M70: =IF('INGRESO DE DATOS'!$D$21="Guayas/Santa Elena",'Tablas Guayaquil'!G70,'Tablas Resto de Ecuador'!G70) -> 34581 | O70: 66181 | P70: 58011.65 | Q70: 45628 | R70: 39564.95 | S70: 29393.85
A71: 83 | C71: =O71 -> 66181 | D71: =P71 -> 58011.65 | E71: =Q71 -> 45628 | F71: =R71 -> 39564.95 | G71: =S71 -> 29393.85 | I71: =IF('INGRESO DE DATOS'!$D$21="Guayas/Santa Elena",'Tablas Guayaquil'!C71,'Tablas Resto de Ecuador'!C71) -> 77860 | J71: =IF('INGRESO DE DATOS'!$D$21="Guayas/Santa Elena",'Tablas Guayaquil'!D71,'Tablas Resto de Ecuador'!D71) -> 68249 | K71: =IF('INGRESO DE DATOS'!$D$21="Guayas/Santa Elena",'Tablas Guayaquil'!E71,'Tablas Resto de Ecuador'!E71) -> 53680 | L71: =IF('INGRESO DE DATOS'!$D$21="Guayas/Santa Elena",'Tablas Guayaquil'!F71,'Tablas Resto de Ecuador'!F71) -> 46547 | M71: =IF('INGRESO DE DATOS'!$D$21="Guayas/Santa Elena",'Tablas Guayaquil'!G71,'Tablas Resto de Ecuador'!G71) -> 34581 | O71: =I71*0.85 -> 66181 | P71: =J71*0.85 -> 58011.65 | Q71: =K71*0.85 -> 45628 | R71: =L71*0.85 -> 39564.95 | S71: =M71*0.85 -> 29393.85
A72: 84 | B72: o más | C72: 66181 | D72: 58011.65 | E72: 45628 | F72: 39564.95 | G72: 29393.85 | I72: =IF('INGRESO DE DATOS'!$D$21="Guayas/Santa Elena",'Tablas Guayaquil'!C72,'Tablas Resto de Ecuador'!C72) -> 77860 | J72: =IF('INGRESO DE DATOS'!$D$21="Guayas/Santa Elena",'Tablas Guayaquil'!D72,'Tablas Resto de Ecuador'!D72) -> 68249 | K72: =IF('INGRESO DE DATOS'!$D$21="Guayas/Santa Elena",'Tablas Guayaquil'!E72,'Tablas Resto de Ecuador'!E72) -> 53680 | L72: =IF('INGRESO DE DATOS'!$D$21="Guayas/Santa Elena",'Tablas Guayaquil'!F72,'Tablas Resto de Ecuador'!F72) -> 46547 | M72: =IF('INGRESO DE DATOS'!$D$21="Guayas/Santa Elena",'Tablas Guayaquil'!G72,'Tablas Resto de Ecuador'!G72) -> 34581 | O72: 66181 | P72: 58011.65 | Q72: 45628 | R72: 39564.95 | S72: 29393.85
A73: 1 | B73: Hijo | C73: 3394.05 | D73: 2977.55 | E73: 2419.95 | F73: 2099.5 | G73: 1560.6 | I73: =IF('INGRESO DE DATOS'!$D$21="Guayas/Santa Elena",'Tablas Guayaquil'!C73,'Tablas Resto de Ecuador'!C73) -> 3993 | J73: =IF('INGRESO DE DATOS'!$D$21="Guayas/Santa Elena",'Tablas Guayaquil'!D73,'Tablas Resto de Ecuador'!D73) -> 3503 | K73: =IF('INGRESO DE DATOS'!$D$21="Guayas/Santa Elena",'Tablas Guayaquil'!E73,'Tablas Resto de Ecuador'!E73) -> 2847 | L73: =IF('INGRESO DE DATOS'!$D$21="Guayas/Santa Elena",'Tablas Guayaquil'!F73,'Tablas Resto de Ecuador'!F73) -> 2470 | M73: =IF('INGRESO DE DATOS'!$D$21="Guayas/Santa Elena",'Tablas Guayaquil'!G73,'Tablas Resto de Ecuador'!G73) -> 1836 | O73: 3394.05 | P73: 2977.55 | Q73: 2419.95 | R73: 2099.5 | S73: 1560.6
A74: 2 | B74: Hijos | C74: 5772.35 | D74: 5059.2 | E74: 4109.75 | F74: 3564.9 | G74: 2649.45 | I74: =IF('INGRESO DE DATOS'!$D$21="Guayas/Santa Elena",'Tablas Guayaquil'!C74,'Tablas Resto de Ecuador'!C74) -> 6791 | J74: =IF('INGRESO DE DATOS'!$D$21="Guayas/Santa Elena",'Tablas Guayaquil'!D74,'Tablas Resto de Ecuador'!D74) -> 5952 | K74: =IF('INGRESO DE DATOS'!$D$21="Guayas/Santa Elena",'Tablas Guayaquil'!E74,'Tablas Resto de Ecuador'!E74) -> 4835 | L74: =IF('INGRESO DE DATOS'!$D$21="Guayas/Santa Elena",'Tablas Guayaquil'!F74,'Tablas Resto de Ecuador'!F74) -> 4194 | M74: =IF('INGRESO DE DATOS'!$D$21="Guayas/Santa Elena",'Tablas Guayaquil'!G74,'Tablas Resto de Ecuador'!G74) -> 3117 | O74: 5772.35 | P74: 5059.2 | Q74: 4109.75 | R74: 3564.9 | S74: 2649.45
A75: 3 | B75: Hijos o más | C75: 8146.4 | D75: 7143.4 | E75: 5804.65 | F75: 5032.85 | G75: 3740 | I75: =IF('INGRESO DE DATOS'!$D$21="Guayas/Santa Elena",'Tablas Guayaquil'!C75,'Tablas Resto de Ecuador'!C75) -> 9584 | J75: =IF('INGRESO DE DATOS'!$D$21="Guayas/Santa Elena",'Tablas Guayaquil'!D75,'Tablas Resto de Ecuador'!D75) -> 8404 | K75: =IF('INGRESO DE DATOS'!$D$21="Guayas/Santa Elena",'Tablas Guayaquil'!E75,'Tablas Resto de Ecuador'!E75) -> 6829 | L75: =IF('INGRESO DE DATOS'!$D$21="Guayas/Santa Elena",'Tablas Guayaquil'!F75,'Tablas Resto de Ecuador'!F75) -> 5921 | M75: =IF('INGRESO DE DATOS'!$D$21="Guayas/Santa Elena",'Tablas Guayaquil'!G75,'Tablas Resto de Ecuador'!G75) -> 4400 | O75: 8146.4 | P75: 7143.4 | Q75: 5804.65 | R75: 5032.85 | S75: 3740
A77: BUPA GLOBAL ELITE - MENSUALES
A78: EDAD
C79: 1000 | D79: 2000 | E79: 3500 | F79: 5000 | G79: 10000
A80: 18 | C80: =+C6*$K$2 -> 749.8586667 | D80: =+D6*$K$2 -> 657.356 | E80: 530.4226667 | F80: 460.2126667 | G80: 342.006
A81: 19 | C81: =+C7*$K$2 -> 749.8586667 | D81: 657.356 | E81: 530.4226667 | F81: 460.2126667 | G81: 342.006
A82: 20 | C82: =+C8*$K$2 -> 749.8586667 | D82: 657.356 | E82: 530.4226667 | F82: 460.2126667 | G82: 342.006
A83: 21 | C83: =+C9*$K$2 -> 749.8586667 | D83: 657.356 | E83: 530.4226667 | F83: 460.2126667 | G83: 342.006
A84: 22 | C84: =+C10*$K$2 -> 749.8586667 | D84: 657.356 | E84: 530.4226667 | F84: 460.2126667 | G84: 342.006
A85: 23 | C85: =+C11*$K$2 -> 749.8586667 | D85: 657.356 | E85: 530.4226667 | F85: 460.2126667 | G85: 342.006
A86: 24 | C86: =+C12*$K$2 -> 749.8586667 | D86: 657.356 | E86: 530.4226667 | F86: 460.2126667 | G86: 342.006
A87: 25 | C87: =+C13*$K$2 -> 801.4253333 | D87: 702.4173333 | E87: 563.4253333 | F87: 488.6933333 | G87: 363.0293333
A88: 26 | C88: =+C14*$K$2 -> 801.4253333 | D88: 702.4173333 | E88: 563.4253333 | F88: 488.6933333 | G88: 363.0293333
A89: 27 | C89: =+C15*$K$2 -> 801.4253333 | D89: 702.4173333 | E89: 563.4253333 | F89: 488.6933333 | G89: 363.0293333
A90: 28 | C90: =+C16*$K$2 -> 801.4253333 | D90: 702.4173333 | E90: 563.4253333 | F90: 488.6933333 | G90: 363.0293333
A91: 29 | C91: =+C17*$K$2 -> 801.4253333 | D91: 702.4173333 | E91: 563.4253333 | F91: 488.6933333 | G91: 363.0293333
A92: 30 | C92: =+C18*$K$2 -> 891.072 | D92: 781.1953333 | E92: 621.894 | F92: 539.308 | G92: 400.7126667
A93: 31 | C93: =+C19*$K$2 -> 891.072 | D93: 781.1953333 | E93: 621.894 | F93: 539.308 | G93: 400.7126667
A94: 32 | C94: =+C20*$K$2 -> 891.072 | D94: 781.1953333 | E94: 621.894 | F94: 539.308 | G94: 400.7126667
A95: 33 | C95: =+C21*$K$2 -> 891.072 | D95: 781.1953333 | E95: 621.894 | F95: 539.308 | G95: 400.7126667
A96: 34 | C96: =+C22*$K$2 -> 891.072 | D96: 781.1953333 | E96: 621.894 | F96: 539.308 | G96: 400.7126667
A97: 35 | C97: =+C23*$K$2 -> 995.078 | D97: 872.032 | E97: 690.2793333 | F97: 598.57 | G97: 444.9013333
A98: 36 | C98: =+C24*$K$2 -> 995.078 | D98: 872.032 | E98: 690.2793333 | F98: 598.57 | G98: 444.9013333
A99: 37 | C99: =+C25*$K$2 -> 995.078 | D99: 872.032 | E99: 690.2793333 | F99: 598.57 | G99: 444.9013333
A100: 38 | C100: =+C26*$K$2 -> 995.078 | D100: 872.032 | E100: 690.2793333 | F100: 598.57 | G100: 444.9013333
A101: 39 | C101: =+C27*$K$2 -> 995.078 | D101: 872.032 | E101: 690.2793333 | F101: 598.57 | G101: 444.9013333
A102: 40 | C102: =+C28*$K$2 -> 1114.474667 | D102: 976.99 | E102: 769.8506667 | F102: 667.59 | G102: 495.992
A103: 41 | C103: =+C29*$K$2 -> 1114.474667 | D103: 976.99 | E103: 769.8506667 | F103: 667.59 | G103: 495.992
A104: 42 | C104: =+C30*$K$2 -> 1114.474667 | D104: 976.99 | E104: 769.8506667 | F104: 667.59 | G104: 495.992
A105: 43 | C105: =+C31*$K$2 -> 1114.474667 | D105: 976.99 | E105: 769.8506667 | F105: 667.59 | G105: 495.992
A106: 44 | C106: =+C32*$K$2 -> 1114.474667 | D106: 976.99 | E106: 769.8506667 | F106: 667.59 | G106: 495.992
A107: 45 | C107: =+C33*$K$2 -> 1247.278667 | D107: 1093.451333 | E107: 858.942 | F107: 744.7813333 | G107: 553.4293333
A108: 46 | C108: =+C34*$K$2 -> 1247.278667 | D108: 1093.451333 | E108: 858.942 | F108: 744.7813333 | G108: 553.4293333
A109: 47 | C109: =+C35*$K$2 -> 1247.278667 | D109: 1093.451333 | E109: 858.942 | F109: 744.7813333 | G109: 553.4293333
A110: 48 | C110: =+C36*$K$2 -> 1247.278667 | D110: 1093.451333 | E110: 858.942 | F110: 744.7813333 | G110: 553.4293333
A111: 49 | C111: =+C37*$K$2 -> 1247.278667 | D111: 1093.451333 | E111: 858.942 | F111: 744.7813333 | G111: 553.4293333
A112: 50 | C112: =+C38*$K$2 -> 1396.901333 | D112: 1224.589333 | E112: 959.7746667 | F112: 832.3653333 | G112: 618.4033333
A113: 51 | C113: =+C39*$K$2 -> 1396.901333 | D113: 1224.589333 | E113: 959.7746667 | F113: 832.3653333 | G113: 618.4033333
A114: 52 | C114: =+C40*$K$2 -> 1396.901333 | D114: 1224.589333 | E114: 959.7746667 | F114: 832.3653333 | G114: 618.4033333
A115: 53 | C115: =+C41*$K$2 -> 1396.901333 | D115: 1224.589333 | E115: 959.7746667 | F115: 832.3653333 | G115: 618.4033333
A116: 54 | C116: =+C42*$K$2 -> 1396.901333 | D116: 1224.589333 | E116: 959.7746667 | F116: 832.3653333 | G116: 618.4033333
A117: 55 | C117: =+C43*$K$2 -> 1561.597333 | D117: 1368.896667 | E117: 1071.238 | F117: 929.0726667 | G117: 690.3586667
A118: 56 | C118: =+C44*$K$2 -> 1561.597333 | D118: 1368.896667 | E118: 1071.238 | F118: 929.0726667 | G118: 690.3586667
A119: 57 | C119: =+C45*$K$2 -> 1561.597333 | D119: 1368.896667 | E119: 1071.238 | F119: 929.0726667 | G119: 690.3586667
A120: 58 | C120: =+C46*$K$2 -> 1561.597333 | D120: 1368.896667 | E120: 1071.238 | F120: 929.0726667 | G120: 690.3586667
A121: 59 | C121: =+C47*$K$2 -> 1561.597333 | D121: 1368.896667 | E121: 1071.238 | F121: 929.0726667 | G121: 690.3586667
A122: 60 | C122: =+C48*$K$2 -> 1671.394667 | D122: 1465.048667 | E122: 1145.97 | F122: 993.5706667 | G122: 738.3553333
A123: 61 | C123: =+C49*$K$2 -> 1862.746667 | D123: 1632.521333 | E123: 1276.076667 | F123: 1106.541333 | G123: 822.2106667
A124: 62 | C124: =+C50*$K$2 -> 2069.330667 | D124: 1813.718667 | E124: 1417.29 | F124: 1229.032 | G124: 913.1266667
A125: 63 | C125: =+C51*$K$2 -> 2291.622667 | D125: 2008.640667 | E125: 1569.61 | F125: 1361.201333 | G125: 1011.420667
A126: 64 | C126: =+C52*$K$2 -> 2529.702 | D126: 2217.208 | E126: 1733.036667 | F126: 1502.811333 | G126: 1116.616667
A127: 65 | C127: =+C53*$K$2 -> 2783.330667 | D127: 2439.579333 | E127: 1907.411333 | F127: 1654.1 | G127: 1228.952667
A128: 66 | C128: =+C54*$K$2 -> 3052.270667 | D128: 2675.516667 | E128: 2092.813333 | F128: 1814.908667 | G128: 1348.190667
A129: 67 | C129: =+C55*$K$2 -> 3337.156667 | D129: 2925.099333 | E129: 2289.322 | F129: 1984.999333 | G129: 1474.806667
A130: 68 | C130: =+C56*$K$2 -> 3637.274667 | D130: 3188.486 | E130: 2496.778667 | F130: 2165.165333 | G130: 1608.721333
A131: 69 | C131: =+C57*$K$2 -> 3953.576667 | D131: 3465.359333 | E131: 2715.421333 | F131: 2354.692667 | G131: 1749.538
A132: 70 | C132: =+C58*$K$2 -> 4285.110667 | D132: 3755.957333 | E132: 2944.932667 | F132: 2553.74 | G132: 1897.256667
A133: 71 | C133: =+C59*$K$2 -> 4632.273333 | D133: 4060.28 | E133: 3185.788667 | F133: 2762.386667 | G133: 2052.432667
A134: 72 | C134: =+C60*$K$2 -> 4995.064667 | D134: 4378.168667 | E134: 3437.275333 | F134: 2980.632667 | G134: 2214.352
A135: 73 | C135: =+C61*$K$2 -> 5373.326 | D135: 4709.861333 | E135: 3700.106667 | F135: 3208.478 | G135: 2383.887333
A136: 74 | C136: =+C62*$K$2 -> 5767.374667 | D136: 5055.12 | E136: 3973.886 | F136: 3445.843333 | G136: 2560.245333
A137: 75 | C137: =+C63*$K$2 -> 6176.893333 | D137: 5414.420667 | E137: 4258.613333 | F137: 3692.728667 | G137: 2743.426
A138: 76 | C138: =+C64*$K$2 -> 6176.893333 | D138: 5414.420667 | E138: 4258.613333 | F138: 3692.728667 | G138: 2743.426
A139: 77 | C139: =+C65*$K$2 -> 6176.893333 | D139: 5414.420667 | E139: 4258.613333 | F139: 3692.728667 | G139: 2743.426
A140: 78 | C140: =+C66*$K$2 -> 6176.893333 | D140: 5414.420667 | E140: 4258.613333 | F140: 3692.728667 | G140: 2743.426
A141: 79 | C141: =+C67*$K$2 -> 6176.893333 | D141: 5414.420667 | E141: 4258.613333 | F141: 3692.728667 | G141: 2743.426
A142: 80 | C142: =+C68*$K$2 -> 6176.893333 | D142: 5414.420667 | E142: 4258.613333 | F142: 3692.728667 | G142: 2743.426
A143: 81 | C143: =+C69*$K$2 -> 6176.893333 | D143: 5414.420667 | E143: 4258.613333 | F143: 3692.728667 | G143: 2743.426
A144: 82 | C144: =+C70*$K$2 -> 6176.893333 | D144: 5414.420667 | E144: 4258.613333 | F144: 3692.728667 | G144: 2743.426
A145: 83 | C145: =+C71*$K$2 -> 6176.893333 | D145: 5414.420667 | E145: 4258.613333 | F145: 3692.728667 | G145: 2743.426
A146: 84 | B146: o más | C146: =+C72*$K$2 -> 6176.893333 | D146: 5414.420667 | E146: 4258.613333 | F146: 3692.728667 | G146: 2743.426
A147: 1 | B147: Hijo | C147: =+C73*$K$2 -> 316.778 | D147: 277.9046667 | E147: 225.862 | F147: 195.9533333 | G147: 145.656
A148: 2 | B148: Hijos | C148: =+C74*$K$2 -> 538.7526667 | D148: 472.192 | E148: 383.5766667 | F148: 332.724 | G148: 247.282
A149: 3 | B149: Hijos o más | C149: =+C75*$K$2 -> 760.3306667 | D149: 666.7173333 | E149: 541.7673333 | F149: 469.7326667 | G149: 349.0666667
A151: BUPA GLOBAL PREMIER
A152: TARIFAS ANUALES
A153: EDAD
C154: 250 | D154: 2000 | E154: 5000 | F154: 10000 | G154: 20000
A155: 18 | C155: =O155 -> 5236 | D155: =P155 -> 4750.65 | E155: 3457.8 | F155: 2466.7 | G155: 1934.6 | I155: =IF('INGRESO DE DATOS'!$D$21="Guayas/Santa Elena",'Tablas Guayaquil'!C155,'Tablas Resto de Ecuador'!C155) -> 6160 | J155: =IF('INGRESO DE DATOS'!$D$21="Guayas/Santa Elena",'Tablas Guayaquil'!D155,'Tablas Resto de Ecuador'!D155) -> 5589 | K155: =IF('INGRESO DE DATOS'!$D$21="Guayas/Santa Elena",'Tablas Guayaquil'!E155,'Tablas Resto de Ecuador'!E155) -> 4068 | L155: =IF('INGRESO DE DATOS'!$D$21="Guayas/Santa Elena",'Tablas Guayaquil'!F155,'Tablas Resto de Ecuador'!F155) -> 2902 | M155: =IF('INGRESO DE DATOS'!$D$21="Guayas/Santa Elena",'Tablas Guayaquil'!G155,'Tablas Resto de Ecuador'!G155) -> 2276 | O155: =I155*0.85 -> 5236 | P155: =J155*0.85 -> 4750.65 | Q155: 3457.8 | R155: 2466.7 | S155: 1934.6
A156: 19 | C156: =O156 -> 5236 | D156: =P156 -> 4750.65 | E156: =Q156 -> 3457.8 | F156: =R156 -> 2466.7 | G156: =S156 -> 1934.6 | I156: =IF('INGRESO DE DATOS'!$D$21="Guayas/Santa Elena",'Tablas Guayaquil'!C156,'Tablas Resto de Ecuador'!C156) -> 6160 | J156: =IF('INGRESO DE DATOS'!$D$21="Guayas/Santa Elena",'Tablas Guayaquil'!D156,'Tablas Resto de Ecuador'!D156) -> 5589 | K156: =IF('INGRESO DE DATOS'!$D$21="Guayas/Santa Elena",'Tablas Guayaquil'!E156,'Tablas Resto de Ecuador'!E156) -> 4068 | L156: =IF('INGRESO DE DATOS'!$D$21="Guayas/Santa Elena",'Tablas Guayaquil'!F156,'Tablas Resto de Ecuador'!F156) -> 2902 | M156: =IF('INGRESO DE DATOS'!$D$21="Guayas/Santa Elena",'Tablas Guayaquil'!G156,'Tablas Resto de Ecuador'!G156) -> 2276 | O156: =I156*0.85 -> 5236 | P156: =J156*0.85 -> 4750.65 | Q156: =K156*0.85 -> 3457.8 | R156: =L156*0.85 -> 2466.7 | S156: =M156*0.85 -> 1934.6
A157: 20 | C157: 5236 | D157: 4750.65 | E157: 3457.8 | F157: 2466.7 | G157: 1934.6 | I157: =IF('INGRESO DE DATOS'!$D$21="Guayas/Santa Elena",'Tablas Guayaquil'!C157,'Tablas Resto de Ecuador'!C157) -> 6160 | J157: =IF('INGRESO DE DATOS'!$D$21="Guayas/Santa Elena",'Tablas Guayaquil'!D157,'Tablas Resto de Ecuador'!D157) -> 5589 | K157: =IF('INGRESO DE DATOS'!$D$21="Guayas/Santa Elena",'Tablas Guayaquil'!E157,'Tablas Resto de Ecuador'!E157) -> 4068 | L157: =IF('INGRESO DE DATOS'!$D$21="Guayas/Santa Elena",'Tablas Guayaquil'!F157,'Tablas Resto de Ecuador'!F157) -> 2902 | M157: =IF('INGRESO DE DATOS'!$D$21="Guayas/Santa Elena",'Tablas Guayaquil'!G157,'Tablas Resto de Ecuador'!G157) -> 2276 | O157: 5236 | P157: 4750.65 | Q157: 3457.8 | R157: 2466.7 | S157: 1934.6
A158: 21 | C158: 5236 | D158: 4750.65 | E158: 3457.8 | F158: 2466.7 | G158: 1934.6 | I158: =IF('INGRESO DE DATOS'!$D$21="Guayas/Santa Elena",'Tablas Guayaquil'!C158,'Tablas Resto de Ecuador'!C158) -> 6160 | J158: =IF('INGRESO DE DATOS'!$D$21="Guayas/Santa Elena",'Tablas Guayaquil'!D158,'Tablas Resto de Ecuador'!D158) -> 5589 | K158: =IF('INGRESO DE DATOS'!$D$21="Guayas/Santa Elena",'Tablas Guayaquil'!E158,'Tablas Resto de Ecuador'!E158) -> 4068 | L158: =IF('INGRESO DE DATOS'!$D$21="Guayas/Santa Elena",'Tablas Guayaquil'!F158,'Tablas Resto de Ecuador'!F158) -> 2902 | M158: =IF('INGRESO DE DATOS'!$D$21="Guayas/Santa Elena",'Tablas Guayaquil'!G158,'Tablas Resto de Ecuador'!G158) -> 2276 | O158: 5236 | P158: 4750.65 | Q158: 3457.8 | R158: 2466.7 | S158: 1934.6
A159: 22 | C159: 5236 | D159: 4750.65 | E159: 3457.8 | F159: 2466.7 | G159: 1934.6 | I159: =IF('INGRESO DE DATOS'!$D$21="Guayas/Santa Elena",'Tablas Guayaquil'!C159,'Tablas Resto de Ecuador'!C159) -> 6160 | J159: =IF('INGRESO DE DATOS'!$D$21="Guayas/Santa Elena",'Tablas Guayaquil'!D159,'Tablas Resto de Ecuador'!D159) -> 5589 | K159: =IF('INGRESO DE DATOS'!$D$21="Guayas/Santa Elena",'Tablas Guayaquil'!E159,'Tablas Resto de Ecuador'!E159) -> 4068 | L159: =IF('INGRESO DE DATOS'!$D$21="Guayas/Santa Elena",'Tablas Guayaquil'!F159,'Tablas Resto de Ecuador'!F159) -> 2902 | M159: =IF('INGRESO DE DATOS'!$D$21="Guayas/Santa Elena",'Tablas Guayaquil'!G159,'Tablas Resto de Ecuador'!G159) -> 2276 | O159: 5236 | P159: 4750.65 | Q159: 3457.8 | R159: 2466.7 | S159: 1934.6
A160: 23 | C160: 5236 | D160: 4750.65 | E160: 3457.8 | F160: 2466.7 | G160: 1934.6 | I160: =IF('INGRESO DE DATOS'!$D$21="Guayas/Santa Elena",'Tablas Guayaquil'!C160,'Tablas Resto de Ecuador'!C160) -> 6160 | J160: =IF('INGRESO DE DATOS'!$D$21="Guayas/Santa Elena",'Tablas Guayaquil'!D160,'Tablas Resto de Ecuador'!D160) -> 5589 | K160: =IF('INGRESO DE DATOS'!$D$21="Guayas/Santa Elena",'Tablas Guayaquil'!E160,'Tablas Resto de Ecuador'!E160) -> 4068 | L160: =IF('INGRESO DE DATOS'!$D$21="Guayas/Santa Elena",'Tablas Guayaquil'!F160,'Tablas Resto de Ecuador'!F160) -> 2902 | M160: =IF('INGRESO DE DATOS'!$D$21="Guayas/Santa Elena",'Tablas Guayaquil'!G160,'Tablas Resto de Ecuador'!G160) -> 2276 | O160: 5236 | P160: 4750.65 | Q160: 3457.8 | R160: 2466.7 | S160: 1934.6
A161: 24 | C161: 5236 | D161: 4750.65 | E161: 3457.8 | F161: 2466.7 | G161: 1934.6 | I161: =IF('INGRESO DE DATOS'!$D$21="Guayas/Santa Elena",'Tablas Guayaquil'!C161,'Tablas Resto de Ecuador'!C161) -> 6160 | J161: =IF('INGRESO DE DATOS'!$D$21="Guayas/Santa Elena",'Tablas Guayaquil'!D161,'Tablas Resto de Ecuador'!D161) -> 5589 | K161: =IF('INGRESO DE DATOS'!$D$21="Guayas/Santa Elena",'Tablas Guayaquil'!E161,'Tablas Resto de Ecuador'!E161) -> 4068 | L161: =IF('INGRESO DE DATOS'!$D$21="Guayas/Santa Elena",'Tablas Guayaquil'!F161,'Tablas Resto de Ecuador'!F161) -> 2902 | M161: =IF('INGRESO DE DATOS'!$D$21="Guayas/Santa Elena",'Tablas Guayaquil'!G161,'Tablas Resto de Ecuador'!G161) -> 2276 | O161: 5236 | P161: 4750.65 | Q161: 3457.8 | R161: 2466.7 | S161: 1934.6
A162: 25 | C162: 5594.7 | D162: 5076.2 | E162: 3655.85 | F162: 2606.95 | G162: 2045.1 | I162: =IF('INGRESO DE DATOS'!$D$21="Guayas/Santa Elena",'Tablas Guayaquil'!C162,'Tablas Resto de Ecuador'!C162) -> 6582 | J162: =IF('INGRESO DE DATOS'!$D$21="Guayas/Santa Elena",'Tablas Guayaquil'!D162,'Tablas Resto de Ecuador'!D162) -> 5972 | K162: =IF('INGRESO DE DATOS'!$D$21="Guayas/Santa Elena",'Tablas Guayaquil'!E162,'Tablas Resto de Ecuador'!E162) -> 4301 | L162: =IF('INGRESO DE DATOS'!$D$21="Guayas/Santa Elena",'Tablas Guayaquil'!F162,'Tablas Resto de Ecuador'!F162) -> 3067 | M162: =IF('INGRESO DE DATOS'!$D$21="Guayas/Santa Elena",'Tablas Guayaquil'!G162,'Tablas Resto de Ecuador'!G162) -> 2406 | O162: 5594.7 | P162: 5076.2 | Q162: 3655.85 | R162: 2606.95 | S162: 2045.1
A163: 26 | C163: 5594.7 | D163: 5076.2 | E163: 3655.85 | F163: 2606.95 | G163: 2045.1 | I163: =IF('INGRESO DE DATOS'!$D$21="Guayas/Santa Elena",'Tablas Guayaquil'!C163,'Tablas Resto de Ecuador'!C163) -> 6582 | J163: =IF('INGRESO DE DATOS'!$D$21="Guayas/Santa Elena",'Tablas Guayaquil'!D163,'Tablas Resto de Ecuador'!D163) -> 5972 | K163: =IF('INGRESO DE DATOS'!$D$21="Guayas/Santa Elena",'Tablas Guayaquil'!E163,'Tablas Resto de Ecuador'!E163) -> 4301 | L163: =IF('INGRESO DE DATOS'!$D$21="Guayas/Santa Elena",'Tablas Guayaquil'!F163,'Tablas Resto de Ecuador'!F163) -> 3067 | M163: =IF('INGRESO DE DATOS'!$D$21="Guayas/Santa Elena",'Tablas Guayaquil'!G163,'Tablas Resto de Ecuador'!G163) -> 2406 | O163: 5594.7 | P163: 5076.2 | Q163: 3655.85 | R163: 2606.95 | S163: 2045.1
A164: 27 | C164: 5594.7 | D164: 5076.2 | E164: 3655.85 | F164: 2606.95 | G164: 2045.1 | I164: =IF('INGRESO DE DATOS'!$D$21="Guayas/Santa Elena",'Tablas Guayaquil'!C164,'Tablas Resto de Ecuador'!C164) -> 6582 | J164: =IF('INGRESO DE DATOS'!$D$21="Guayas/Santa Elena",'Tablas Guayaquil'!D164,'Tablas Resto de Ecuador'!D164) -> 5972 | K164: =IF('INGRESO DE DATOS'!$D$21="Guayas/Santa Elena",'Tablas Guayaquil'!E164,'Tablas Resto de Ecuador'!E164) -> 4301 | L164: =IF('INGRESO DE DATOS'!$D$21="Guayas/Santa Elena",'Tablas Guayaquil'!F164,'Tablas Resto de Ecuador'!F164) -> 3067 | M164: =IF('INGRESO DE DATOS'!$D$21="Guayas/Santa Elena",'Tablas Guayaquil'!G164,'Tablas Resto de Ecuador'!G164) -> 2406 | O164: 5594.7 | P164: 5076.2 | Q164: 3655.85 | R164: 2606.95 | S164: 2045.1
A165: 28 | C165: 5594.7 | D165: 5076.2 | E165: 3655.85 | F165: 2606.95 | G165: 2045.1 | I165: =IF('INGRESO DE DATOS'!$D$21="Guayas/Santa Elena",'Tablas Guayaquil'!C165,'Tablas Resto de Ecuador'!C165) -> 6582 | J165: =IF('INGRESO DE DATOS'!$D$21="Guayas/Santa Elena",'Tablas Guayaquil'!D165,'Tablas Resto de Ecuador'!D165) -> 5972 | K165: =IF('INGRESO DE DATOS'!$D$21="Guayas/Santa Elena",'Tablas Guayaquil'!E165,'Tablas Resto de Ecuador'!E165) -> 4301 | L165: =IF('INGRESO DE DATOS'!$D$21="Guayas/Santa Elena",'Tablas Guayaquil'!F165,'Tablas Resto de Ecuador'!F165) -> 3067 | M165: =IF('INGRESO DE DATOS'!$D$21="Guayas/Santa Elena",'Tablas Guayaquil'!G165,'Tablas Resto de Ecuador'!G165) -> 2406 | O165: 5594.7 | P165: 5076.2 | Q165: 3655.85 | R165: 2606.95 | S165: 2045.1
A166: 29 | C166: 5594.7 | D166: 5076.2 | E166: 3655.85 | F166: 2606.95 | G166: 2045.1 | I166: =IF('INGRESO DE DATOS'!$D$21="Guayas/Santa Elena",'Tablas Guayaquil'!C166,'Tablas Resto de Ecuador'!C166) -> 6582 | J166: =IF('INGRESO DE DATOS'!$D$21="Guayas/Santa Elena",'Tablas Guayaquil'!D166,'Tablas Resto de Ecuador'!D166) -> 5972 | K166: =IF('INGRESO DE DATOS'!$D$21="Guayas/Santa Elena",'Tablas Guayaquil'!E166,'Tablas Resto de Ecuador'!E166) -> 4301 | L166: =IF('INGRESO DE DATOS'!$D$21="Guayas/Santa Elena",'Tablas Guayaquil'!F166,'Tablas Resto de Ecuador'!F166) -> 3067 | M166: =IF('INGRESO DE DATOS'!$D$21="Guayas/Santa Elena",'Tablas Guayaquil'!G166,'Tablas Resto de Ecuador'!G166) -> 2406 | O166: 5594.7 | P166: 5076.2 | Q166: 3655.85 | R166: 2606.95 | S166: 2045.1
A167: 30 | C167: 6222 | D167: 5645.7 | E167: 4012.85 | F167: 2861.1 | G167: 2244 | I167: =IF('INGRESO DE DATOS'!$D$21="Guayas/Santa Elena",'Tablas Guayaquil'!C167,'Tablas Resto de Ecuador'!C167) -> 7320 | J167: =IF('INGRESO DE DATOS'!$D$21="Guayas/Santa Elena",'Tablas Guayaquil'!D167,'Tablas Resto de Ecuador'!D167) -> 6642 | K167: =IF('INGRESO DE DATOS'!$D$21="Guayas/Santa Elena",'Tablas Guayaquil'!E167,'Tablas Resto de Ecuador'!E167) -> 4721 | L167: =IF('INGRESO DE DATOS'!$D$21="Guayas/Santa Elena",'Tablas Guayaquil'!F167,'Tablas Resto de Ecuador'!F167) -> 3366 | M167: =IF('INGRESO DE DATOS'!$D$21="Guayas/Santa Elena",'Tablas Guayaquil'!G167,'Tablas Resto de Ecuador'!G167) -> 2640 | O167: 6222 | P167: 5645.7 | Q167: 4012.85 | R167: 2861.1 | S167: 2244
A168: 31 | C168: 6222 | D168: 5645.7 | E168: 4012.85 | F168: 2861.1 | G168: 2244 | I168: =IF('INGRESO DE DATOS'!$D$21="Guayas/Santa Elena",'Tablas Guayaquil'!C168,'Tablas Resto de Ecuador'!C168) -> 7320 | J168: =IF('INGRESO DE DATOS'!$D$21="Guayas/Santa Elena",'Tablas Guayaquil'!D168,'Tablas Resto de Ecuador'!D168) -> 6642 | K168: =IF('INGRESO DE DATOS'!$D$21="Guayas/Santa Elena",'Tablas Guayaquil'!E168,'Tablas Resto de Ecuador'!E168) -> 4721 | L168: =IF('INGRESO DE DATOS'!$D$21="Guayas/Santa Elena",'Tablas Guayaquil'!F168,'Tablas Resto de Ecuador'!F168) -> 3366 | M168: =IF('INGRESO DE DATOS'!$D$21="Guayas/Santa Elena",'Tablas Guayaquil'!G168,'Tablas Resto de Ecuador'!G168) -> 2640 | O168: 6222 | P168: 5645.7 | Q168: 4012.85 | R168: 2861.1 | S168: 2244
A169: 32 | C169: 6222 | D169: 5645.7 | E169: 4012.85 | F169: 2861.1 | G169: 2244 | I169: =IF('INGRESO DE DATOS'!$D$21="Guayas/Santa Elena",'Tablas Guayaquil'!C169,'Tablas Resto de Ecuador'!C169) -> 7320 | J169: =IF('INGRESO DE DATOS'!$D$21="Guayas/Santa Elena",'Tablas Guayaquil'!D169,'Tablas Resto de Ecuador'!D169) -> 6642 | K169: =IF('INGRESO DE DATOS'!$D$21="Guayas/Santa Elena",'Tablas Guayaquil'!E169,'Tablas Resto de Ecuador'!E169) -> 4721 | L169: =IF('INGRESO DE DATOS'!$D$21="Guayas/Santa Elena",'Tablas Guayaquil'!F169,'Tablas Resto de Ecuador'!F169) -> 3366 | M169: =IF('INGRESO DE DATOS'!$D$21="Guayas/Santa Elena",'Tablas Guayaquil'!G169,'Tablas Resto de Ecuador'!G169) -> 2640 | O169: 6222 | P169: 5645.7 | Q169: 4012.85 | R169: 2861.1 | S169: 2244
A170: 33 | C170: 6222 | D170: 5645.7 | E170: 4012.85 | F170: 2861.1 | G170: 2244 | I170: =IF('INGRESO DE DATOS'!$D$21="Guayas/Santa Elena",'Tablas Guayaquil'!C170,'Tablas Resto de Ecuador'!C170) -> 7320 | J170: =IF('INGRESO DE DATOS'!$D$21="Guayas/Santa Elena",'Tablas Guayaquil'!D170,'Tablas Resto de Ecuador'!D170) -> 6642 | K170: =IF('INGRESO DE DATOS'!$D$21="Guayas/Santa Elena",'Tablas Guayaquil'!E170,'Tablas Resto de Ecuador'!E170) -> 4721 | L170: =IF('INGRESO DE DATOS'!$D$21="Guayas/Santa Elena",'Tablas Guayaquil'!F170,'Tablas Resto de Ecuador'!F170) -> 3366 | M170: =IF('INGRESO DE DATOS'!$D$21="Guayas/Santa Elena",'Tablas Guayaquil'!G170,'Tablas Resto de Ecuador'!G170) -> 2640 | O170: 6222 | P170: 5645.7 | Q170: 4012.85 | R170: 2861.1 | S170: 2244
A171: 34 | C171: 6222 | D171: 5645.7 | E171: 4012.85 | F171: 2861.1 | G171: 2244 | I171: =IF('INGRESO DE DATOS'!$D$21="Guayas/Santa Elena",'Tablas Guayaquil'!C171,'Tablas Resto de Ecuador'!C171) -> 7320 | J171: =IF('INGRESO DE DATOS'!$D$21="Guayas/Santa Elena",'Tablas Guayaquil'!D171,'Tablas Resto de Ecuador'!D171) -> 6642 | K171: =IF('INGRESO DE DATOS'!$D$21="Guayas/Santa Elena",'Tablas Guayaquil'!E171,'Tablas Resto de Ecuador'!E171) -> 4721 | L171: =IF('INGRESO DE DATOS'!$D$21="Guayas/Santa Elena",'Tablas Guayaquil'!F171,'Tablas Resto de Ecuador'!F171) -> 3366 | M171: =IF('INGRESO DE DATOS'!$D$21="Guayas/Santa Elena",'Tablas Guayaquil'!G171,'Tablas Resto de Ecuador'!G171) -> 2640 | O171: 6222 | P171: 5645.7 | Q171: 4012.85 | R171: 2861.1 | S171: 2244
A172: 35 | C172: 6944.5 | D172: 6303.6 | E172: 4434.45 | F172: 3162.85 | G172: 2481.15 | I172: =IF('INGRESO DE DATOS'!$D$21="Guayas/Santa Elena",'Tablas Guayaquil'!C172,'Tablas Resto de Ecuador'!C172) -> 8170 | J172: =IF('INGRESO DE DATOS'!$D$21="Guayas/Santa Elena",'Tablas Guayaquil'!D172,'Tablas Resto de Ecuador'!D172) -> 7416 | K172: =IF('INGRESO DE DATOS'!$D$21="Guayas/Santa Elena",'Tablas Guayaquil'!E172,'Tablas Resto de Ecuador'!E172) -> 5217 | L172: =IF('INGRESO DE DATOS'!$D$21="Guayas/Santa Elena",'Tablas Guayaquil'!F172,'Tablas Resto de Ecuador'!F172) -> 3721 | M172: =IF('INGRESO DE DATOS'!$D$21="Guayas/Santa Elena",'Tablas Guayaquil'!G172,'Tablas Resto de Ecuador'!G172) -> 2919 | O172: 6944.5 | P172: 6303.6 | Q172: 4434.45 | R172: 3162.85 | S172: 2481.15
A173: 36 | C173: 6944.5 | D173: 6303.6 | E173: 4434.45 | F173: 3162.85 | G173: 2481.15 | I173: =IF('INGRESO DE DATOS'!$D$21="Guayas/Santa Elena",'Tablas Guayaquil'!C173,'Tablas Resto de Ecuador'!C173) -> 8170 | J173: =IF('INGRESO DE DATOS'!$D$21="Guayas/Santa Elena",'Tablas Guayaquil'!D173,'Tablas Resto de Ecuador'!D173) -> 7416 | K173: =IF('INGRESO DE DATOS'!$D$21="Guayas/Santa Elena",'Tablas Guayaquil'!E173,'Tablas Resto de Ecuador'!E173) -> 5217 | L173: =IF('INGRESO DE DATOS'!$D$21="Guayas/Santa Elena",'Tablas Guayaquil'!F173,'Tablas Resto de Ecuador'!F173) -> 3721 | M173: =IF('INGRESO DE DATOS'!$D$21="Guayas/Santa Elena",'Tablas Guayaquil'!G173,'Tablas Resto de Ecuador'!G173) -> 2919 | O173: 6944.5 | P173: 6303.6 | Q173: 4434.45 | R173: 3162.85 | S173: 2481.15
A174: 37 | C174: 6944.5 | D174: 6303.6 | E174: 4434.45 | F174: 3162.85 | G174: 2481.15 | I174: =IF('INGRESO DE DATOS'!$D$21="Guayas/Santa Elena",'Tablas Guayaquil'!C174,'Tablas Resto de Ecuador'!C174) -> 8170 | J174: =IF('INGRESO DE DATOS'!$D$21="Guayas/Santa Elena",'Tablas Guayaquil'!D174,'Tablas Resto de Ecuador'!D174) -> 7416 | K174: =IF('INGRESO DE DATOS'!$D$21="Guayas/Santa Elena",'Tablas Guayaquil'!E174,'Tablas Resto de Ecuador'!E174) -> 5217 | L174: =IF('INGRESO DE DATOS'!$D$21="Guayas/Santa Elena",'Tablas Guayaquil'!F174,'Tablas Resto de Ecuador'!F174) -> 3721 | M174: =IF('INGRESO DE DATOS'!$D$21="Guayas/Santa Elena",'Tablas Guayaquil'!G174,'Tablas Resto de Ecuador'!G174) -> 2919 | O174: 6944.5 | P174: 6303.6 | Q174: 4434.45 | R174: 3162.85 | S174: 2481.15
A175: 38 | C175: 6944.5 | D175: 6303.6 | E175: 4434.45 | F175: 3162.85 | G175: 2481.15 | I175: =IF('INGRESO DE DATOS'!$D$21="Guayas/Santa Elena",'Tablas Guayaquil'!C175,'Tablas Resto de Ecuador'!C175) -> 8170 | J175: =IF('INGRESO DE DATOS'!$D$21="Guayas/Santa Elena",'Tablas Guayaquil'!D175,'Tablas Resto de Ecuador'!D175) -> 7416 | K175: =IF('INGRESO DE DATOS'!$D$21="Guayas/Santa Elena",'Tablas Guayaquil'!E175,'Tablas Resto de Ecuador'!E175) -> 5217 | L175: =IF('INGRESO DE DATOS'!$D$21="Guayas/Santa Elena",'Tablas Guayaquil'!F175,'Tablas Resto de Ecuador'!F175) -> 3721 | M175: =IF('INGRESO DE DATOS'!$D$21="Guayas/Santa Elena",'Tablas Guayaquil'!G175,'Tablas Resto de Ecuador'!G175) -> 2919 | O175: 6944.5 | P175: 6303.6 | Q175: 4434.45 | R175: 3162.85 | S175: 2481.15
A176: 39 | C176: 6944.5 | D176: 6303.6 | E176: 4434.45 | F176: 3162.85 | G176: 2481.15 | I176: =IF('INGRESO DE DATOS'!$D$21="Guayas/Santa Elena",'Tablas Guayaquil'!C176,'Tablas Resto de Ecuador'!C176) -> 8170 | J176: =IF('INGRESO DE DATOS'!$D$21="Guayas/Santa Elena",'Tablas Guayaquil'!D176,'Tablas Resto de Ecuador'!D176) -> 7416 | K176: =IF('INGRESO DE DATOS'!$D$21="Guayas/Santa Elena",'Tablas Guayaquil'!E176,'Tablas Resto de Ecuador'!E176) -> 5217 | L176: =IF('INGRESO DE DATOS'!$D$21="Guayas/Santa Elena",'Tablas Guayaquil'!F176,'Tablas Resto de Ecuador'!F176) -> 3721 | M176: =IF('INGRESO DE DATOS'!$D$21="Guayas/Santa Elena",'Tablas Guayaquil'!G176,'Tablas Resto de Ecuador'!G176) -> 2919 | O176: 6944.5 | P176: 6303.6 | Q176: 4434.45 | R176: 3162.85 | S176: 2481.15
A177: 40 | C177: 7780.05 | D177: 7059.25 | E177: 4930.85 | F177: 3514.75 | G177: 2757.4 | I177: =IF('INGRESO DE DATOS'!$D$21="Guayas/Santa Elena",'Tablas Guayaquil'!C177,'Tablas Resto de Ecuador'!C177) -> 9153 | J177: =IF('INGRESO DE DATOS'!$D$21="Guayas/Santa Elena",'Tablas Guayaquil'!D177,'Tablas Resto de Ecuador'!D177) -> 8305 | K177: =IF('INGRESO DE DATOS'!$D$21="Guayas/Santa Elena",'Tablas Guayaquil'!E177,'Tablas Resto de Ecuador'!E177) -> 5801 | L177: =IF('INGRESO DE DATOS'!$D$21="Guayas/Santa Elena",'Tablas Guayaquil'!F177,'Tablas Resto de Ecuador'!F177) -> 4135 | M177: =IF('INGRESO DE DATOS'!$D$21="Guayas/Santa Elena",'Tablas Guayaquil'!G177,'Tablas Resto de Ecuador'!G177) -> 3244 | O177: 7780.05 | P177: 7059.25 | Q177: 4930.85 | R177: 3514.75 | S177: 2757.4
A178: 41 | C178: 7780.05 | D178: 7059.25 | E178: 4930.85 | F178: 3514.75 | G178: 2757.4 | I178: =IF('INGRESO DE DATOS'!$D$21="Guayas/Santa Elena",'Tablas Guayaquil'!C178,'Tablas Resto de Ecuador'!C178) -> 9153 | J178: =IF('INGRESO DE DATOS'!$D$21="Guayas/Santa Elena",'Tablas Guayaquil'!D178,'Tablas Resto de Ecuador'!D178) -> 8305 | K178: =IF('INGRESO DE DATOS'!$D$21="Guayas/Santa Elena",'Tablas Guayaquil'!E178,'Tablas Resto de Ecuador'!E178) -> 5801 | L178: =IF('INGRESO DE DATOS'!$D$21="Guayas/Santa Elena",'Tablas Guayaquil'!F178,'Tablas Resto de Ecuador'!F178) -> 4135 | M178: =IF('INGRESO DE DATOS'!$D$21="Guayas/Santa Elena",'Tablas Guayaquil'!G178,'Tablas Resto de Ecuador'!G178) -> 3244 | O178: 7780.05 | P178: 7059.25 | Q178: 4930.85 | R178: 3514.75 | S178: 2757.4
A179: 42 | C179: 7780.05 | D179: 7059.25 | E179: 4930.85 | F179: 3514.75 | G179: 2757.4 | I179: =IF('INGRESO DE DATOS'!$D$21="Guayas/Santa Elena",'Tablas Guayaquil'!C179,'Tablas Resto de Ecuador'!C179) -> 9153 | J179: =IF('INGRESO DE DATOS'!$D$21="Guayas/Santa Elena",'Tablas Guayaquil'!D179,'Tablas Resto de Ecuador'!D179) -> 8305 | K179: =IF('INGRESO DE DATOS'!$D$21="Guayas/Santa Elena",'Tablas Guayaquil'!E179,'Tablas Resto de Ecuador'!E179) -> 5801 | L179: =IF('INGRESO DE DATOS'!$D$21="Guayas/Santa Elena",'Tablas Guayaquil'!F179,'Tablas Resto de Ecuador'!F179) -> 4135 | M179: =IF('INGRESO DE DATOS'!$D$21="Guayas/Santa Elena",'Tablas Guayaquil'!G179,'Tablas Resto de Ecuador'!G179) -> 3244 | O179: 7780.05 | P179: 7059.25 | Q179: 4930.85 | R179: 3514.75 | S179: 2757.4
A180: 43 | C180: 7780.05 | D180: 7059.25 | E180: 4930.85 | F180: 3514.75 | G180: 2757.4 | I180: =IF('INGRESO DE DATOS'!$D$21="Guayas/Santa Elena",'Tablas Guayaquil'!C180,'Tablas Resto de Ecuador'!C180) -> 9153 | J180: =IF('INGRESO DE DATOS'!$D$21="Guayas/Santa Elena",'Tablas Guayaquil'!D180,'Tablas Resto de Ecuador'!D180) -> 8305 | K180: =IF('INGRESO DE DATOS'!$D$21="Guayas/Santa Elena",'Tablas Guayaquil'!E180,'Tablas Resto de Ecuador'!E180) -> 5801 | L180: =IF('INGRESO DE DATOS'!$D$21="Guayas/Santa Elena",'Tablas Guayaquil'!F180,'Tablas Resto de Ecuador'!F180) -> 4135 | M180: =IF('INGRESO DE DATOS'!$D$21="Guayas/Santa Elena",'Tablas Guayaquil'!G180,'Tablas Resto de Ecuador'!G180) -> 3244 | O180: 7780.05 | P180: 7059.25 | Q180: 4930.85 | R180: 3514.75 | S180: 2757.4
A181: 44 | C181: 7780.05 | D181: 7059.25 | E181: 4930.85 | F181: 3514.75 | G181: 2757.4 | I181: =IF('INGRESO DE DATOS'!$D$21="Guayas/Santa Elena",'Tablas Guayaquil'!C181,'Tablas Resto de Ecuador'!C181) -> 9153 | J181: =IF('INGRESO DE DATOS'!$D$21="Guayas/Santa Elena",'Tablas Guayaquil'!D181,'Tablas Resto de Ecuador'!D181) -> 8305 | K181: =IF('INGRESO DE DATOS'!$D$21="Guayas/Santa Elena",'Tablas Guayaquil'!E181,'Tablas Resto de Ecuador'!E181) -> 5801 | L181: =IF('INGRESO DE DATOS'!$D$21="Guayas/Santa Elena",'Tablas Guayaquil'!F181,'Tablas Resto de Ecuador'!F181) -> 4135 | M181: =IF('INGRESO DE DATOS'!$D$21="Guayas/Santa Elena",'Tablas Guayaquil'!G181,'Tablas Resto de Ecuador'!G181) -> 3244 | O181: 7780.05 | P181: 7059.25 | Q181: 4930.85 | R181: 3514.75 | S181: 2757.4
A182: 45 | C182: 8705.7 | D182: 7901.6 | E182: 5487.6 | F182: 3911.7 | G182: 3068.5 | I182: =IF('INGRESO DE DATOS'!$D$21="Guayas/Santa Elena",'Tablas Guayaquil'!C182,'Tablas Resto de Ecuador'!C182) -> 10242 | J182: =IF('INGRESO DE DATOS'!$D$21="Guayas/Santa Elena",'Tablas Guayaquil'!D182,'Tablas Resto de Ecuador'!D182) -> 9296 | K182: =IF('INGRESO DE DATOS'!$D$21="Guayas/Santa Elena",'Tablas Guayaquil'!E182,'Tablas Resto de Ecuador'!E182) -> 6456 | L182: =IF('INGRESO DE DATOS'!$D$21="Guayas/Santa Elena",'Tablas Guayaquil'!F182,'Tablas Resto de Ecuador'!F182) -> 4602 | M182: =IF('INGRESO DE DATOS'!$D$21="Guayas/Santa Elena",'Tablas Guayaquil'!G182,'Tablas Resto de Ecuador'!G182) -> 3610 | O182: 8705.7 | P182: 7901.6 | Q182: 5487.6 | R182: 3911.7 | S182: 3068.5
A183: 46 | C183: 8705.7 | D183: 7901.6 | E183: 5487.6 | F183: 3911.7 | G183: 3068.5 | I183: =IF('INGRESO DE DATOS'!$D$21="Guayas/Santa Elena",'Tablas Guayaquil'!C183,'Tablas Resto de Ecuador'!C183) -> 10242 | J183: =IF('INGRESO DE DATOS'!$D$21="Guayas/Santa Elena",'Tablas Guayaquil'!D183,'Tablas Resto de Ecuador'!D183) -> 9296 | K183: =IF('INGRESO DE DATOS'!$D$21="Guayas/Santa Elena",'Tablas Guayaquil'!E183,'Tablas Resto de Ecuador'!E183) -> 6456 | L183: =IF('INGRESO DE DATOS'!$D$21="Guayas/Santa Elena",'Tablas Guayaquil'!F183,'Tablas Resto de Ecuador'!F183) -> 4602 | M183: =IF('INGRESO DE DATOS'!$D$21="Guayas/Santa Elena",'Tablas Guayaquil'!G183,'Tablas Resto de Ecuador'!G183) -> 3610 | O183: 8705.7 | P183: 7901.6 | Q183: 5487.6 | R183: 3911.7 | S183: 3068.5
A184: 47 | C184: 8705.7 | D184: 7901.6 | E184: 5487.6 | F184: 3911.7 | G184: 3068.5 | I184: =IF('INGRESO DE DATOS'!$D$21="Guayas/Santa Elena",'Tablas Guayaquil'!C184,'Tablas Resto de Ecuador'!C184) -> 10242 | J184: =IF('INGRESO DE DATOS'!$D$21="Guayas/Santa Elena",'Tablas Guayaquil'!D184,'Tablas Resto de Ecuador'!D184) -> 9296 | K184: =IF('INGRESO DE DATOS'!$D$21="Guayas/Santa Elena",'Tablas Guayaquil'!E184,'Tablas Resto de Ecuador'!E184) -> 6456 | L184: =IF('INGRESO DE DATOS'!$D$21="Guayas/Santa Elena",'Tablas Guayaquil'!F184,'Tablas Resto de Ecuador'!F184) -> 4602 | M184: =IF('INGRESO DE DATOS'!$D$21="Guayas/Santa Elena",'Tablas Guayaquil'!G184,'Tablas Resto de Ecuador'!G184) -> 3610 | O184: 8705.7 | P184: 7901.6 | Q184: 5487.6 | R184: 3911.7 | S184: 3068.5
A185: 48 | C185: 8705.7 | D185: 7901.6 | E185: 5487.6 | F185: 3911.7 | G185: 3068.5 | I185: =IF('INGRESO DE DATOS'!$D$21="Guayas/Santa Elena",'Tablas Guayaquil'!C185,'Tablas Resto de Ecuador'!C185) -> 10242 | J185: =IF('INGRESO DE DATOS'!$D$21="Guayas/Santa Elena",'Tablas Guayaquil'!D185,'Tablas Resto de Ecuador'!D185) -> 9296 | K185: =IF('INGRESO DE DATOS'!$D$21="Guayas/Santa Elena",'Tablas Guayaquil'!E185,'Tablas Resto de Ecuador'!E185) -> 6456 | L185: =IF('INGRESO DE DATOS'!$D$21="Guayas/Santa Elena",'Tablas Guayaquil'!F185,'Tablas Resto de Ecuador'!F185) -> 4602 | M185: =IF('INGRESO DE DATOS'!$D$21="Guayas/Santa Elena",'Tablas Guayaquil'!G185,'Tablas Resto de Ecuador'!G185) -> 3610 | O185: 8705.7 | P185: 7901.6 | Q185: 5487.6 | R185: 3911.7 | S185: 3068.5
A186: 49 | C186: 8705.7 | D186: 7901.6 | E186: 5487.6 | F186: 3911.7 | G186: 3068.5 | I186: =IF('INGRESO DE DATOS'!$D$21="Guayas/Santa Elena",'Tablas Guayaquil'!C186,'Tablas Resto de Ecuador'!C186) -> 10242 | J186: =IF('INGRESO DE DATOS'!$D$21="Guayas/Santa Elena",'Tablas Guayaquil'!D186,'Tablas Resto de Ecuador'!D186) -> 9296 | K186: =IF('INGRESO DE DATOS'!$D$21="Guayas/Santa Elena",'Tablas Guayaquil'!E186,'Tablas Resto de Ecuador'!E186) -> 6456 | L186: =IF('INGRESO DE DATOS'!$D$21="Guayas/Santa Elena",'Tablas Guayaquil'!F186,'Tablas Resto de Ecuador'!F186) -> 4602 | M186: =IF('INGRESO DE DATOS'!$D$21="Guayas/Santa Elena",'Tablas Guayaquil'!G186,'Tablas Resto de Ecuador'!G186) -> 3610 | O186: 8705.7 | P186: 7901.6 | Q186: 5487.6 | R186: 3911.7 | S186: 3068.5
A187: 50 | C187: 9749.5 | D187: 8851.05 | E187: 6121.7 | F187: 4363.9 | G187: 3423.8 | I187: =IF('INGRESO DE DATOS'!$D$21="Guayas/Santa Elena",'Tablas Guayaquil'!C187,'Tablas Resto de Ecuador'!C187) -> 11470 | J187: =IF('INGRESO DE DATOS'!$D$21="Guayas/Santa Elena",'Tablas Guayaquil'!D187,'Tablas Resto de Ecuador'!D187) -> 10413 | K187: =IF('INGRESO DE DATOS'!$D$21="Guayas/Santa Elena",'Tablas Guayaquil'!E187,'Tablas Resto de Ecuador'!E187) -> 7202 | L187: =IF('INGRESO DE DATOS'!$D$21="Guayas/Santa Elena",'Tablas Guayaquil'!F187,'Tablas Resto de Ecuador'!F187) -> 5134 | M187: =IF('INGRESO DE DATOS'!$D$21="Guayas/Santa Elena",'Tablas Guayaquil'!G187,'Tablas Resto de Ecuador'!G187) -> 4028 | O187: 9749.5 | P187: 8851.05 | Q187: 6121.7 | R187: 4363.9 | S187: 3423.8
A188: 51 | C188: 9749.5 | D188: 8851.05 | E188: 6121.7 | F188: 4363.9 | G188: 3423.8 | I188: =IF('INGRESO DE DATOS'!$D$21="Guayas/Santa Elena",'Tablas Guayaquil'!C188,'Tablas Resto de Ecuador'!C188) -> 11470 | J188: =IF('INGRESO DE DATOS'!$D$21="Guayas/Santa Elena",'Tablas Guayaquil'!D188,'Tablas Resto de Ecuador'!D188) -> 10413 | K188: =IF('INGRESO DE DATOS'!$D$21="Guayas/Santa Elena",'Tablas Guayaquil'!E188,'Tablas Resto de Ecuador'!E188) -> 7202 | L188: =IF('INGRESO DE DATOS'!$D$21="Guayas/Santa Elena",'Tablas Guayaquil'!F188,'Tablas Resto de Ecuador'!F188) -> 5134 | M188: =IF('INGRESO DE DATOS'!$D$21="Guayas/Santa Elena",'Tablas Guayaquil'!G188,'Tablas Resto de Ecuador'!G188) -> 4028 | O188: 9749.5 | P188: 8851.05 | Q188: 6121.7 | R188: 4363.9 | S188: 3423.8
A189: 52 | C189: 9749.5 | D189: 8851.05 | E189: 6121.7 | F189: 4363.9 | G189: 3423.8 | I189: =IF('INGRESO DE DATOS'!$D$21="Guayas/Santa Elena",'Tablas Guayaquil'!C189,'Tablas Resto de Ecuador'!C189) -> 11470 | J189: =IF('INGRESO DE DATOS'!$D$21="Guayas/Santa Elena",'Tablas Guayaquil'!D189,'Tablas Resto de Ecuador'!D189) -> 10413 | K189: =IF('INGRESO DE DATOS'!$D$21="Guayas/Santa Elena",'Tablas Guayaquil'!E189,'Tablas Resto de Ecuador'!E189) -> 7202 | L189: =IF('INGRESO DE DATOS'!$D$21="Guayas/Santa Elena",'Tablas Guayaquil'!F189,'Tablas Resto de Ecuador'!F189) -> 5134 | M189: =IF('INGRESO DE DATOS'!$D$21="Guayas/Santa Elena",'Tablas Guayaquil'!G189,'Tablas Resto de Ecuador'!G189) -> 4028 | O189: 9749.5 | P189: 8851.05 | Q189: 6121.7 | R189: 4363.9 | S189: 3423.8
A190: 53 | C190: 9749.5 | D190: 8851.05 | E190: 6121.7 | F190: 4363.9 | G190: 3423.8 | I190: =IF('INGRESO DE DATOS'!$D$21="Guayas/Santa Elena",'Tablas Guayaquil'!C190,'Tablas Resto de Ecuador'!C190) -> 11470 | J190: =IF('INGRESO DE DATOS'!$D$21="Guayas/Santa Elena",'Tablas Guayaquil'!D190,'Tablas Resto de Ecuador'!D190) -> 10413 | K190: =IF('INGRESO DE DATOS'!$D$21="Guayas/Santa Elena",'Tablas Guayaquil'!E190,'Tablas Resto de Ecuador'!E190) -> 7202 | L190: =IF('INGRESO DE DATOS'!$D$21="Guayas/Santa Elena",'Tablas Guayaquil'!F190,'Tablas Resto de Ecuador'!F190) -> 5134 | M190: =IF('INGRESO DE DATOS'!$D$21="Guayas/Santa Elena",'Tablas Guayaquil'!G190,'Tablas Resto de Ecuador'!G190) -> 4028 | O190: 9749.5 | P190: 8851.05 | Q190: 6121.7 | R190: 4363.9 | S190: 3423.8
A191: 54 | C191: 9749.5 | D191: 8851.05 | E191: 6121.7 | F191: 4363.9 | G191: 3423.8 | I191: =IF('INGRESO DE DATOS'!$D$21="Guayas/Santa Elena",'Tablas Guayaquil'!C191,'Tablas Resto de Ecuador'!C191) -> 11470 | J191: =IF('INGRESO DE DATOS'!$D$21="Guayas/Santa Elena",'Tablas Guayaquil'!D191,'Tablas Resto de Ecuador'!D191) -> 10413 | K191: =IF('INGRESO DE DATOS'!$D$21="Guayas/Santa Elena",'Tablas Guayaquil'!E191,'Tablas Resto de Ecuador'!E191) -> 7202 | L191: =IF('INGRESO DE DATOS'!$D$21="Guayas/Santa Elena",'Tablas Guayaquil'!F191,'Tablas Resto de Ecuador'!F191) -> 5134 | M191: =IF('INGRESO DE DATOS'!$D$21="Guayas/Santa Elena",'Tablas Guayaquil'!G191,'Tablas Resto de Ecuador'!G191) -> 4028 | O191: 9749.5 | P191: 8851.05 | Q191: 6121.7 | R191: 4363.9 | S191: 3423.8
A192: 55 | C192: 10902.95 | D192: 9891.45 | E192: 6826.35 | F192: 4864.55 | G192: 3817.35 | I192: =IF('INGRESO DE DATOS'!$D$21="Guayas/Santa Elena",'Tablas Guayaquil'!C192,'Tablas Resto de Ecuador'!C192) -> 12827 | J192: =IF('INGRESO DE DATOS'!$D$21="Guayas/Santa Elena",'Tablas Guayaquil'!D192,'Tablas Resto de Ecuador'!D192) -> 11637 | K192: =IF('INGRESO DE DATOS'!$D$21="Guayas/Santa Elena",'Tablas Guayaquil'!E192,'Tablas Resto de Ecuador'!E192) -> 8031 | L192: =IF('INGRESO DE DATOS'!$D$21="Guayas/Santa Elena",'Tablas Guayaquil'!F192,'Tablas Resto de Ecuador'!F192) -> 5723 | M192: =IF('INGRESO DE DATOS'!$D$21="Guayas/Santa Elena",'Tablas Guayaquil'!G192,'Tablas Resto de Ecuador'!G192) -> 4491 | O192: 10902.95 | P192: 9891.45 | Q192: 6826.35 | R192: 4864.55 | S192: 3817.35
A193: 56 | C193: 10902.95 | D193: 9891.45 | E193: 6826.35 | F193: 4864.55 | G193: 3817.35 | I193: =IF('INGRESO DE DATOS'!$D$21="Guayas/Santa Elena",'Tablas Guayaquil'!C193,'Tablas Resto de Ecuador'!C193) -> 12827 | J193: =IF('INGRESO DE DATOS'!$D$21="Guayas/Santa Elena",'Tablas Guayaquil'!D193,'Tablas Resto de Ecuador'!D193) -> 11637 | K193: =IF('INGRESO DE DATOS'!$D$21="Guayas/Santa Elena",'Tablas Guayaquil'!E193,'Tablas Resto de Ecuador'!E193) -> 8031 | L193: =IF('INGRESO DE DATOS'!$D$21="Guayas/Santa Elena",'Tablas Guayaquil'!F193,'Tablas Resto de Ecuador'!F193) -> 5723 | M193: =IF('INGRESO DE DATOS'!$D$21="Guayas/Santa Elena",'Tablas Guayaquil'!G193,'Tablas Resto de Ecuador'!G193) -> 4491 | O193: 10902.95 | P193: 9891.45 | Q193: 6826.35 | R193: 4864.55 | S193: 3817.35
A194: 57 | C194: 10902.95 | D194: 9891.45 | E194: 6826.35 | F194: 4864.55 | G194: 3817.35 | I194: =IF('INGRESO DE DATOS'!$D$21="Guayas/Santa Elena",'Tablas Guayaquil'!C194,'Tablas Resto de Ecuador'!C194) -> 12827 | J194: =IF('INGRESO DE DATOS'!$D$21="Guayas/Santa Elena",'Tablas Guayaquil'!D194,'Tablas Resto de Ecuador'!D194) -> 11637 | K194: =IF('INGRESO DE DATOS'!$D$21="Guayas/Santa Elena",'Tablas Guayaquil'!E194,'Tablas Resto de Ecuador'!E194) -> 8031 | L194: =IF('INGRESO DE DATOS'!$D$21="Guayas/Santa Elena",'Tablas Guayaquil'!F194,'Tablas Resto de Ecuador'!F194) -> 5723 | M194: =IF('INGRESO DE DATOS'!$D$21="Guayas/Santa Elena",'Tablas Guayaquil'!G194,'Tablas Resto de Ecuador'!G194) -> 4491 | O194: 10902.95 | P194: 9891.45 | Q194: 6826.35 | R194: 4864.55 | S194: 3817.35
A195: 58 | C195: 10902.95 | D195: 9891.45 | E195: 6826.35 | F195: 4864.55 | G195: 3817.35 | I195: =IF('INGRESO DE DATOS'!$D$21="Guayas/Santa Elena",'Tablas Guayaquil'!C195,'Tablas Resto de Ecuador'!C195) -> 12827 | J195: =IF('INGRESO DE DATOS'!$D$21="Guayas/Santa Elena",'Tablas Guayaquil'!D195,'Tablas Resto de Ecuador'!D195) -> 11637 | K195: =IF('INGRESO DE DATOS'!$D$21="Guayas/Santa Elena",'Tablas Guayaquil'!E195,'Tablas Resto de Ecuador'!E195) -> 8031 | L195: =IF('INGRESO DE DATOS'!$D$21="Guayas/Santa Elena",'Tablas Guayaquil'!F195,'Tablas Resto de Ecuador'!F195) -> 5723 | M195: =IF('INGRESO DE DATOS'!$D$21="Guayas/Santa Elena",'Tablas Guayaquil'!G195,'Tablas Resto de Ecuador'!G195) -> 4491 | O195: 10902.95 | P195: 9891.45 | Q195: 6826.35 | R195: 4864.55 | S195: 3817.35
A196: 59 | C196: 10902.95 | D196: 9891.45 | E196: 6826.35 | F196: 4864.55 | G196: 3817.35 | I196: =IF('INGRESO DE DATOS'!$D$21="Guayas/Santa Elena",'Tablas Guayaquil'!C196,'Tablas Resto de Ecuador'!C196) -> 12827 | J196: =IF('INGRESO DE DATOS'!$D$21="Guayas/Santa Elena",'Tablas Guayaquil'!D196,'Tablas Resto de Ecuador'!D196) -> 11637 | K196: =IF('INGRESO DE DATOS'!$D$21="Guayas/Santa Elena",'Tablas Guayaquil'!E196,'Tablas Resto de Ecuador'!E196) -> 8031 | L196: =IF('INGRESO DE DATOS'!$D$21="Guayas/Santa Elena",'Tablas Guayaquil'!F196,'Tablas Resto de Ecuador'!F196) -> 5723 | M196: =IF('INGRESO DE DATOS'!$D$21="Guayas/Santa Elena",'Tablas Guayaquil'!G196,'Tablas Resto de Ecuador'!G196) -> 4491 | O196: 10902.95 | P196: 9891.45 | Q196: 6826.35 | R196: 4864.55 | S196: 3817.35
A197: 60 | C197: 11665.4 | D197: 10587.6 | E197: 7297.25 | F197: 5202 | G197: 4080.85 | I197: =IF('INGRESO DE DATOS'!$D$21="Guayas/Santa Elena",'Tablas Guayaquil'!C197,'Tablas Resto de Ecuador'!C197) -> 13724 | J197: =IF('INGRESO DE DATOS'!$D$21="Guayas/Santa Elena",'Tablas Guayaquil'!D197,'Tablas Resto de Ecuador'!D197) -> 12456 | K197: =IF('INGRESO DE DATOS'!$D$21="Guayas/Santa Elena",'Tablas Guayaquil'!E197,'Tablas Resto de Ecuador'!E197) -> 8585 | L197: =IF('INGRESO DE DATOS'!$D$21="Guayas/Santa Elena",'Tablas Guayaquil'!F197,'Tablas Resto de Ecuador'!F197) -> 6120 | M197: =IF('INGRESO DE DATOS'!$D$21="Guayas/Santa Elena",'Tablas Guayaquil'!G197,'Tablas Resto de Ecuador'!G197) -> 4801 | O197: 11665.4 | P197: 10587.6 | Q197: 7297.25 | R197: 5202 | S197: 4080.85
A198: 61 | C198: 12999.05 | D198: 11798.85 | E198: 8121.75 | F198: 5790.2 | G198: 4541.55 | I198: =IF('INGRESO DE DATOS'!$D$21="Guayas/Santa Elena",'Tablas Guayaquil'!C198,'Tablas Resto de Ecuador'!C198) -> 15293 | J198: =IF('INGRESO DE DATOS'!$D$21="Guayas/Santa Elena",'Tablas Guayaquil'!D198,'Tablas Resto de Ecuador'!D198) -> 13881 | K198: =IF('INGRESO DE DATOS'!$D$21="Guayas/Santa Elena",'Tablas Guayaquil'!E198,'Tablas Resto de Ecuador'!E198) -> 9555 | L198: =IF('INGRESO DE DATOS'!$D$21="Guayas/Santa Elena",'Tablas Guayaquil'!F198,'Tablas Resto de Ecuador'!F198) -> 6812 | M198: =IF('INGRESO DE DATOS'!$D$21="Guayas/Santa Elena",'Tablas Guayaquil'!G198,'Tablas Resto de Ecuador'!G198) -> 5343 | O198: 12999.05 | P198: 11798.85 | Q198: 8121.75 | R198: 5790.2 | S198: 4541.55
A199: 62 | C199: 14443.2 | D199: 13108.7 | E199: 9020.2 | F199: 6427.7 | G199: 5042.2 | I199: =IF('INGRESO DE DATOS'!$D$21="Guayas/Santa Elena",'Tablas Guayaquil'!C199,'Tablas Resto de Ecuador'!C199) -> 16992 | J199: =IF('INGRESO DE DATOS'!$D$21="Guayas/Santa Elena",'Tablas Guayaquil'!D199,'Tablas Resto de Ecuador'!D199) -> 15422 | K199: =IF('INGRESO DE DATOS'!$D$21="Guayas/Santa Elena",'Tablas Guayaquil'!E199,'Tablas Resto de Ecuador'!E199) -> 10612 | L199: =IF('INGRESO DE DATOS'!$D$21="Guayas/Santa Elena",'Tablas Guayaquil'!F199,'Tablas Resto de Ecuador'!F199) -> 7562 | M199: =IF('INGRESO DE DATOS'!$D$21="Guayas/Santa Elena",'Tablas Guayaquil'!G199,'Tablas Resto de Ecuador'!G199) -> 5932 | O199: 14443.2 | P199: 13108.7 | Q199: 9020.2 | R199: 6427.7 | S199: 5042.2
A200: 63 | C200: 15994.45 | D200: 14516.3 | E200: 9990.05 | F200: 7118.75 | G200: 5584.5 | I200: =IF('INGRESO DE DATOS'!$D$21="Guayas/Santa Elena",'Tablas Guayaquil'!C200,'Tablas Resto de Ecuador'!C200) -> 18817 | J200: =IF('INGRESO DE DATOS'!$D$21="Guayas/Santa Elena",'Tablas Guayaquil'!D200,'Tablas Resto de Ecuador'!D200) -> 17078 | K200: =IF('INGRESO DE DATOS'!$D$21="Guayas/Santa Elena",'Tablas Guayaquil'!E200,'Tablas Resto de Ecuador'!E200) -> 11753 | L200: =IF('INGRESO DE DATOS'!$D$21="Guayas/Santa Elena",'Tablas Guayaquil'!F200,'Tablas Resto de Ecuador'!F200) -> 8375 | M200: =IF('INGRESO DE DATOS'!$D$21="Guayas/Santa Elena",'Tablas Guayaquil'!G200,'Tablas Resto de Ecuador'!G200) -> 6570 | O200: 15994.45 | P200: 14516.3 | Q200: 9990.05 | R200: 7118.75 | S200: 5584.5
A201: 64 | C201: 17656.2 | D201: 16024.2 | E201: 11030.45 | F201: 7859.95 | G201: 6166.75 | I201: =IF('INGRESO DE DATOS'!$D$21="Guayas/Santa Elena",'Tablas Guayaquil'!C201,'Tablas Resto de Ecuador'!C201) -> 20772 | J201: =IF('INGRESO DE DATOS'!$D$21="Guayas/Santa Elena",'Tablas Guayaquil'!D201,'Tablas Resto de Ecuador'!D201) -> 18852 | K201: =IF('INGRESO DE DATOS'!$D$21="Guayas/Santa Elena",'Tablas Guayaquil'!E201,'Tablas Resto de Ecuador'!E201) -> 12977 | L201: =IF('INGRESO DE DATOS'!$D$21="Guayas/Santa Elena",'Tablas Guayaquil'!F201,'Tablas Resto de Ecuador'!F201) -> 9247 | M201: =IF('INGRESO DE DATOS'!$D$21="Guayas/Santa Elena",'Tablas Guayaquil'!G201,'Tablas Resto de Ecuador'!G201) -> 7255 | O201: 17656.2 | P201: 16024.2 | Q201: 11030.45 | R201: 7859.95 | S201: 6166.75
A202: 65 | C202: 19424.2 | D202: 17628.15 | E202: 12144.8 | F202: 8654.7 | G202: 6791.5 | I202: =IF('INGRESO DE DATOS'!$D$21="Guayas/Santa Elena",'Tablas Guayaquil'!C202,'Tablas Resto de Ecuador'!C202) -> 22852 | J202: =IF('INGRESO DE DATOS'!$D$21="Guayas/Santa Elena",'Tablas Guayaquil'!D202,'Tablas Resto de Ecuador'!D202) -> 20739 | K202: =IF('INGRESO DE DATOS'!$D$21="Guayas/Santa Elena",'Tablas Guayaquil'!E202,'Tablas Resto de Ecuador'!E202) -> 14288 | L202: =IF('INGRESO DE DATOS'!$D$21="Guayas/Santa Elena",'Tablas Guayaquil'!F202,'Tablas Resto de Ecuador'!F202) -> 10182 | M202: =IF('INGRESO DE DATOS'!$D$21="Guayas/Santa Elena",'Tablas Guayaquil'!G202,'Tablas Resto de Ecuador'!G202) -> 7990 | O202: 19424.2 | P202: 17628.15 | Q202: 12144.8 | R202: 8654.7 | S202: 6791.5
A203: 66 | C203: 21302.7 | D203: 19334.95 | E203: 13328 | F203: 9499.6 | G203: 7453.65 | I203: =IF('INGRESO DE DATOS'!$D$21="Guayas/Santa Elena",'Tablas Guayaquil'!C203,'Tablas Resto de Ecuador'!C203) -> 25062 | J203: =IF('INGRESO DE DATOS'!$D$21="Guayas/Santa Elena",'Tablas Guayaquil'!D203,'Tablas Resto de Ecuador'!D203) -> 22747 | K203: =IF('INGRESO DE DATOS'!$D$21="Guayas/Santa Elena",'Tablas Guayaquil'!E203,'Tablas Resto de Ecuador'!E203) -> 15680 | L203: =IF('INGRESO DE DATOS'!$D$21="Guayas/Santa Elena",'Tablas Guayaquil'!F203,'Tablas Resto de Ecuador'!F203) -> 11176 | M203: =IF('INGRESO DE DATOS'!$D$21="Guayas/Santa Elena",'Tablas Guayaquil'!G203,'Tablas Resto de Ecuador'!G203) -> 8769 | O203: 21302.7 | P203: 19334.95 | Q203: 13328 | R203: 9499.6 | S203: 7453.65
... 1275 more rows

Sheet Tablas Guayaquil (hidden)
A2: BUPA GLOBAL ELITE | I2: FACTOR MENSUAL: | K2: =1.12/12 -> 0.09333333333
A3: TARIFAS ANUALES | I3: FACTOR TRIMESTRAL: | K3: =1.1/4 -> 0.275
A4: EDAD | I4: FACTOR SEMIANUAL: | K4: =1.06/2 -> 0.53
C5: 250 | D5: 2000 | E5: 3500 | F5: 5000 | G5: 10000
A6: 18 | C6: 10214 | D6: 8954 | E6: 7248 | F6: 6288 | G6: 4689
A7: 19 | C7: 10214 | D7: 8954 | E7: 7248 | F7: 6288 | G7: 4689
A8: 20 | C8: 10214 | D8: 8954 | E8: 7248 | F8: 6288 | G8: 4689
A9: 21 | C9: 10214 | D9: 8954 | E9: 7248 | F9: 6288 | G9: 4689
A10: 22 | C10: 10214 | D10: 8954 | E10: 7248 | F10: 6288 | G10: 4689
A11: 23 | C11: 10214 | D11: 8954 | E11: 7248 | F11: 6288 | G11: 4689
A12: 24 | C12: 10214 | D12: 8954 | E12: 7248 | F12: 6288 | G12: 4689
A13: 25 | C13: 10916 | D13: 9568 | E13: 7699 | F13: 6678 | G13: 4978
A14: 26 | C14: 10916 | D14: 9568 | E14: 7699 | F14: 6678 | G14: 4978
A15: 27 | C15: 10916 | D15: 9568 | E15: 7699 | F15: 6678 | G15: 4978
A16: 28 | C16: 10916 | D16: 9568 | E16: 7699 | F16: 6678 | G16: 4978
A17: 29 | C17: 10916 | D17: 9568 | E17: 7699 | F17: 6678 | G17: 4978
A18: 30 | C18: 12138 | D18: 10641 | E18: 8498 | F18: 7369 | G18: 5494
A19: 31 | C19: 12138 | D19: 10641 | E19: 8498 | F19: 7369 | G19: 5494
A20: 32 | C20: 12138 | D20: 10641 | E20: 8498 | F20: 7369 | G20: 5494
A21: 33 | C21: 12138 | D21: 10641 | E21: 8498 | F21: 7369 | G21: 5494
A22: 34 | C22: 12138 | D22: 10641 | E22: 8498 | F22: 7369 | G22: 5494
A23: 35 | C23: 13555 | D23: 11878 | E23: 9432 | F23: 8179 | G23: 6100
A24: 36 | C24: 13555 | D24: 11878 | E24: 9432 | F24: 8179 | G24: 6100
A25: 37 | C25: 13555 | D25: 11878 | E25: 9432 | F25: 8179 | G25: 6100
A26: 38 | C26: 13555 | D26: 11878 | E26: 9432 | F26: 8179 | G26: 6100
A27: 39 | C27: 13555 | D27: 11878 | E27: 9432 | F27: 8179 | G27: 6100
A28: 40 | C28: 15181 | D28: 13308 | E28: 10519 | F28: 9122 | G28: 6801
A29: 41 | C29: 15181 | D29: 13308 | E29: 10519 | F29: 9122 | G29: 6801
A30: 42 | C30: 15181 | D30: 13308 | E30: 10519 | F30: 9122 | G30: 6801
A31: 43 | C31: 15181 | D31: 13308 | E31: 10519 | F31: 9122 | G31: 6801
A32: 44 | C32: 15181 | D32: 13308 | E32: 10519 | F32: 9122 | G32: 6801
A33: 45 | C33: 16990 | D33: 14895 | E33: 11737 | F33: 10177 | G33: 7588
A34: 46 | C34: 16990 | D34: 14895 | E34: 11737 | F34: 10177 | G34: 7588
A35: 47 | C35: 16990 | D35: 14895 | E35: 11737 | F35: 10177 | G35: 7588
A36: 48 | C36: 16990 | D36: 14895 | E36: 11737 | F36: 10177 | G36: 7588
A37: 49 | C37: 16990 | D37: 14895 | E37: 11737 | F37: 10177 | G37: 7588
A38: 50 | C38: 19028 | D38: 16681 | E38: 13115 | F38: 11373 | G38: 8478
A39: 51 | C39: 19028 | D39: 16681 | E39: 13115 | F39: 11373 | G39: 8478
A40: 52 | C40: 19028 | D40: 16681 | E40: 13115 | F40: 11373 | G40: 8478
A41: 53 | C41: 19028 | D41: 16681 | E41: 13115 | F41: 11373 | G41: 8478
A42: 54 | C42: 19028 | D42: 16681 | E42: 13115 | F42: 11373 | G42: 8478
A43: 55 | C43: 21272 | D43: 18647 | E43: 14638 | F43: 12695 | G43: 9465
A44: 56 | C44: 21272 | D44: 18647 | E44: 14638 | F44: 12695 | G44: 9465
A45: 57 | C45: 21272 | D45: 18647 | E45: 14638 | F45: 12695 | G45: 9465
A46: 58 | C46: 21272 | D46: 18647 | E46: 14638 | F46: 12695 | G46: 9465
A47: 59 | C47: 21272 | D47: 18647 | E47: 14638 | F47: 12695 | G47: 9465
A48: 60 | C48: 22767 | D48: 19956 | E48: 15659 | F48: 13576 | G48: 10124
A49: 61 | C49: 25373 | D49: 22238 | E49: 17436 | F49: 15121 | G49: 11273
A50: 62 | C50: 28187 | D50: 24706 | E50: 19366 | F50: 16794 | G50: 12520
A51: 63 | C51: 31216 | D51: 27361 | E51: 21448 | F51: 18600 | G51: 13867
A52: 64 | C52: 34459 | D52: 30201 | E52: 23681 | F52: 20535 | G52: 15310
A53: 65 | C53: 37913 | D53: 33231 | E53: 26064 | F53: 22603 | G53: 16850
A54: 66 | C54: 41577 | D54: 36444 | E54: 28597 | F54: 24799 | G54: 18485
A55: 67 | C55: 45457 | D55: 39844 | E55: 31282 | F55: 27124 | G55: 20221
A56: 68 | C56: 49546 | D56: 43433 | E56: 34117 | F56: 29585 | G56: 22056
A57: 69 | C57: 53854 | D57: 47203 | E57: 37105 | F57: 32176 | G57: 23987
A58: 70 | C58: 58370 | D58: 51162 | E58: 40241 | F58: 34895 | G58: 26013
A59: 71 | C59: 63098 | D59: 55308 | E59: 43532 | F59: 37746 | G59: 28140
A60: 72 | C60: 68040 | D60: 59637 | E60: 46968 | F60: 40728 | G60: 30361
A61: 73 | C61: 73193 | D61: 64156 | E61: 50559 | F61: 43841 | G61: 32684
A62: 74 | C62: 78561 | D62: 68859 | E62: 54300 | F62: 47085 | G62: 35102
A63: 75 | C63: 84139 | D63: 73753 | E63: 58191 | F63: 50459 | G63: 37615
A64: 76 | C64: 84139 | D64: 73753 | E64: 58191 | F64: 50459 | G64: 37615
A65: 77 | C65: 84139 | D65: 73753 | E65: 58191 | F65: 50459 | G65: 37615
A66: 78 | C66: 84139 | D66: 73753 | E66: 58191 | F66: 50459 | G66: 37615
A67: 79 | C67: 84139 | D67: 73753 | E67: 58191 | F67: 50459 | G67: 37615
A68: 80 | C68: 84139 | D68: 73753 | E68: 58191 | F68: 50459 | G68: 37615
A69: 81 | C69: 84139 | D69: 73753 | E69: 58191 | F69: 50459 | G69: 37615
A70: 82 | C70: 84139 | D70: 73753 | E70: 58191 | F70: 50459 | G70: 37615
A71: 83 | C71: 84139 | D71: 73753 | E71: 58191 | F71: 50459 | G71: 37615
A72: 84 | B72: o más | C72: 84139 | D72: 73753 | E72: 58191 | F72: 50459 | G72: 37615
A73: 1 | B73: Hijo | C73: 4315 | D73: 3786 | E73: 3086 | F73: 2677 | G73: 1997
A74: 2 | B74: Hijos | C74: 7338 | D74: 6432 | E74: 5242 | F74: 4546 | G74: 3391
A75: 3 | B75: Hijos o más | C75: 10357 | D75: 9082 | E75: 7403 | F75: 6418 | G75: 4786
A77: BUPA GLOBAL ELITE - MENSUALES
A78: EDAD
C79: 1000 | D79: 2000 | E79: 3500 | F79: 5000 | G79: 10000
A80: 18 | C80: =+C6*$K$2 -> 953.3066667 | D80: =+D6*$K$2 -> 835.7066667 | E80: 676.48 | F80: 586.88 | G80: 437.64
A81: 19 | C81: =+C7*$K$2 -> 953.3066667 | D81: 835.7066667 | E81: 676.48 | F81: 586.88 | G81: 437.64
A82: 20 | C82: 953.3066667 | D82: 835.7066667 | E82: 676.48 | F82: 586.88 | G82: 437.64
A83: 21 | C83: 953.3066667 | D83: 835.7066667 | E83: 676.48 | F83: 586.88 | G83: 437.64
A84: 22 | C84: 953.3066667 | D84: 835.7066667 | E84: 676.48 | F84: 586.88 | G84: 437.64
A85: 23 | C85: 953.3066667 | D85: 835.7066667 | E85: 676.48 | F85: 586.88 | G85: 437.64
A86: 24 | C86: 953.3066667 | D86: 835.7066667 | E86: 676.48 | F86: 586.88 | G86: 437.64
A87: 25 | C87: 1018.826667 | D87: 893.0133333 | E87: 718.5733333 | F87: 623.28 | G87: 464.6133333
A88: 26 | C88: 1018.826667 | D88: 893.0133333 | E88: 718.5733333 | F88: 623.28 | G88: 464.6133333
A89: 27 | C89: 1018.826667 | D89: 893.0133333 | E89: 718.5733333 | F89: 623.28 | G89: 464.6133333
A90: 28 | C90: 1018.826667 | D90: 893.0133333 | E90: 718.5733333 | F90: 623.28 | G90: 464.6133333
A91: 29 | C91: 1018.826667 | D91: 893.0133333 | E91: 718.5733333 | F91: 623.28 | G91: 464.6133333
A92: 30 | C92: 1132.88 | D92: 993.16 | E92: 793.1466667 | F92: 687.7733333 | G92: 512.7733333
A93: 31 | C93: 1132.88 | D93: 993.16 | E93: 793.1466667 | F93: 687.7733333 | G93: 512.7733333
A94: 32 | C94: 1132.88 | D94: 993.16 | E94: 793.1466667 | F94: 687.7733333 | G94: 512.7733333
A95: 33 | C95: 1132.88 | D95: 993.16 | E95: 793.1466667 | F95: 687.7733333 | G95: 512.7733333
A96: 34 | C96: 1132.88 | D96: 993.16 | E96: 793.1466667 | F96: 687.7733333 | G96: 512.7733333
A97: 35 | C97: =+C23*$K$2 -> 1265.133333 | D97: 1108.613333 | E97: 880.32 | F97: 763.3733333 | G97: 569.3333333
A98: 36 | C98: 1265.133333 | D98: 1108.613333 | E98: 880.32 | F98: 763.3733333 | G98: 569.3333333
A99: 37 | C99: 1265.133333 | D99: 1108.613333 | E99: 880.32 | F99: 763.3733333 | G99: 569.3333333
A100: 38 | C100: 1265.133333 | D100: 1108.613333 | E100: 880.32 | F100: 763.3733333 | G100: 569.3333333
A101: 39 | C101: 1265.133333 | D101: 1108.613333 | E101: 880.32 | F101: 763.3733333 | G101: 569.3333333
A102: 40 | C102: 1416.893333 | D102: 1242.08 | E102: 981.7733333 | F102: 851.3866667 | G102: 634.76
A103: 41 | C103: 1416.893333 | D103: 1242.08 | E103: 981.7733333 | F103: 851.3866667 | G103: 634.76
A104: 42 | C104: 1416.893333 | D104: 1242.08 | E104: 981.7733333 | F104: 851.3866667 | G104: 634.76
A105: 43 | C105: 1416.893333 | D105: 1242.08 | E105: 981.7733333 | F105: 851.3866667 | G105: 634.76
A106: 44 | C106: 1416.893333 | D106: 1242.08 | E106: 981.7733333 | F106: 851.3866667 | G106: 634.76
A107: 45 | C107: 1585.733333 | D107: 1390.2 | E107: 1095.453333 | F107: 949.8533333 | G107: 708.2133333
A108: 46 | C108: 1585.733333 | D108: 1390.2 | E108: 1095.453333 | F108: 949.8533333 | G108: 708.2133333
A109: 47 | C109: 1585.733333 | D109: 1390.2 | E109: 1095.453333 | F109: 949.8533333 | G109: 708.2133333
A110: 48 | C110: 1585.733333 | D110: 1390.2 | E110: 1095.453333 | F110: 949.8533333 | G110: 708.2133333
A111: 49 | C111: 1585.733333 | D111: 1390.2 | E111: 1095.453333 | F111: 949.8533333 | G111: 708.2133333
A112: 50 | C112: 1775.946667 | D112: 1556.893333 | E112: 1224.066667 | F112: 1061.48 | G112: 791.28
A113: 51 | C113: =+C39*$K$2 -> 1775.946667 | D113: 1556.893333 | E113: 1224.066667 | F113: 1061.48 | G113: 791.28
A114: 52 | C114: 1775.946667 | D114: 1556.893333 | E114: 1224.066667 | F114: 1061.48 | G114: 791.28
A115: 53 | C115: 1775.946667 | D115: 1556.893333 | E115: 1224.066667 | F115: 1061.48 | G115: 791.28
A116: 54 | C116: 1775.946667 | D116: 1556.893333 | E116: 1224.066667 | F116: 1061.48 | G116: 791.28
A117: 55 | C117: 1985.386667 | D117: 1740.386667 | E117: 1366.213333 | F117: 1184.866667 | G117: 883.4
A118: 56 | C118: 1985.386667 | D118: 1740.386667 | E118: 1366.213333 | F118: 1184.866667 | G118: 883.4
A119: 57 | C119: 1985.386667 | D119: 1740.386667 | E119: 1366.213333 | F119: 1184.866667 | G119: 883.4
A120: 58 | C120: 1985.386667 | D120: 1740.386667 | E120: 1366.213333 | F120: 1184.866667 | G120: 883.4
A121: 59 | C121: 1985.386667 | D121: 1740.386667 | E121: 1366.213333 | F121: 1184.866667 | G121: 883.4
A122: 60 | C122: 2124.92 | D122: 1862.56 | E122: 1461.506667 | F122: 1267.093333 | G122: 944.9066667
A123: 61 | C123: 2368.146667 | D123: 2075.546667 | E123: 1627.36 | F123: 1411.293333 | G123: 1052.146667
A124: 62 | C124: 2630.786667 | D124: 2305.893333 | E124: 1807.493333 | F124: 1567.44 | G124: 1168.533333
A125: 63 | C125: 2913.493333 | D125: 2553.693333 | E125: 2001.813333 | F125: 1736 | G125: 1294.253333
A126: 64 | C126: 3216.173333 | D126: 2818.76 | E126: 2210.226667 | F126: 1916.6 | G126: 1428.933333
A127: 65 | C127: 3538.546667 | D127: 3101.56 | E127: 2432.64 | F127: 2109.613333 | G127: 1572.666667
A128: 66 | C128: 3880.52 | D128: 3401.44 | E128: 2669.053333 | F128: 2314.573333 | G128: 1725.266667
A129: 67 | C129: =+C55*$K$2 -> 4242.653333 | D129: 3718.773333 | E129: 2919.653333 | F129: 2531.573333 | G129: 1887.293333
A130: 68 | C130: 4624.293333 | D130: 4053.746667 | E130: 3184.253333 | F130: 2761.266667 | G130: 2058.56
A131: 69 | C131: 5026.373333 | D131: 4405.613333 | E131: 3463.133333 | F131: 3003.093333 | G131: 2238.786667
A132: 70 | C132: 5447.866667 | D132: 4775.12 | E132: 3755.826667 | F132: 3256.866667 | G132: 2427.88
A133: 71 | C133: 5889.146667 | D133: 5162.08 | E133: 4062.986667 | F133: 3522.96 | G133: 2626.4
A134: 72 | C134: 6350.4 | D134: 5566.12 | E134: 4383.68 | F134: 3801.28 | G134: 2833.693333
A135: 73 | C135: 6831.346667 | D135: 5987.893333 | E135: 4718.84 | F135: 4091.826667 | G135: 3050.506667
A136: 74 | C136: 7332.36 | D136: 6426.84 | E136: 5068 | F136: 4394.6 | G136: 3276.186667
A137: 75 | C137: 7852.973333 | D137: 6883.613333 | E137: 5431.16 | F137: 4709.506667 | G137: 3510.733333
A138: 76 | C138: 7852.973333 | D138: 6883.613333 | E138: 5431.16 | F138: 4709.506667 | G138: 3510.733333
A139: 77 | C139: 7852.973333 | D139: 6883.613333 | E139: 5431.16 | F139: 4709.506667 | G139: 3510.733333
A140: 78 | C140: 7852.973333 | D140: 6883.613333 | E140: 5431.16 | F140: 4709.506667 | G140: 3510.733333
A141: 79 | C141: 7852.973333 | D141: 6883.613333 | E141: 5431.16 | F141: 4709.506667 | G141: 3510.733333
A142: 80 | C142: 7852.973333 | D142: 6883.613333 | E142: 5431.16 | F142: 4709.506667 | G142: 3510.733333
A143: 81 | C143: 7852.973333 | D143: 6883.613333 | E143: 5431.16 | F143: 4709.506667 | G143: 3510.733333
A144: 82 | C144: 7852.973333 | D144: 6883.613333 | E144: 5431.16 | F144: 4709.506667 | G144: 3510.733333
A145: 83 | C145: =+C71*$K$2 -> 7852.973333 | D145: 6883.613333 | E145: 5431.16 | F145: 4709.506667 | G145: 3510.733333
A146: 84 | B146: o más | C146: 7852.973333 | D146: 6883.613333 | E146: 5431.16 | F146: 4709.506667 | G146: 3510.733333
A147: 1 | B147: Hijo | C147: 402.7333333 | D147: 353.36 | E147: 288.0266667 | F147: 249.8533333 | G147: 186.3866667
A148: 2 | B148: Hijos | C148: 684.88 | D148: 600.32 | E148: 489.2533333 | F148: 424.2933333 | G148: 316.4933333
A149: 3 | B149: Hijos o más | C149: 966.6533333 | D149: 847.6533333 | E149: 690.9466667 | F149: 599.0133333 | G149: 446.6933333
A151: BUPA GLOBAL PREMIER
A152: TARIFAS ANUALES
A153: EDAD
C154: 250 | D154: 2000 | E154: 5000 | F154: 10000 | G154: 20000
A155: 18 | C155: 6656 | D155: 6040 | E155: 4410 | F155: 3156 | G155: 2476
A156: 19 | C156: 6656 | D156: 6040 | E156: 4410 | F156: 3156 | G156: 2476
A157: 20 | C157: 6656 | D157: 6040 | E157: 4410 | F157: 3156 | G157: 2476
A158: 21 | C158: 6656 | D158: 6040 | E158: 4410 | F158: 3156 | G158: 2476
A159: 22 | C159: 6656 | D159: 6040 | E159: 4410 | F159: 3156 | G159: 2476
A160: 23 | C160: 6656 | D160: 6040 | E160: 4410 | F160: 3156 | G160: 2476
A161: 24 | C161: 6656 | D161: 6040 | E161: 4410 | F161: 3156 | G161: 2476
A162: 25 | C162: 7113 | D162: 6454 | E162: 4663 | F162: 3336 | G162: 2617
A163: 26 | C163: 7113 | D163: 6454 | E163: 4663 | F163: 3336 | G163: 2617
A164: 27 | C164: 7113 | D164: 6454 | E164: 4663 | F164: 3336 | G164: 2617
A165: 28 | C165: 7113 | D165: 6454 | E165: 4663 | F165: 3336 | G165: 2617
A166: 29 | C166: 7113 | D166: 6454 | E166: 4663 | F166: 3336 | G166: 2617
A167: 30 | C167: 7911 | D167: 7178 | E167: 5118 | F167: 3661 | G167: 2871
A168: 31 | C168: 7911 | D168: 7178 | E168: 5118 | F168: 3661 | G168: 2871
A169: 32 | C169: 7911 | D169: 7178 | E169: 5118 | F169: 3661 | G169: 2871
A170: 33 | C170: 7911 | D170: 7178 | E170: 5118 | F170: 3661 | G170: 2871
A171: 34 | C171: 7911 | D171: 7178 | E171: 5118 | F171: 3661 | G171: 2871
A172: 35 | C172: 8828 | D172: 8014 | E172: 5656 | F172: 4048 | G172: 3175
A173: 36 | C173: 8828 | D173: 8014 | E173: 5656 | F173: 4048 | G173: 3175
A174: 37 | C174: 8828 | D174: 8014 | E174: 5656 | F174: 4048 | G174: 3175
A175: 38 | C175: 8828 | D175: 8014 | E175: 5656 | F175: 4048 | G175: 3175
A176: 39 | C176: 8828 | D176: 8014 | E176: 5656 | F176: 4048 | G176: 3175
A177: 40 | C177: 9891 | D177: 8974 | E177: 6288 | F177: 4498 | G177: 3528
A178: 41 | C178: 9891 | D178: 8974 | E178: 6288 | F178: 4498 | G178: 3528
A179: 42 | C179: 9891 | D179: 8974 | E179: 6288 | F179: 4498 | G179: 3528
A180: 43 | C180: 9891 | D180: 8974 | E180: 6288 | F180: 4498 | G180: 3528
A181: 44 | C181: 9891 | D181: 8974 | E181: 6288 | F181: 4498 | G181: 3528
A182: 45 | C182: 11068 | D182: 10045 | E182: 6999 | F182: 5005 | G182: 3926
A183: 46 | C183: 11068 | D183: 10045 | E183: 6999 | F183: 5005 | G183: 3926
A184: 47 | C184: 11068 | D184: 10045 | E184: 6999 | F184: 5005 | G184: 3926
A185: 48 | C185: 11068 | D185: 10045 | E185: 6999 | F185: 5005 | G185: 3926
A186: 49 | C186: 11068 | D186: 10045 | E186: 6999 | F186: 5005 | G186: 3926
A187: 50 | C187: 12395 | D187: 11252 | E187: 7808 | F187: 5584 | G187: 4381
A188: 51 | C188: 12395 | D188: 11252 | E188: 7808 | F188: 5584 | G188: 4381
A189: 52 | C189: 12395 | D189: 11252 | E189: 7808 | F189: 5584 | G189: 4381
A190: 53 | C190: 12395 | D190: 11252 | E190: 7808 | F190: 5584 | G190: 4381
A191: 54 | C191: 12395 | D191: 11252 | E191: 7808 | F191: 5584 | G191: 4381
A192: 55 | C192: 13861 | D192: 12575 | E192: 8705 | F192: 6225 | G192: 4885
A193: 56 | C193: 13861 | D193: 12575 | E193: 8705 | F193: 6225 | G193: 4885
A194: 57 | C194: 13861 | D194: 12575 | E194: 8705 | F194: 6225 | G194: 4885
A195: 58 | C195: 13861 | D195: 12575 | E195: 8705 | F195: 6225 | G195: 4885
A196: 59 | C196: 13861 | D196: 12575 | E196: 8705 | F196: 6225 | G196: 4885
A197: 60 | C197: 14830 | D197: 13461 | E197: 9307 | F197: 6657 | G197: 5222
A198: 61 | C198: 16527 | D198: 15000 | E198: 10358 | F198: 7409 | G198: 5811
A199: 62 | C199: 18363 | D199: 16666 | E199: 11503 | F199: 8225 | G199: 6452
A200: 63 | C200: 20335 | D200: 18455 | E200: 12741 | F200: 9110 | G200: 7147
A201: 64 | C201: 22447 | D201: 20373 | E201: 14068 | F201: 10058 | G201: 7892
A202: 65 | C202: 24695 | D202: 22412 | E202: 15488 | F202: 11075 | G202: 8690
A203: 66 | C203: 27083 | D203: 24581 | E203: 16998 | F203: 12156 | G203: 9539
... 1275 more rows

Sheet Tablas Resto de Ecuador (hidden)
A2: BUPA GLOBAL ELITE | I2: FACTOR MENSUAL: | K2: =1.12/12 -> 0.09333333333
A3: TARIFAS ANUALES | I3: FACTOR TRIMESTRAL: | K3: =1.1/4 -> 0.275
A4: EDAD | I4: FACTOR SEMIANUAL: | K4: =1.06/2 -> 0.53
C5: 250 | D5: 2000 | E5: 3500 | F5: 5000 | G5: 10000
A6: 18 | C6: 9452 | D6: 8286 | E6: 6686 | F6: 5801 | G6: 4311
A7: 19 | C7: 9452 | D7: 8286 | E7: 6686 | F7: 5801 | G7: 4311
A8: 20 | C8: 9452 | D8: 8286 | E8: 6686 | F8: 5801 | G8: 4311
A9: 21 | C9: 9452 | D9: 8286 | E9: 6686 | F9: 5801 | G9: 4311
A10: 22 | C10: 9452 | D10: 8286 | E10: 6686 | F10: 5801 | G10: 4311
A11: 23 | C11: 9452 | D11: 8286 | E11: 6686 | F11: 5801 | G11: 4311
A12: 24 | C12: 9452 | D12: 8286 | E12: 6686 | F12: 5801 | G12: 4311
A13: 25 | C13: 10102 | D13: 8854 | E13: 7102 | F13: 6160 | G13: 4576
A14: 26 | C14: 10102 | D14: 8854 | E14: 7102 | F14: 6160 | G14: 4576
A15: 27 | C15: 10102 | D15: 8854 | E15: 7102 | F15: 6160 | G15: 4576
A16: 28 | C16: 10102 | D16: 8854 | E16: 7102 | F16: 6160 | G16: 4576
A17: 29 | C17: 10102 | D17: 8854 | E17: 7102 | F17: 6160 | G17: 4576
A18: 30 | C18: 11232 | D18: 9847 | E18: 7839 | F18: 6798 | G18: 5051
A19: 31 | C19: 11232 | D19: 9847 | E19: 7839 | F19: 6798 | G19: 5051
A20: 32 | C20: 11232 | D20: 9847 | E20: 7839 | F20: 6798 | G20: 5051
A21: 33 | C21: 11232 | D21: 9847 | E21: 7839 | F21: 6798 | G21: 5051
A22: 34 | C22: 11232 | D22: 9847 | E22: 7839 | F22: 6798 | G22: 5051
A23: 35 | C23: 12543 | D23: 10992 | E23: 8701 | F23: 7545 | G23: 5608
A24: 36 | C24: 12543 | D24: 10992 | E24: 8701 | F24: 7545 | G24: 5608
A25: 37 | C25: 12543 | D25: 10992 | E25: 8701 | F25: 7545 | G25: 5608
A26: 38 | C26: 12543 | D26: 10992 | E26: 8701 | F26: 7545 | G26: 5608
A27: 39 | C27: 12543 | D27: 10992 | E27: 8701 | F27: 7545 | G27: 5608
A28: 40 | C28: 14048 | D28: 12315 | E28: 9704 | F28: 8415 | G28: 6252
A29: 41 | C29: 14048 | D29: 12315 | E29: 9704 | F29: 8415 | G29: 6252
A30: 42 | C30: 14048 | D30: 12315 | E30: 9704 | F30: 8415 | G30: 6252
A31: 43 | C31: 14048 | D31: 12315 | E31: 9704 | F31: 8415 | G31: 6252
A32: 44 | C32: 14048 | D32: 12315 | E32: 9704 | F32: 8415 | G32: 6252
A33: 45 | C33: 15722 | D33: 13783 | E33: 10827 | F33: 9388 | G33: 6976
A34: 46 | C34: 15722 | D34: 13783 | E34: 10827 | F34: 9388 | G34: 6976
A35: 47 | C35: 15722 | D35: 13783 | E35: 10827 | F35: 9388 | G35: 6976
A36: 48 | C36: 15722 | D36: 13783 | E36: 10827 | F36: 9388 | G36: 6976
A37: 49 | C37: 15722 | D37: 13783 | E37: 10827 | F37: 9388 | G37: 6976
A38: 50 | C38: 17608 | D38: 15436 | E38: 12098 | F38: 10492 | G38: 7795
A39: 51 | C39: 17608 | D39: 15436 | E39: 12098 | F39: 10492 | G39: 7795
A40: 52 | C40: 17608 | D40: 15436 | E40: 12098 | F40: 10492 | G40: 7795
A41: 53 | C41: 17608 | D41: 15436 | E41: 12098 | F41: 10492 | G41: 7795
A42: 54 | C42: 17608 | D42: 15436 | E42: 12098 | F42: 10492 | G42: 7795
A43: 55 | C43: 19684 | D43: 17255 | E43: 13503 | F43: 11711 | G43: 8702
A44: 56 | C44: 19684 | D44: 17255 | E44: 13503 | F44: 11711 | G44: 8702
A45: 57 | C45: 19684 | D45: 17255 | E45: 13503 | F45: 11711 | G45: 8702
A46: 58 | C46: 19684 | D46: 17255 | E46: 13503 | F46: 11711 | G46: 8702
A47: 59 | C47: 19684 | D47: 17255 | E47: 13503 | F47: 11711 | G47: 8702
A48: 60 | C48: 21068 | D48: 18467 | E48: 14445 | F48: 12524 | G48: 9307
A49: 61 | C49: 23480 | D49: 20578 | E49: 16085 | F49: 13948 | G49: 10364
A50: 62 | C50: 26084 | D50: 22862 | E50: 17865 | F50: 15492 | G50: 11510
A51: 63 | C51: 28886 | D51: 25319 | E51: 19785 | F51: 17158 | G51: 12749
A52: 64 | C52: 31887 | D52: 27948 | E52: 21845 | F52: 18943 | G52: 14075
A53: 65 | C53: 35084 | D53: 30751 | E53: 24043 | F53: 20850 | G53: 15491
A54: 66 | C54: 38474 | D54: 33725 | E54: 26380 | F54: 22877 | G54: 16994
A55: 67 | C55: 42065 | D55: 36871 | E55: 28857 | F55: 25021 | G55: 18590
A56: 68 | C56: 45848 | D56: 40191 | E56: 31472 | F56: 27292 | G56: 20278
A57: 69 | C57: 49835 | D57: 43681 | E57: 34228 | F57: 29681 | G57: 22053
A58: 70 | C58: 54014 | D58: 47344 | E58: 37121 | F58: 32190 | G58: 23915
A59: 71 | C59: 58390 | D59: 51180 | E59: 40157 | F59: 34820 | G59: 25871
A60: 72 | C60: 62963 | D60: 55187 | E60: 43327 | F60: 37571 | G60: 27912
A61: 73 | C61: 67731 | D61: 59368 | E61: 46640 | F61: 40443 | G61: 30049
A62: 74 | C62: 72698 | D62: 63720 | E62: 50091 | F62: 43435 | G62: 32272
A63: 75 | C63: 77860 | D63: 68249 | E63: 53680 | F63: 46547 | G63: 34581
A64: 76 | C64: 77860 | D64: 68249 | E64: 53680 | F64: 46547 | G64: 34581
A65: 77 | C65: 77860 | D65: 68249 | E65: 53680 | F65: 46547 | G65: 34581
A66: 78 | C66: 77860 | D66: 68249 | E66: 53680 | F66: 46547 | G66: 34581
A67: 79 | C67: 77860 | D67: 68249 | E67: 53680 | F67: 46547 | G67: 34581
A68: 80 | C68: 77860 | D68: 68249 | E68: 53680 | F68: 46547 | G68: 34581
A69: 81 | C69: 77860 | D69: 68249 | E69: 53680 | F69: 46547 | G69: 34581
A70: 82 | C70: 77860 | D70: 68249 | E70: 53680 | F70: 46547 | G70: 34581
A71: 83 | C71: 77860 | D71: 68249 | E71: 53680 | F71: 46547 | G71: 34581
A72: 84 | B72: o más | C72: 77860 | D72: 68249 | E72: 53680 | F72: 46547 | G72: 34581
A73: 1 | B73: Hijo | C73: 3993 | D73: 3503 | E73: 2847 | F73: 2470 | G73: 1836
A74: 2 | B74: Hijos | C74: 6791 | D74: 5952 | E74: 4835 | F74: 4194 | G74: 3117
A75: 3 | B75: Hijos o más | C75: 9584 | D75: 8404 | E75: 6829 | F75: 5921 | G75: 4400
A77: BUPA GLOBAL ELITE - MENSUALES
A78: EDAD
C79: 1000 | D79: 2000 | E79: 3500 | F79: 5000 | G79: 10000
A80: 18 | C80: =+C6*$K$2 -> 882.1866667 | D80: =+D6*$K$2 -> 773.36 | E80: 624.0266667 | F80: 541.4266667 | G80: 402.36
A81: 19 | C81: =+C7*$K$2 -> 882.1866667 | D81: 773.36 | E81: 624.0266667 | F81: 541.4266667 | G81: 402.36
A82: 20 | C82: 882.1866667 | D82: 773.36 | E82: 624.0266667 | F82: 541.4266667 | G82: 402.36
A83: 21 | C83: 882.1866667 | D83: 773.36 | E83: 624.0266667 | F83: 541.4266667 | G83: 402.36
A84: 22 | C84: 882.1866667 | D84: 773.36 | E84: 624.0266667 | F84: 541.4266667 | G84: 402.36
A85: 23 | C85: 882.1866667 | D85: 773.36 | E85: 624.0266667 | F85: 541.4266667 | G85: 402.36
A86: 24 | C86: 882.1866667 | D86: 773.36 | E86: 624.0266667 | F86: 541.4266667 | G86: 402.36
A87: 25 | C87: 942.8533333 | D87: 826.3733333 | E87: 662.8533333 | F87: 574.9333333 | G87: 427.0933333
A88: 26 | C88: 942.8533333 | D88: 826.3733333 | E88: 662.8533333 | F88: 574.9333333 | G88: 427.0933333
A89: 27 | C89: 942.8533333 | D89: 826.3733333 | E89: 662.8533333 | F89: 574.9333333 | G89: 427.0933333
A90: 28 | C90: 942.8533333 | D90: 826.3733333 | E90: 662.8533333 | F90: 574.9333333 | G90: 427.0933333
A91: 29 | C91: 942.8533333 | D91: 826.3733333 | E91: 662.8533333 | F91: 574.9333333 | G91: 427.0933333
A92: 30 | C92: 1048.32 | D92: 919.0533333 | E92: 731.64 | F92: 634.48 | G92: 471.4266667
A93: 31 | C93: 1048.32 | D93: 919.0533333 | E93: 731.64 | F93: 634.48 | G93: 471.4266667
A94: 32 | C94: 1048.32 | D94: 919.0533333 | E94: 731.64 | F94: 634.48 | G94: 471.4266667
A95: 33 | C95: 1048.32 | D95: 919.0533333 | E95: 731.64 | F95: 634.48 | G95: 471.4266667
A96: 34 | C96: 1048.32 | D96: 919.0533333 | E96: 731.64 | F96: 634.48 | G96: 471.4266667
A97: 35 | C97: =+C23*$K$2 -> 1170.68 | D97: 1025.92 | E97: 812.0933333 | F97: 704.2 | G97: 523.4133333
A98: 36 | C98: 1170.68 | D98: 1025.92 | E98: 812.0933333 | F98: 704.2 | G98: 523.4133333
A99: 37 | C99: 1170.68 | D99: 1025.92 | E99: 812.0933333 | F99: 704.2 | G99: 523.4133333
A100: 38 | C100: 1170.68 | D100: 1025.92 | E100: 812.0933333 | F100: 704.2 | G100: 523.4133333
A101: 39 | C101: 1170.68 | D101: 1025.92 | E101: 812.0933333 | F101: 704.2 | G101: 523.4133333
A102: 40 | C102: 1311.146667 | D102: 1149.4 | E102: 905.7066667 | F102: 785.4 | G102: 583.52
A103: 41 | C103: 1311.146667 | D103: 1149.4 | E103: 905.7066667 | F103: 785.4 | G103: 583.52
A104: 42 | C104: 1311.146667 | D104: 1149.4 | E104: 905.7066667 | F104: 785.4 | G104: 583.52
A105: 43 | C105: 1311.146667 | D105: 1149.4 | E105: 905.7066667 | F105: 785.4 | G105: 583.52
A106: 44 | C106: 1311.146667 | D106: 1149.4 | E106: 905.7066667 | F106: 785.4 | G106: 583.52
A107: 45 | C107: 1467.386667 | D107: 1286.413333 | E107: 1010.52 | F107: 876.2133333 | G107: 651.0933333
A108: 46 | C108: 1467.386667 | D108: 1286.413333 | E108: 1010.52 | F108: 876.2133333 | G108: 651.0933333
A109: 47 | C109: 1467.386667 | D109: 1286.413333 | E109: 1010.52 | F109: 876.2133333 | G109: 651.0933333
A110: 48 | C110: 1467.386667 | D110: 1286.413333 | E110: 1010.52 | F110: 876.2133333 | G110: 651.0933333
A111: 49 | C111: 1467.386667 | D111: 1286.413333 | E111: 1010.52 | F111: 876.2133333 | G111: 651.0933333
A112: 50 | C112: 1643.413333 | D112: 1440.693333 | E112: 1129.146667 | F112: 979.2533333 | G112: 727.5333333
A113: 51 | C113: =+C39*$K$2 -> 1643.413333 | D113: 1440.693333 | E113: 1129.146667 | F113: 979.2533333 | G113: 727.5333333
A114: 52 | C114: 1643.413333 | D114: 1440.693333 | E114: 1129.146667 | F114: 979.2533333 | G114: 727.5333333
A115: 53 | C115: 1643.413333 | D115: 1440.693333 | E115: 1129.146667 | F115: 979.2533333 | G115: 727.5333333
A116: 54 | C116: 1643.413333 | D116: 1440.693333 | E116: 1129.146667 | F116: 979.2533333 | G116: 727.5333333
A117: 55 | C117: 1837.173333 | D117: 1610.466667 | E117: 1260.28 | F117: 1093.026667 | G117: 812.1866667
A118: 56 | C118: 1837.173333 | D118: 1610.466667 | E118: 1260.28 | F118: 1093.026667 | G118: 812.1866667
A119: 57 | C119: 1837.173333 | D119: 1610.466667 | E119: 1260.28 | F119: 1093.026667 | G119: 812.1866667
A120: 58 | C120: 1837.173333 | D120: 1610.466667 | E120: 1260.28 | F120: 1093.026667 | G120: 812.1866667
A121: 59 | C121: 1837.173333 | D121: 1610.466667 | E121: 1260.28 | F121: 1093.026667 | G121: 812.1866667
A122: 60 | C122: 1966.346667 | D122: 1723.586667 | E122: 1348.2 | F122: 1168.906667 | G122: 868.6533333
A123: 61 | C123: 2191.466667 | D123: 1920.613333 | E123: 1501.266667 | F123: 1301.813333 | G123: 967.3066667
A124: 62 | C124: 2434.506667 | D124: 2133.786667 | E124: 1667.4 | F124: 1445.92 | G124: 1074.266667
A125: 63 | C125: 2696.026667 | D125: 2363.106667 | E125: 1846.6 | F125: 1601.413333 | G125: 1189.906667
A126: 64 | C126: 2976.12 | D126: 2608.48 | E126: 2038.866667 | F126: 1768.013333 | G126: 1313.666667
A127: 65 | C127: 3274.506667 | D127: 2870.093333 | E127: 2244.013333 | F127: 1946 | G127: 1445.826667
A128: 66 | C128: 3590.906667 | D128: 3147.666667 | E128: 2462.133333 | F128: 2135.186667 | G128: 1586.106667
A129: 67 | C129: =+C55*$K$2 -> 3926.066667 | D129: 3441.293333 | E129: 2693.32 | F129: 2335.293333 | G129: 1735.066667
A130: 68 | C130: 4279.146667 | D130: 3751.16 | E130: 2937.386667 | F130: 2547.253333 | G130: 1892.613333
A131: 69 | C131: 4651.266667 | D131: 4076.893333 | E131: 3194.613333 | F131: 2770.226667 | G131: 2058.28
A132: 70 | C132: 5041.306667 | D132: 4418.773333 | E132: 3464.626667 | F132: 3004.4 | G132: 2232.066667
A133: 71 | C133: 5449.733333 | D133: 4776.8 | E133: 3747.986667 | F133: 3249.866667 | G133: 2414.626667
A134: 72 | C134: 5876.546667 | D134: 5150.786667 | E134: 4043.853333 | F134: 3506.626667 | G134: 2605.12
A135: 73 | C135: 6321.56 | D135: 5541.013333 | E135: 4353.066667 | F135: 3774.68 | G135: 2804.573333
A136: 74 | C136: 6785.146667 | D136: 5947.2 | E136: 4675.16 | F136: 4053.933333 | G136: 3012.053333
A137: 75 | C137: 7266.933333 | D137: 6369.906667 | E137: 5010.133333 | F137: 4344.386667 | G137: 3227.56
A138: 76 | C138: 7266.933333 | D138: 6369.906667 | E138: 5010.133333 | F138: 4344.386667 | G138: 3227.56
A139: 77 | C139: 7266.933333 | D139: 6369.906667 | E139: 5010.133333 | F139: 4344.386667 | G139: 3227.56
A140: 78 | C140: 7266.933333 | D140: 6369.906667 | E140: 5010.133333 | F140: 4344.386667 | G140: 3227.56
A141: 79 | C141: 7266.933333 | D141: 6369.906667 | E141: 5010.133333 | F141: 4344.386667 | G141: 3227.56
A142: 80 | C142: 7266.933333 | D142: 6369.906667 | E142: 5010.133333 | F142: 4344.386667 | G142: 3227.56
A143: 81 | C143: 7266.933333 | D143: 6369.906667 | E143: 5010.133333 | F143: 4344.386667 | G143: 3227.56
A144: 82 | C144: 7266.933333 | D144: 6369.906667 | E144: 5010.133333 | F144: 4344.386667 | G144: 3227.56
A145: 83 | C145: =+C71*$K$2 -> 7266.933333 | D145: 6369.906667 | E145: 5010.133333 | F145: 4344.386667 | G145: 3227.56
A146: 84 | B146: o más | C146: 7266.933333 | D146: 6369.906667 | E146: 5010.133333 | F146: 4344.386667 | G146: 3227.56
A147: 1 | B147: Hijo | C147: 372.68 | D147: 326.9466667 | E147: 265.72 | F147: 230.5333333 | G147: 171.36
A148: 2 | B148: Hijos | C148: 633.8266667 | D148: 555.52 | E148: 451.2666667 | F148: 391.44 | G148: 290.92
A149: 3 | B149: Hijos o más | C149: 894.5066667 | D149: 784.3733333 | E149: 637.3733333 | F149: 552.6266667 | G149: 410.6666667
A151: BUPA GLOBAL PREMIER
A152: TARIFAS ANUALES
A153: EDAD
C154: 250 | D154: 2000 | E154: 5000 | F154: 10000 | G154: 20000
A155: 18 | C155: 6160 | D155: 5589 | E155: 4068 | F155: 2902 | G155: 2276
A156: 19 | C156: 6160 | D156: 5589 | E156: 4068 | F156: 2902 | G156: 2276
A157: 20 | C157: 6160 | D157: 5589 | E157: 4068 | F157: 2902 | G157: 2276
A158: 21 | C158: 6160 | D158: 5589 | E158: 4068 | F158: 2902 | G158: 2276
A159: 22 | C159: 6160 | D159: 5589 | E159: 4068 | F159: 2902 | G159: 2276
A160: 23 | C160: 6160 | D160: 5589 | E160: 4068 | F160: 2902 | G160: 2276
A161: 24 | C161: 6160 | D161: 5589 | E161: 4068 | F161: 2902 | G161: 2276
A162: 25 | C162: 6582 | D162: 5972 | E162: 4301 | F162: 3067 | G162: 2406
A163: 26 | C163: 6582 | D163: 5972 | E163: 4301 | F163: 3067 | G163: 2406
A164: 27 | C164: 6582 | D164: 5972 | E164: 4301 | F164: 3067 | G164: 2406
A165: 28 | C165: 6582 | D165: 5972 | E165: 4301 | F165: 3067 | G165: 2406
A166: 29 | C166: 6582 | D166: 5972 | E166: 4301 | F166: 3067 | G166: 2406
A167: 30 | C167: 7320 | D167: 6642 | E167: 4721 | F167: 3366 | G167: 2640
A168: 31 | C168: 7320 | D168: 6642 | E168: 4721 | F168: 3366 | G168: 2640
A169: 32 | C169: 7320 | D169: 6642 | E169: 4721 | F169: 3366 | G169: 2640
A170: 33 | C170: 7320 | D170: 6642 | E170: 4721 | F170: 3366 | G170: 2640
A171: 34 | C171: 7320 | D171: 6642 | E171: 4721 | F171: 3366 | G171: 2640
A172: 35 | C172: 8170 | D172: 7416 | E172: 5217 | F172: 3721 | G172: 2919
A173: 36 | C173: 8170 | D173: 7416 | E173: 5217 | F173: 3721 | G173: 2919
A174: 37 | C174: 8170 | D174: 7416 | E174: 5217 | F174: 3721 | G174: 2919
A175: 38 | C175: 8170 | D175: 7416 | E175: 5217 | F175: 3721 | G175: 2919
A176: 39 | C176: 8170 | D176: 7416 | E176: 5217 | F176: 3721 | G176: 2919
A177: 40 | C177: 9153 | D177: 8305 | E177: 5801 | F177: 4135 | G177: 3244
A178: 41 | C178: 9153 | D178: 8305 | E178: 5801 | F178: 4135 | G178: 3244
A179: 42 | C179: 9153 | D179: 8305 | E179: 5801 | F179: 4135 | G179: 3244
A180: 43 | C180: 9153 | D180: 8305 | E180: 5801 | F180: 4135 | G180: 3244
A181: 44 | C181: 9153 | D181: 8305 | E181: 5801 | F181: 4135 | G181: 3244
A182: 45 | C182: 10242 | D182: 9296 | E182: 6456 | F182: 4602 | G182: 3610
A183: 46 | C183: 10242 | D183: 9296 | E183: 6456 | F183: 4602 | G183: 3610
A184: 47 | C184: 10242 | D184: 9296 | E184: 6456 | F184: 4602 | G184: 3610
A185: 48 | C185: 10242 | D185: 9296 | E185: 6456 | F185: 4602 | G185: 3610
A186: 49 | C186: 10242 | D186: 9296 | E186: 6456 | F186: 4602 | G186: 3610
A187: 50 | C187: 11470 | D187: 10413 | E187: 7202 | F187: 5134 | G187: 4028
A188: 51 | C188: 11470 | D188: 10413 | E188: 7202 | F188: 5134 | G188: 4028
A189: 52 | C189: 11470 | D189: 10413 | E189: 7202 | F189: 5134 | G189: 4028
A190: 53 | C190: 11470 | D190: 10413 | E190: 7202 | F190: 5134 | G190: 4028
A191: 54 | C191: 11470 | D191: 10413 | E191: 7202 | F191: 5134 | G191: 4028
A192: 55 | C192: 12827 | D192: 11637 | E192: 8031 | F192: 5723 | G192: 4491
A193: 56 | C193: 12827 | D193: 11637 | E193: 8031 | F193: 5723 | G193: 4491
A194: 57 | C194: 12827 | D194: 11637 | E194: 8031 | F194: 5723 | G194: 4491
A195: 58 | C195: 12827 | D195: 11637 | E195: 8031 | F195: 5723 | G195: 4491
A196: 59 | C196: 12827 | D196: 11637 | E196: 8031 | F196: 5723 | G196: 4491
A197: 60 | C197: 13724 | D197: 12456 | E197: 8585 | F197: 6120 | G197: 4801
A198: 61 | C198: 15293 | D198: 13881 | E198: 9555 | F198: 6812 | G198: 5343
A199: 62 | C199: 16992 | D199: 15422 | E199: 10612 | F199: 7562 | G199: 5932
A200: 63 | C200: 18817 | D200: 17078 | E200: 11753 | F200: 8375 | G200: 6570
A201: 64 | C201: 20772 | D201: 18852 | E201: 12977 | F201: 9247 | G201: 7255
A202: 65 | C202: 22852 | D202: 20739 | E202: 14288 | F202: 10182 | G202: 7990
A203: 66 | C203: 25062 | D203: 22747 | E203: 15680 | F203: 11176 | G203: 8769
... 1275 more rows
